Directorate,Department,Expenditure Type,Ref.Doc.1,Vendor Name,Expenditure Amount (exc VAT),Payment Date
Assurance,Assurance Management,Consultants Fees,10003681,J.C.APPLICATIONS DEVELOPMENT,660.00,08/07/2014
Assurance,Governance,Building Repairs & Maintenance,10003700,PORTAKABIN LTD,"13,926.06",08/07/2014
Assurance,Governance,General Office Expenses,40000205,OFFICE DEPOT UK LTD,513.90,31/07/2014
Assurance,Governance,Postage,10005020,FINANCIAL DATA MANAGEMENT LTD,"2,535.76",28/07/2014
Assurance,Governance,Postage,10003667,ROYAL MAIL GROUP LIMITED,"1,636.46",08/07/2014
Assurance,Governance,Postage,10004732,ROYAL MAIL GROUP LIMITED,"1,433.56",21/07/2014
Assurance,Governance,Printing-Contract,10003666,FINANCIAL DATA MANAGEMENT LTD,"1,768.02",08/07/2014
Assurance,Governance,Transport Hire Charges,20009408,GREEN MAN COMMUNITY CENTRE M.C.,700.00,15/07/2014
Assurance,Governance,Transport Hire Charges,20009416,TOTTERIDGE TENNIS CLUB,640.00,15/07/2014
Assurance,Governance,Ttl IT & Comms,10003787,BRITISH TELECOM PLC,"9,417.03",09/07/2014
Assurance,Governance,Ttl IT & Comms,10005018,XPRESS SOFTWARE SOLUTIONS LTD,"13,000.00",28/07/2014
Assurance,Internal Audit & CAFT,Subscriptions,10003668,INTEC FOR BUSINESS LIMITED,"1,315.55",08/07/2014
Central Expenses,Central Expenses,Audit Fee,10005025,GRANT THORNTON UK LLP,"56,025.00",28/07/2014
Central Expenses,Central Expenses,Grant Payments,10000577,LOCAL GOVERNMENT ASSOCIATION,"60,490.86",28/07/2014
Central Expenses,Central Expenses,Insurance Claims,20008898,ACCIDENT EXCHANGE,941.17,04/07/2014
Central Expenses,Central Expenses,Insurance Claims,20008912,ALD LEGAL SOLICITORS,"45,000.00",04/07/2014
Central Expenses,Central Expenses,Insurance Claims,20008775,AVIVA INSURANCE,"15,000.00",02/07/2014
Central Expenses,Central Expenses,Insurance Claims,20009517,AVIVA INSURANCE,"4,912.28",18/07/2014
Central Expenses,Central Expenses,Insurance Claims,20009489,BAKER & CO SOLICITORS,"13,500.00",29/07/2014
Central Expenses,Central Expenses,Insurance Claims,10004983,BROWNE JACOBSON SOLS.,"1,237.65",29/07/2014
Central Expenses,Central Expenses,Insurance Claims,10004984,BROWNE JACOBSON SOLS.,"1,089.00",29/07/2014
Central Expenses,Central Expenses,Insurance Claims,10004986,CLYDE & CO LLP,870.75,29/07/2014
Central Expenses,Central Expenses,Insurance Claims,10004987,CLYDE & CO LLP,623.50,29/07/2014
Central Expenses,Central Expenses,Insurance Claims,20009491,DEPARTMENT FOR WORK & PENSIONS,585.00,18/07/2014
Central Expenses,Central Expenses,Insurance Claims,20009493,DEPARTMENT FOR WORK & PENSIONS,627.00,18/07/2014
Central Expenses,Central Expenses,Insurance Claims,20009518,EAD SOLICITORS,"5,312.00",18/07/2014
Central Expenses,Central Expenses,Insurance Claims,20009551,HODGE JONES & ALLEN SOLICITORS,"4,318.00",18/07/2014
Central Expenses,Central Expenses,Insurance Claims,20008523,INSURE THE BOX,"1,081.00",29/07/2014
Central Expenses,Central Expenses,Insurance Claims,10004838,JOHNSON AUSTIN PARTNERSHIP LLP,585.00,28/07/2014
Central Expenses,Central Expenses,Insurance Claims,10004989,JOHNSON AUSTIN PARTNERSHIP LLP,"1,200.00",28/07/2014
Central Expenses,Central Expenses,Insurance Claims,20009510,KEEBLE HAWSON SOLICITORS,"3,400.00",18/07/2014
Central Expenses,Central Expenses,Insurance Claims,10004840,KENNEDYS,"4,046.00",28/07/2014
Central Expenses,Central Expenses,Insurance Claims,10004985,KENNEDYS,"1,232.00",28/07/2014
Central Expenses,Central Expenses,Insurance Claims,10004842,LEGAL COSTS NEGOTIATORS,"1,302.76",28/07/2014
Central Expenses,Central Expenses,Insurance Claims,10004844,LEGAL COSTS NEGOTIATORS,916.75,28/07/2014
Central Expenses,Central Expenses,Insurance Claims,20009514,LYONS DAVIDSON SOLICITORS,"1,303.26",18/07/2014
Central Expenses,Central Expenses,Insurance Claims,20009214,PLEXUS LAW,"11,000.00",11/07/2014
Central Expenses,Central Expenses,Insurance Claims,20009872,PLEXUS LAW,"25,000.00",29/07/2014
Central Expenses,Central Expenses,Insurance Claims,20009519,RUBICON LAW,"6,750.00",18/07/2014
Central Expenses,Central Expenses,Insurance Claims,10004999,THE BARNETGROUP LIMITED,"2,923.10",29/07/2014
Central Expenses,Central Expenses,Interest Bank,20008778,GREATER LONDON AUTHORITY,"1,277.11",02/07/2014
Central Expenses,Central Expenses,Joint Authorities - Third Party Payments,CHP1000022,NORTH LONDON WASTE AUTHORITY,"943,693.00",07/07/2014
Central Expenses,Central Expenses,Other Establishments - Third Party Payment,EBX0014243,LEE VALLEY REGIONAL PARK AUTH.,"33,699.99",21/07/2014
Central Expenses,Central Expenses,Other Establishments - Third Party Payment,EBX0011700,LONDON PENSIONS FUND AUTHORITY,"50,280.90",01/07/2014
Central Expenses,Central Expenses,Subscriptions,10004225,LONDON BOROUGH OF EALING,"11,040.00",21/07/2014
Central Expenses,Central Expenses,Subscriptions,10005021,LONDON BOROUGH OF EALING,"36,269.00",28/07/2014
Commissioning Group,Commercial,Software Licences & Support,10003356,4 PROJECTS LIMITED,995.00,04/07/2014
Commissioning Group,Commercial,Software Licences & Support,10003357,4 PROJECTS LIMITED,995.00,04/07/2014
Commissioning Group,Commissioning Group,Equipment and Materials Purchase ,10003318,NORTH LONDON WASTE AUTHORITY,"26,648.81",02/07/2014
Commissioning Group,Commissioning Group,Legal and Court Fees,20008682,IBB SOLICITORS,"40,924.75",01/07/2014
Commissioning Group,Commissioning Group,Other Agencies - Third Party Payments,10003348,HOME START BARNET,"26,750.00",04/07/2014
Commissioning Group,Commissioning Group,Other Agencies - Third Party Payments,10003349,HOME START BARNET,"26,750.00",04/07/2014
Commissioning Group,Commissioning Strategy,Software Licences & Support,10003882,EXPERIAN LTD,"8,452.21",10/07/2014
Commissioning Group,Deputy Chief Operating Officer,Advertising for staff,20009580,TMP (UK) LTD,"5,940.00",23/07/2014
Commissioning Group,Deputy Chief Operating Officer,Advertising for staff,20009605,TMP (UK) LTD,"1,400.81",23/07/2014
Commissioning Group,Deputy Chief Operating Officer,Consultants Fees,20009520,JLT SPECIALITY LTD,"1,575.00",18/07/2014
Commissioning Group,Deputy Chief Operating Officer,Grant Payments,20009524,BARNET COMMUNITY PROJECTS,"2,395.00",18/07/2014
Commissioning Group,Deputy Chief Operating Officer,Grant Payments,20009523,BRITSOM,"1,875.00",18/07/2014
Commissioning Group,Deputy Chief Operating Officer,Grant Payments,20009525,TRAIN FOR EMPLOYMENT LTD,"8,750.00",23/07/2014
Commissioning Group,Deputy Chief Operating Officer,Other Agencies - Third Party Payments,10004745,FAMILY FUND TRADING LTD,"10,475.00",23/07/2014
Commissioning Group,Deputy Chief Operating Officer,Other Agencies - Third Party Payments,10004746,FAMILY FUND TRADING LTD,"8,541.66",23/07/2014
Commissioning Group,Deputy Chief Operating Officer,Other Agencies - Third Party Payments,10004747,FAMILY FUND TRADING LTD,"1,808.33",23/07/2014
Commissioning Group,Deputy Chief Operating Officer,Other Agencies - Third Party Payments,10004749,FAMILY FUND TRADING LTD,"4,441.66",23/07/2014
Commissioning Group,Deputy Chief Operating Officer,Professional Services,10003743,CITY OF WESTMINSTER,"1,515.00",11/07/2014
Commissioning Group,Deputy Chief Operating Officer,Training,10003552,PREMIER PEOPLE SOLUTIONS LTD,765.00,16/07/2014
Commissioning Group,Deputy Chief Operating Officer,Ttl IT & Comms,10003160,CAPITA BUSINESS SERVICES LTD,"3,150.00",02/07/2014
Commissioning Group,Deputy Chief Operating Officer,Ttl IT & Comms,10003153,ICASEWORK LTD,"9,600.00",02/07/2014
Commissioning Group,Legal,Legal and Court Fees,10003470,LONDON BOROUGH OF HARROW,"188,033.93",07/07/2014
Commissioning Group,Legal,Legal and Court Fees,10003472,LONDON BOROUGH OF HARROW,"188,033.93",07/07/2014
Commissioning Group,Legal,Legal and Court Fees,10003920,LONDON BOROUGH OF HARROW,"188,033.93",11/07/2014
Commissioning Group,Legal,Legal and Court Fees,10004661,LONDON BOROUGH OF HARROW,"188,033.93",18/07/2014
Commissioning Group,Legal,Legal Disbursements,10003366,LONDON BOROUGH OF HARROW,"178,196.81",04/07/2014
Commissioning Group,Legal,Legal Disbursements,10003473,LONDON BOROUGH OF HARROW,"54,721.82",04/07/2014
Commissioning Group,Legal,Legal Disbursements,10004660,LONDON BOROUGH OF HARROW,"94,809.27",18/07/2014
Corporate Accounting,Control Accounts,Government departments - Third Party Payment,EBX0015963,GREATER LONDON AUTHORITY,"241,490.00",29/07/2014
Corporate Accounting,Control Accounts,Other Agencies - Third Party Payments,10003227,CITIBANK NA LONDON,"1,688.27",04/07/2014
Corporate Accounting,Control Accounts,Other Agencies - Third Party Payments,10003229,CITIBANK NA LONDON,824.31,04/07/2014
Corporate Accounting,Control Accounts,Other Agencies - Third Party Payments,10003503,CITIBANK NA LONDON,647.55,08/07/2014
Corporate Accounting,Control Accounts,Other Agencies - Third Party Payments,10003547,CITIBANK NA LONDON,873.95,08/07/2014
Corporate Accounting,Control Accounts,Other Agencies - Third Party Payments,10003548,CITIBANK NA LONDON,611.85,08/07/2014
Corporate Accounting,Control Accounts,Other Agencies - Third Party Payments,10003625,CITIBANK NA LONDON,"2,183.17",09/07/2014
Corporate Accounting,Control Accounts,Other Agencies - Third Party Payments,10003792,CITIBANK NA LONDON,510.30,10/07/2014
Corporate Accounting,Control Accounts,Other Agencies - Third Party Payments,10003795,CITIBANK NA LONDON,656.21,10/07/2014
Corporate Accounting,Control Accounts,Other Agencies - Third Party Payments,10004518,CITIBANK NA LONDON,"1,943.53",17/07/2014
Corporate Accounting,Control Accounts,Other Agencies - Third Party Payments,10004792,CITIBANK NA LONDON,"1,844.10",28/07/2014
Corporate Accounting,Control Accounts,Other Agencies - Third Party Payments,10004805,CITIBANK NA LONDON,"1,225.50",28/07/2014
Corporate Accounting,Control Accounts,Other Agencies - Third Party Payments,10004809,CITIBANK NA LONDON,633.85,28/07/2014
Corporate Accounting,Control Accounts,Other Agencies - Third Party Payments,10004812,CITIBANK NA LONDON,688.70,28/07/2014
Corporate Accounting,Control Accounts,Other Agencies - Third Party Payments,10004995,CITIBANK NA LONDON,"2,331.92",29/07/2014
Corporate Accounting,Control Accounts,Other Contributions,20008974,COLLEGE FARMS DEVELOPMENT LTD,"1,846.07",11/07/2014
Corporate Accounting,Control Accounts,Other Establishments - Third Party Payment,20009671,TFL,"192,875.47",23/07/2014
Corporate Accounting,Control Accounts,Other Local Authorities - Third Party Payment,EBX0011713,GREATER LONDON AUTHORITY,"3,841,043.70",01/07/2014
Corporate Accounting,Control Accounts,Other Local Authorities - Third Party Payment,EBX0014048,GREATER LONDON AUTHORITY,"2,330,724.00",17/07/2014
Delivery Units,Adults and Communities,Advertising,10004790,BARNET CITIZENS ADVICE BUREAU,"89,253.86",24/07/2014
Delivery Units,Adults and Communities,Advertising for staff,20009608,TMP (UK) LTD,"1,534.60",23/07/2014
Delivery Units,Adults and Communities,Cleaning and domestic material,20009552,SUPERCLEAN SERVICES WOTHORPE LTD,"1,755.00",18/07/2014
Delivery Units,Adults and Communities,Consultants Fees,10004315,REDACTED - PERSONAL DATA,"2,080.00",15/07/2014
Delivery Units,Adults and Communities,Consultants Fees,10004760,VOICEABILITY,"1,504.00",23/07/2014
Delivery Units,Adults and Communities,Electricity,20005332,MORASHA JEWISH PRIMARY SCHOOL,"1,837.95",09/07/2014
Delivery Units,Adults and Communities,Employee Expenses,10004850,CENTRAL LONDONCOMMUNITY HEALTHCARE,"8,646.15",28/07/2014
Delivery Units,Adults and Communities,Equipment and Materials Purchase ,10004905,OAKLEIGH PHARMACY,"1,929.80",25/07/2014
Delivery Units,Adults and Communities,Government Grants,10004761,VICTIM SUPPORT SERVICES,"6,600.00",21/07/2014
Delivery Units,Adults and Communities,Health authorities - Third Party Payment,10003107,HERTFORDSHIRE PARTNERSHIP,"110,288.00",01/07/2014
Delivery Units,Adults and Communities,Health authorities - Third Party Payment,10003108,HERTFORDSHIRE PARTNERSHIP,"110,288.00",01/07/2014
Delivery Units,Adults and Communities,Health authorities - Third Party Payment,10003109,HERTFORDSHIRE PARTNERSHIP,"110,288.00",01/07/2014
Delivery Units,Adults and Communities,Non Education Staff GPay,10003387,COMMUNITY BARNET,"15,530.08",04/07/2014
Delivery Units,Adults and Communities,Non Education Staff GPay,10003388,COMMUNITY BARNET,"15,530.08",04/07/2014
Delivery Units,Adults and Communities,Other Agencies - Third Party Payments,30019939,AARON COURT CARE HOME,"2,144.91",04/07/2014
Delivery Units,Adults and Communities,Other Agencies - Third Party Payments,30019881,ABBEY RAVENSCROFT PARK NURSING HOME,"2,487.77",04/07/2014
Delivery Units,Adults and Communities,Other Agencies - Third Party Payments,30019882,ABBEY RAVENSCROFT PARK NURSING HOME,"2,487.77",04/07/2014
Delivery Units,Adults and Communities,Other Agencies - Third Party Payments,30019883,ABBEY RAVENSCROFT PARK NURSING HOME,"2,244.12",04/07/2014
Delivery Units,Adults and Communities,Other Agencies - Third Party Payments,30019884,ABBEY RAVENSCROFT PARK NURSING HOME,-531.21,04/07/2014
Delivery Units,Adults and Communities,Other Agencies - Third Party Payments,30019885,ABBEY RAVENSCROFT PARK NURSING HOME,"2,571.43",04/07/2014
Delivery Units,Adults and Communities,Other Agencies - Third Party Payments,30019886,ABBEY RAVENSCROFT PARK NURSING HOME,"2,487.77",04/07/2014
Delivery Units,Adults and Communities,Other Agencies - Third Party Payments,30019887,ABBEY RAVENSCROFT PARK NURSING HOME,"2,487.77",04/07/2014
Delivery Units,Adults and Communities,Other Agencies - Third Party Payments,30019888,ABBEY RAVENSCROFT PARK NURSING HOME,"2,487.90",04/07/2014
Delivery Units,Adults and Communities,Other Agencies - Third Party Payments,30019889,ABBEY RAVENSCROFT PARK NURSING HOME,"-1,123.59",04/07/2014
Delivery Units,Adults and Communities,Other Agencies - Third Party Payments,30019890,ABBEY RAVENSCROFT PARK NURSING HOME,"2,487.77",04/07/2014
Delivery Units,Adults and Communities,Other Agencies - Third Party Payments,30019891,ABBEY RAVENSCROFT PARK NURSING HOME,"2,487.77",04/07/2014
Delivery Units,Adults and Communities,Other Agencies - Third Party Payments,30019892,ABBEY RAVENSCROFT PARK NURSING HOME,"2,785.71",04/07/2014
Delivery Units,Adults and Communities,Other Agencies - Third Party Payments,30019893,ABBEY RAVENSCROFT PARK NURSING HOME,"2,487.77",04/07/2014
Delivery Units,Adults and Communities,Other Agencies - Third Party Payments,30019894,ABBEY RAVENSCROFT PARK NURSING HOME,"2,244.13",04/07/2014
Delivery Units,Adults and Communities,Other Agencies - Third Party Payments,30019895,ABBEY RAVENSCROFT PARK NURSING HOME,"2,487.77",04/07/2014
Delivery Units,Adults and Communities,Other Agencies - Third Party Payments,30019896,ABBEY RAVENSCROFT PARK NURSING HOME,"2,244.13",04/07/2014
Delivery Units,Adults and Communities,Other Agencies - Third Party Payments,30020069,ABBEY RAVENSCROFT PARK NURSING HOME,"2,487.77",08/07/2014
Delivery Units,Adults and Communities,Other Agencies - Third Party Payments,30020070,ABBEY RAVENSCROFT PARK NURSING HOME,"-1,320.17",08/07/2014
Delivery Units,Adults and Communities,Other Agencies - Third Party Payments,30020071,ABBEY RAVENSCROFT PARK NURSING HOME,-739.48,08/07/2014
Delivery Units,Adults and Communities,Other Agencies - Third Party Payments,30020072,ABBEY RAVENSCROFT PARK NURSING HOME,"6,903.42",08/07/2014
Delivery Units,Adults and Communities,Other Agencies - Third Party Payments,30020073,ABBEY RAVENSCROFT PARK NURSING HOME,"9,410.70",08/07/2014
Delivery Units,Adults and Communities,Other Agencies - Third Party Payments,30023129,ABOUT ME CARE & SUPPORT LTD,"1,365.84",23/07/2014
Delivery Units,Adults and Communities,Other Agencies - Third Party Payments,30019673,ACTION ON HEARING LOSS,"4,169.68",03/07/2014
Delivery Units,Adults and Communities,Other Agencies - Third Party Payments,30019675,ACTION ON HEARING LOSS,"5,755.48",03/07/2014
Delivery Units,Adults and Communities,Other Agencies - Third Party Payments,30019677,ACTION ON HEARING LOSS,"4,169.68",03/07/2014
Delivery Units,Adults and Communities,Other Agencies - Third Party Payments,30021216,ADDICTION RECOVERY CENTRE,"2,500.00",11/07/2014
Delivery Units,Adults and Communities,Other Agencies - Third Party Payments,30020059,AGUDAS ISRAEL HOUSING ASSCTN LTD,"3,214.28",11/07/2014
Delivery Units,Adults and Communities,Other Agencies - Third Party Payments,30020060,AGUDAS ISRAEL HOUSING ASSCTN LTD,-531.21,11/07/2014
Delivery Units,Adults and Communities,Other Agencies - Third Party Payments,30020061,AGUDAS ISRAEL HOUSING ASSCTN LTD,"4,071.43",11/07/2014
Delivery Units,Adults and Communities,Other Agencies - Third Party Payments,30020062,AGUDAS ISRAEL HOUSING ASSCTN LTD,"2,446.29",11/07/2014
Delivery Units,Adults and Communities,Other Agencies - Third Party Payments,30020063,AGUDAS ISRAEL HOUSING ASSCTN LTD,"2,640.00",11/07/2014
Delivery Units,Adults and Communities,Other Agencies - Third Party Payments,30019816,ALWYCK HOUSING GROUP,"2,144.91",04/07/2014
Delivery Units,Adults and Communities,Other Agencies - Third Party Payments,30019630,ANCASTER COURT NURSING HOME,"2,487.77",03/07/2014
Delivery Units,Adults and Communities,Other Agencies - Third Party Payments,30020103,APEX CARE HOME LTD,"3,999.42",08/07/2014
Delivery Units,Adults and Communities,Other Agencies - Third Party Payments,30025795,APEX CARE HOME LTD,"4,132.74",31/07/2014
Delivery Units,Adults and Communities,Other Agencies - Third Party Payments,30021082,ARBOURS ASSOCIATION LTD,"1,412.04",09/07/2014
Delivery Units,Adults and Communities,Other Agencies - Third Party Payments,30022296,AREA 51 EDUCATION LTD,"1,501.00",30/07/2014
Delivery Units,Adults and Communities,Other Agencies - Third Party Payments,30022297,AREA 51 EDUCATION LTD,"1,580.00",30/07/2014
Delivery Units,Adults and Communities,Other Agencies - Third Party Payments,30022298,AREA 51 EDUCATION LTD,553.00,30/07/2014
Delivery Units,Adults and Communities,Other Agencies - Third Party Payments,30022299,AREA 51 EDUCATION LTD,632.00,30/07/2014
Delivery Units,Adults and Communities,Other Agencies - Third Party Payments,30022300,AREA 51 EDUCATION LTD,869.00,30/07/2014
Delivery Units,Adults and Communities,Other Agencies - Third Party Payments,30022301,AREA 51 EDUCATION LTD,948.00,30/07/2014
Delivery Units,Adults and Communities,Other Agencies - Third Party Payments,30021136,ARUNDEL CARE SERVICES LTD,"4,256.00",11/07/2014
Delivery Units,Adults and Communities,Other Agencies - Third Party Payments,30019913,ASHBROOKE CARE HOME,"2,357.14",04/07/2014
Delivery Units,Adults and Communities,Other Agencies - Third Party Payments,30018038,ASHDOWN RESIDENTIAL HOME,"4,156.00",03/07/2014
Delivery Units,Adults and Communities,Other Agencies - Third Party Payments,30019923,ASHFIELDS RESIDENTIAL CARE HOME,"6,577.73",04/07/2014
Delivery Units,Adults and Communities,Other Agencies - Third Party Payments,30016126,ASHFIELDS RESIDENTIAL CARE HOME,"2,184.04",10/07/2014
Delivery Units,Adults and Communities,Other Agencies - Third Party Payments,30023063,ASHFIELDS RESIDENTIAL CARE HOME,"2,001.92",23/07/2014
Delivery Units,Adults and Communities,Other Agencies - Third Party Payments,30025705,ASHFIELDS RESIDENTIAL CARE HOME,"2,001.92",31/07/2014
Delivery Units,Adults and Communities,Other Agencies - Third Party Payments,30025707,ASHFIELDS RESIDENTIAL CARE HOME,"2,216.41",31/07/2014
Delivery Units,Adults and Communities,Other Agencies - Third Party Payments,30019827,ASHGALE HOUSE,"4,577.40",04/07/2014
Delivery Units,Adults and Communities,Other Agencies - Third Party Payments,30019938,ASHTON LODGE CARE CENTRE,"2,487.77",04/07/2014
Delivery Units,Adults and Communities,Other Agencies - Third Party Payments,30019940,ASHTON LODGE CARE CENTRE,"2,290.71",04/07/2014
Delivery Units,Adults and Communities,Other Agencies - Third Party Payments,30019957,ASHTON LODGE CARE CENTRE,"2,409.42",04/07/2014
Delivery Units,Adults and Communities,Other Agencies - Third Party Payments,30019971,ASHTON LODGE CARE CENTRE,"2,245.67",04/07/2014
Delivery Units,Adults and Communities,Other Agencies - Third Party Payments,30019981,ASHTON LODGE CARE CENTRE,"2,244.13",04/07/2014
Delivery Units,Adults and Communities,Other Agencies - Third Party Payments,30019982,ASHTON LODGE CARE CENTRE,-714.56,04/07/2014
Delivery Units,Adults and Communities,Other Agencies - Third Party Payments,30020000,ASHTON LODGE CARE CENTRE,"2,245.67",04/07/2014
Delivery Units,Adults and Communities,Other Agencies - Third Party Payments,30020001,ASHTON LODGE CARE CENTRE,-554.23,04/07/2014
Delivery Units,Adults and Communities,Other Agencies - Third Party Payments,30019962,ASPEN VILLAGES LTD,"2,144.91",04/07/2014
Delivery Units,Adults and Communities,Other Agencies - Third Party Payments,30019963,ASPEN VILLAGES LTD,"2,487.77",04/07/2014
Delivery Units,Adults and Communities,Other Agencies - Third Party Payments,30019964,ASPEN VILLAGES LTD,"3,214.29",04/07/2014
Delivery Units,Adults and Communities,Other Agencies - Third Party Payments,30021140,AUTUMN GARDENS,"2,800.00",11/07/2014
Delivery Units,Adults and Communities,Other Agencies - Third Party Payments,30024521,AUTUMN GARDENS,"2,184.04",29/07/2014
Delivery Units,Adults and Communities,Other Agencies - Third Party Payments,30024522,AUTUMN GARDENS,"2,800.00",29/07/2014
Delivery Units,Adults and Communities,Other Agencies - Third Party Payments,30019489,AVERY LODGE,"2,144.91",02/07/2014
Delivery Units,Adults and Communities,Other Agencies - Third Party Payments,30019490,AVERY LODGE,-520.71,02/07/2014
Delivery Units,Adults and Communities,Other Agencies - Third Party Payments,30019491,AVERY LODGE,"2,216.41",02/07/2014
Delivery Units,Adults and Communities,Other Agencies - Third Party Payments,30019492,AVERY LODGE,-538.07,02/07/2014
Delivery Units,Adults and Communities,Other Agencies - Third Party Payments,30019493,AVERY LODGE,"2,682.98",02/07/2014
Delivery Units,Adults and Communities,Other Agencies - Third Party Payments,30019494,AVERY LODGE,-520.71,02/07/2014
Delivery Units,Adults and Communities,Other Agencies - Third Party Payments,30019969,B & M CARE,"2,340.00",04/07/2014
Delivery Units,Adults and Communities,Other Agencies - Third Party Payments,30019970,B & M CARE,-553.46,04/07/2014
Delivery Units,Adults and Communities,Other Agencies - Third Party Payments,30023065,B & M CARE,"2,216.41",23/07/2014
Delivery Units,Adults and Communities,Other Agencies - Third Party Payments,30022252,BARNET HOMES LIMITED,"9,190.31",17/07/2014
Delivery Units,Adults and Communities,Other Agencies - Third Party Payments,30024185,BARNET MENCAP,"17,935.19",24/07/2014
Delivery Units,Adults and Communities,Other Agencies - Third Party Payments,30025527,BARNET MENCAP,"17,935.19",30/07/2014
Delivery Units,Adults and Communities,Other Agencies - Third Party Payments,30024411,BAYTREE COMMUNITY CARE (LONDON) LTD,734.40,28/07/2014
Delivery Units,Adults and Communities,Other Agencies - Third Party Payments,30024412,BAYTREE COMMUNITY CARE (LONDON) LTD,734.40,28/07/2014
Delivery Units,Adults and Communities,Other Agencies - Third Party Payments,30024413,BAYTREE COMMUNITY CARE (LONDON) LTD,734.40,28/07/2014
Delivery Units,Adults and Communities,Other Agencies - Third Party Payments,30024409,BAYTREE COMMUNITY CARE (LONDON) LTD,734.40,28/07/2014
Delivery Units,Adults and Communities,Other Agencies - Third Party Payments,30024514,BAYTREE COMMUNITY CARE (LONDON) LTD,"1,280.00",29/07/2014
Delivery Units,Adults and Communities,Other Agencies - Third Party Payments,30024515,BAYTREE COMMUNITY CARE (LONDON) LTD,"1,280.00",29/07/2014
Delivery Units,Adults and Communities,Other Agencies - Third Party Payments,30024516,BAYTREE COMMUNITY CARE (LONDON) LTD,"1,280.00",29/07/2014
Delivery Units,Adults and Communities,Other Agencies - Third Party Payments,30024517,BAYTREE COMMUNITY CARE (LONDON) LTD,"1,280.00",29/07/2014
Delivery Units,Adults and Communities,Other Agencies - Third Party Payments,30019869,BENSLOW MANAGEMENT COMPANY LIMITED,"2,340.04",04/07/2014
Delivery Units,Adults and Communities,Other Agencies - Third Party Payments,30019672,BIRCHWOOD GRANGE CARE HOME,"2,571.43",03/07/2014
Delivery Units,Adults and Communities,Other Agencies - Third Party Payments,30019910,BRADBURY HOUSE ORGANISATION,"3,349.07",04/07/2014
Delivery Units,Adults and Communities,Other Agencies - Third Party Payments,30022408,BROADREACH HOUSE,"1,390.00",21/07/2014
Delivery Units,Adults and Communities,Other Agencies - Third Party Payments,20008866,BROADWAY LODGE,685.71,18/07/2014
Delivery Units,Adults and Communities,Other Agencies - Third Party Payments,30019809,BROOKDALE HEALTHCARE,"7,554.90",04/07/2014
Delivery Units,Adults and Communities,Other Agencies - Third Party Payments,30019806,BROOKDALE HEALTHCARE,"9,000.00",04/07/2014
Delivery Units,Adults and Communities,Other Agencies - Third Party Payments,30019807,BROOKDALE HEALTHCARE,"9,300.00",04/07/2014
Delivery Units,Adults and Communities,Other Agencies - Third Party Payments,30019808,BROOKDALE HEALTHCARE,"9,361.80",04/07/2014
Delivery Units,Adults and Communities,Other Agencies - Third Party Payments,30021059,BROOKDALE HEALTHCARE,"4,699.40",09/07/2014
Delivery Units,Adults and Communities,Other Agencies - Third Party Payments,30024391,BROOKDALE HEALTHCARE,"4,699.40",28/07/2014
Delivery Units,Adults and Communities,Other Agencies - Third Party Payments,30019629,BRUNSWICK SUPPORTED LIVING SERVICES,"2,372.12",08/07/2014
Delivery Units,Adults and Communities,Other Agencies - Third Party Payments,30019651,BRUNSWICK SUPPORTED LIVING SERVICES,"1,321.60",08/07/2014
Delivery Units,Adults and Communities,Other Agencies - Third Party Payments,30019687,BRUNSWICK SUPPORTED LIVING SERVICES,"1,942.84",08/07/2014
Delivery Units,Adults and Communities,Other Agencies - Third Party Payments,30019707,BRUNSWICK SUPPORTED LIVING SERVICES,"1,400.00",08/07/2014
Delivery Units,Adults and Communities,Other Agencies - Third Party Payments,30021213,BRUNSWICK SUPPORTED LIVING SERVICES,"1,059.51",11/07/2014
Delivery Units,Adults and Communities,Other Agencies - Third Party Payments,30021214,BRUNSWICK SUPPORTED LIVING SERVICES,"1,412.68",11/07/2014
Delivery Units,Adults and Communities,Other Agencies - Third Party Payments,30021215,BRUNSWICK SUPPORTED LIVING SERVICES,"1,412.68",11/07/2014
Delivery Units,Adults and Communities,Other Agencies - Third Party Payments,30019640,BUPA CARE HOMES,"2,144.92",03/07/2014
Delivery Units,Adults and Communities,Other Agencies - Third Party Payments,30019641,BUPA CARE HOMES,-509.79,03/07/2014
Delivery Units,Adults and Communities,Other Agencies - Third Party Payments,30019642,BUPA CARE HOMES,"2,243.40",03/07/2014
Delivery Units,Adults and Communities,Other Agencies - Third Party Payments,30019643,BUPA CARE HOMES,"2,363.87",03/07/2014
Delivery Units,Adults and Communities,Other Agencies - Third Party Payments,30019644,BUPA CARE HOMES,"2,487.77",03/07/2014
Delivery Units,Adults and Communities,Other Agencies - Third Party Payments,30019645,BUPA CARE HOMES,"2,487.77",03/07/2014
Delivery Units,Adults and Communities,Other Agencies - Third Party Payments,30019662,BUPA CARE HOMES,"3,153.69",03/07/2014
Delivery Units,Adults and Communities,Other Agencies - Third Party Payments,30019663,BUPA CARE HOMES,"3,153.69",03/07/2014
Delivery Units,Adults and Communities,Other Agencies - Third Party Payments,30019664,BUPA CARE HOMES,"3,214.29",03/07/2014
Delivery Units,Adults and Communities,Other Agencies - Third Party Payments,30019665,BUPA CARE HOMES,"3,214.29",03/07/2014
Delivery Units,Adults and Communities,Other Agencies - Third Party Payments,30019666,BUPA CARE HOMES,"2,244.12",03/07/2014
Delivery Units,Adults and Communities,Other Agencies - Third Party Payments,30019667,BUPA CARE HOMES,-531.21,03/07/2014
Delivery Units,Adults and Communities,Other Agencies - Third Party Payments,30019668,BUPA CARE HOMES,"2,340.04",03/07/2014
Delivery Units,Adults and Communities,Other Agencies - Third Party Payments,30019669,BUPA CARE HOMES,"2,144.91",03/07/2014
Delivery Units,Adults and Communities,Other Agencies - Third Party Payments,30019793,BUPA CARE HOMES,"2,244.13",04/07/2014
Delivery Units,Adults and Communities,Other Agencies - Third Party Payments,30019794,BUPA CARE HOMES,"2,244.13",04/07/2014
Delivery Units,Adults and Communities,Other Agencies - Third Party Payments,30019973,BUPA CARE HOMES,"2,244.13",04/07/2014
Delivery Units,Adults and Communities,Other Agencies - Third Party Payments,30019975,BUPA CARE HOMES,"2,487.77",04/07/2014
Delivery Units,Adults and Communities,Other Agencies - Third Party Payments,30019976,BUPA CARE HOMES,"5,357.14",04/07/2014
Delivery Units,Adults and Communities,Other Agencies - Third Party Payments,30019977,BUPA CARE HOMES,"2,250.64",04/07/2014
Delivery Units,Adults and Communities,Other Agencies - Third Party Payments,30019796,BUPA CARE HOMES,"4,686.43",04/07/2014
Delivery Units,Adults and Communities,Other Agencies - Third Party Payments,30021172,BUPA CARE HOMES,"2,318.93",11/07/2014
Delivery Units,Adults and Communities,Other Agencies - Third Party Payments,30021173,BUPA CARE HOMES,"2,244.13",11/07/2014
Delivery Units,Adults and Communities,Other Agencies - Third Party Payments,30021349,BUPA CARE HOMES,"2,244.13",14/07/2014
Delivery Units,Adults and Communities,Other Agencies - Third Party Payments,30021350,BUPA CARE HOMES,"2,244.13",14/07/2014
Delivery Units,Adults and Communities,Other Agencies - Third Party Payments,30021352,BUPA CARE HOMES,897.65,14/07/2014
Delivery Units,Adults and Communities,Other Agencies - Third Party Payments,30021351,BUPA CARE HOMES,"2,244.13",14/07/2014
Delivery Units,Adults and Communities,Other Agencies - Third Party Payments,30022508,BUPA CARE HOMES,"2,244.13",21/07/2014
Delivery Units,Adults and Communities,Other Agencies - Third Party Payments,30022509,BUPA CARE HOMES,"2,829.73",21/07/2014
Delivery Units,Adults and Communities,Other Agencies - Third Party Payments,30022510,BUPA CARE HOMES,"2,227.80",21/07/2014
Delivery Units,Adults and Communities,Other Agencies - Third Party Payments,30023067,BUPA CARE HOMES,"2,700.00",23/07/2014
Delivery Units,Adults and Communities,Other Agencies - Third Party Payments,30025712,BUPA CARE HOMES,"2,216.41",31/07/2014
Delivery Units,Adults and Communities,Other Agencies - Third Party Payments,30025713,BUPA CARE HOMES,-526.78,31/07/2014
Delivery Units,Adults and Communities,Other Agencies - Third Party Payments,30025714,BUPA CARE HOMES,"2,318.18",31/07/2014
Delivery Units,Adults and Communities,Other Agencies - Third Party Payments,30025715,BUPA CARE HOMES,"2,442.67",31/07/2014
Delivery Units,Adults and Communities,Other Agencies - Third Party Payments,30025716,BUPA CARE HOMES,"2,570.70",31/07/2014
Delivery Units,Adults and Communities,Other Agencies - Third Party Payments,30025717,BUPA CARE HOMES,"2,570.70",31/07/2014
Delivery Units,Adults and Communities,Other Agencies - Third Party Payments,30021333,BUPA NURSING HOMES LTD - ARKLEY,"2,559.55",14/07/2014
Delivery Units,Adults and Communities,Other Agencies - Third Party Payments,30021334,BUPA NURSING HOMES LTD - ARKLEY,"2,094.52",14/07/2014
Delivery Units,Adults and Communities,Other Agencies - Third Party Payments,30021336,BUPA NURSING HOMES LTD - ARKLEY,"2,094.52",14/07/2014
Delivery Units,Adults and Communities,Other Agencies - Third Party Payments,30021337,BUPA NURSING HOMES LTD - ARKLEY,500.00,14/07/2014
Delivery Units,Adults and Communities,Other Agencies - Third Party Payments,30021338,BUPA NURSING HOMES LTD - ARKLEY,"2,094.52",14/07/2014
Delivery Units,Adults and Communities,Other Agencies - Third Party Payments,30021339,BUPA NURSING HOMES LTD - ARKLEY,"2,094.52",14/07/2014
Delivery Units,Adults and Communities,Other Agencies - Third Party Payments,30021340,BUPA NURSING HOMES LTD - ARKLEY,"2,094.52",14/07/2014
Delivery Units,Adults and Communities,Other Agencies - Third Party Payments,30021342,BUPA NURSING HOMES LTD - ARKLEY,"2,600.00",14/07/2014
Delivery Units,Adults and Communities,Other Agencies - Third Party Payments,30021343,BUPA NURSING HOMES LTD - ARKLEY,"2,094.52",14/07/2014
Delivery Units,Adults and Communities,Other Agencies - Third Party Payments,30021344,BUPA NURSING HOMES LTD - ARKLEY,"2,094.52",14/07/2014
Delivery Units,Adults and Communities,Other Agencies - Third Party Payments,30021345,BUPA NURSING HOMES LTD - ARKLEY,"2,001.92",14/07/2014
Delivery Units,Adults and Communities,Other Agencies - Third Party Payments,30022495,BUPA NURSING HOMES LTD - ARKLEY,523.63,21/07/2014
Delivery Units,Adults and Communities,Other Agencies - Third Party Payments,30022511,BY THE BRIDGE LTD,"3,214.29",21/07/2014
Delivery Units,Adults and Communities,Other Agencies - Third Party Payments,30022428,CAMPHILL DEVON COMMUNITY LIMITED,"4,508.00",21/07/2014
Delivery Units,Adults and Communities,Other Agencies - Third Party Payments,30019433,CANDLE COURT NURSING HOME,"3,642.86",02/07/2014
Delivery Units,Adults and Communities,Other Agencies - Third Party Payments,30025630,CANDLE COURT NURSING HOME,"3,764.29",31/07/2014
Delivery Units,Adults and Communities,Other Agencies - Third Party Payments,30019658,CARE ASSIST LIMITED,"4,071.42",03/07/2014
Delivery Units,Adults and Communities,Other Agencies - Third Party Payments,30019659,CARE ASSIST LIMITED,"4,071.42",03/07/2014
Delivery Units,Adults and Communities,Other Agencies - Third Party Payments,30019422,CARE WORLDWIDE (LONDON) LTD,"2,680.88",02/07/2014
Delivery Units,Adults and Communities,Other Agencies - Third Party Payments,30019452,CARE WORLDWIDE (LONDON) LTD,"2,680.88",02/07/2014
Delivery Units,Adults and Communities,Other Agencies - Third Party Payments,30019453,CARE WORLDWIDE (LONDON) LTD,"4,246.53",02/07/2014
Delivery Units,Adults and Communities,Other Agencies - Third Party Payments,30019454,CARE WORLDWIDE (LONDON) LTD,"2,685.98",02/07/2014
Delivery Units,Adults and Communities,Other Agencies - Third Party Payments,30024033,CARE WORLDWIDE (LONDON) LTD,"2,641.32",24/07/2014
Delivery Units,Adults and Communities,Other Agencies - Third Party Payments,30024034,CARE WORLDWIDE (LONDON) LTD,"1,509.35",24/07/2014
Delivery Units,Adults and Communities,Other Agencies - Third Party Payments,30024443,CARE WORLDWIDE (LONDON) LTD,"2,680.88",28/07/2014
Delivery Units,Adults and Communities,Other Agencies - Third Party Payments,30024444,CARE WORLDWIDE (LONDON) LTD,"2,680.88",28/07/2014
Delivery Units,Adults and Communities,Other Agencies - Third Party Payments,30024445,CARE WORLDWIDE (LONDON) LTD,"3,936.46",28/07/2014
Delivery Units,Adults and Communities,Other Agencies - Third Party Payments,30024446,CARE WORLDWIDE (LONDON) LTD,"4,246.53",28/07/2014
Delivery Units,Adults and Communities,Other Agencies - Third Party Payments,30024447,CARE WORLDWIDE (LONDON) LTD,"2,685.98",28/07/2014
Delivery Units,Adults and Communities,Other Agencies - Third Party Payments,30019596,CAREBASE BURNT OAK 2006 LIMITED,-785.71,04/07/2014
Delivery Units,Adults and Communities,Other Agencies - Third Party Payments,30019897,CAREBASE BURNT OAK 2006 LIMITED,"2,244.13",04/07/2014
Delivery Units,Adults and Communities,Other Agencies - Third Party Payments,30019898,CAREBASE BURNT OAK 2006 LIMITED,"2,487.77",04/07/2014
Delivery Units,Adults and Communities,Other Agencies - Third Party Payments,30019899,CAREBASE BURNT OAK 2006 LIMITED,"2,244.13",04/07/2014
Delivery Units,Adults and Communities,Other Agencies - Third Party Payments,30019900,CAREBASE BURNT OAK 2006 LIMITED,"2,487.77",04/07/2014
Delivery Units,Adults and Communities,Other Agencies - Third Party Payments,30019901,CAREBASE BURNT OAK 2006 LIMITED,"2,505.00",04/07/2014
Delivery Units,Adults and Communities,Other Agencies - Third Party Payments,30019902,CAREBASE BURNT OAK 2006 LIMITED,"2,487.77",04/07/2014
Delivery Units,Adults and Communities,Other Agencies - Third Party Payments,30019903,CAREBASE BURNT OAK 2006 LIMITED,"2,244.13",04/07/2014
Delivery Units,Adults and Communities,Other Agencies - Third Party Payments,30019904,CAREBASE BURNT OAK 2006 LIMITED,"2,227.80",04/07/2014
Delivery Units,Adults and Communities,Other Agencies - Third Party Payments,30019905,CAREBASE BURNT OAK 2006 LIMITED,"2,245.67",04/07/2014
Delivery Units,Adults and Communities,Other Agencies - Third Party Payments,30019906,CAREBASE BURNT OAK 2006 LIMITED,"2,340.04",04/07/2014
Delivery Units,Adults and Communities,Other Agencies - Third Party Payments,30019907,CAREBASE BURNT OAK 2006 LIMITED,"2,487.77",04/07/2014
Delivery Units,Adults and Communities,Other Agencies - Third Party Payments,30019908,CAREBASE BURNT OAK 2006 LIMITED,"2,340.04",04/07/2014
Delivery Units,Adults and Communities,Other Agencies - Third Party Payments,30019909,CAREBASE BURNT OAK 2006 LIMITED,"2,357.14",04/07/2014
Delivery Units,Adults and Communities,Other Agencies - Third Party Payments,30022087,CAREBASE BURNT OAK 2006 LIMITED,"1,000.96",16/07/2014
Delivery Units,Adults and Communities,Other Agencies - Third Party Payments,30022088,CAREBASE BURNT OAK 2006 LIMITED,500.48,16/07/2014
Delivery Units,Adults and Communities,Other Agencies - Third Party Payments,30022465,CAREBASE BURNT OAK 2006 LIMITED,"2,418.04",21/07/2014
Delivery Units,Adults and Communities,Other Agencies - Third Party Payments,30019766,CARETECH COMMUNITY SERVICES LTD,"4,628.57",03/07/2014
Delivery Units,Adults and Communities,Other Agencies - Third Party Payments,30019714,CARETECH COMMUNITY SERVICES LTD,"4,620.00",03/07/2014
Delivery Units,Adults and Communities,Other Agencies - Third Party Payments,30019716,CARETECH COMMUNITY SERVICES LTD,"5,700.00",03/07/2014
Delivery Units,Adults and Communities,Other Agencies - Third Party Payments,30019718,CARETECH COMMUNITY SERVICES LTD,"8,159.44",03/07/2014
Delivery Units,Adults and Communities,Other Agencies - Third Party Payments,30019719,CARETECH COMMUNITY SERVICES LTD,"6,439.16",03/07/2014
Delivery Units,Adults and Communities,Other Agencies - Third Party Payments,30019722,CARETECH COMMUNITY SERVICES LTD,"4,478.57",03/07/2014
Delivery Units,Adults and Communities,Other Agencies - Third Party Payments,30019723,CARETECH COMMUNITY SERVICES LTD,"4,478.57",03/07/2014
Delivery Units,Adults and Communities,Other Agencies - Third Party Payments,30019724,CARETECH COMMUNITY SERVICES LTD,"4,478.57",03/07/2014
Delivery Units,Adults and Communities,Other Agencies - Third Party Payments,30019725,CARETECH COMMUNITY SERVICES LTD,"4,478.57",03/07/2014
Delivery Units,Adults and Communities,Other Agencies - Third Party Payments,30019726,CARETECH COMMUNITY SERVICES LTD,"6,339.90",03/07/2014
Delivery Units,Adults and Communities,Other Agencies - Third Party Payments,30019727,CARETECH COMMUNITY SERVICES LTD,-531.21,03/07/2014
Delivery Units,Adults and Communities,Other Agencies - Third Party Payments,30019728,CARETECH COMMUNITY SERVICES LTD,789.81,03/07/2014
Delivery Units,Adults and Communities,Other Agencies - Third Party Payments,30019729,CARETECH COMMUNITY SERVICES LTD,"4,496.66",03/07/2014
Delivery Units,Adults and Communities,Other Agencies - Third Party Payments,30019730,CARETECH COMMUNITY SERVICES LTD,"4,661.79",03/07/2014
Delivery Units,Adults and Communities,Other Agencies - Third Party Payments,30019732,CARETECH COMMUNITY SERVICES LTD,699.30,03/07/2014
Delivery Units,Adults and Communities,Other Agencies - Third Party Payments,30019733,CARETECH COMMUNITY SERVICES LTD,"7,375.71",03/07/2014
Delivery Units,Adults and Communities,Other Agencies - Third Party Payments,30019734,CARETECH COMMUNITY SERVICES LTD,"6,339.90",03/07/2014
Delivery Units,Adults and Communities,Other Agencies - Third Party Payments,30019735,CARETECH COMMUNITY SERVICES LTD,-531.21,03/07/2014
Delivery Units,Adults and Communities,Other Agencies - Third Party Payments,30019736,CARETECH COMMUNITY SERVICES LTD,789.81,03/07/2014
Delivery Units,Adults and Communities,Other Agencies - Third Party Payments,30019737,CARETECH COMMUNITY SERVICES LTD,"4,478.57",03/07/2014
Delivery Units,Adults and Communities,Other Agencies - Third Party Payments,30019738,CARETECH COMMUNITY SERVICES LTD,"6,439.16",03/07/2014
Delivery Units,Adults and Communities,Other Agencies - Third Party Payments,30019740,CARETECH COMMUNITY SERVICES LTD,"7,052.57",03/07/2014
Delivery Units,Adults and Communities,Other Agencies - Third Party Payments,30019742,CARETECH COMMUNITY SERVICES LTD,889.50,03/07/2014
Delivery Units,Adults and Communities,Other Agencies - Third Party Payments,30019743,CARETECH COMMUNITY SERVICES LTD,"6,728.10",03/07/2014
Delivery Units,Adults and Communities,Other Agencies - Third Party Payments,30019745,CARETECH COMMUNITY SERVICES LTD,"4,896.17",03/07/2014
Delivery Units,Adults and Communities,Other Agencies - Third Party Payments,30019747,CARETECH COMMUNITY SERVICES LTD,"1,053.04",03/07/2014
Delivery Units,Adults and Communities,Other Agencies - Third Party Payments,30019748,CARETECH COMMUNITY SERVICES LTD,"6,124.29",03/07/2014
Delivery Units,Adults and Communities,Other Agencies - Third Party Payments,30019750,CARETECH COMMUNITY SERVICES LTD,"5,292.51",03/07/2014
Delivery Units,Adults and Communities,Other Agencies - Third Party Payments,30019752,CARETECH COMMUNITY SERVICES LTD,"5,635.71",03/07/2014
Delivery Units,Adults and Communities,Other Agencies - Third Party Payments,30019754,CARETECH COMMUNITY SERVICES LTD,"5,292.51",03/07/2014
Delivery Units,Adults and Communities,Other Agencies - Third Party Payments,30019756,CARETECH COMMUNITY SERVICES LTD,"1,053.04",03/07/2014
Delivery Units,Adults and Communities,Other Agencies - Third Party Payments,30019757,CARETECH COMMUNITY SERVICES LTD,"4,235.91",03/07/2014
Delivery Units,Adults and Communities,Other Agencies - Third Party Payments,30019759,CARETECH COMMUNITY SERVICES LTD,"5,794.29",03/07/2014
Delivery Units,Adults and Communities,Other Agencies - Third Party Payments,30019763,CARETECH COMMUNITY SERVICES LTD,"1,053.04",03/07/2014
Delivery Units,Adults and Communities,Other Agencies - Third Party Payments,30019764,CARETECH COMMUNITY SERVICES LTD,"2,506.20",03/07/2014
Delivery Units,Adults and Communities,Other Agencies - Third Party Payments,30019765,CARETECH COMMUNITY SERVICES LTD,"2,080.59",03/07/2014
Delivery Units,Adults and Communities,Other Agencies - Third Party Payments,30019768,CARETECH COMMUNITY SERVICES LTD,"1,478.57",03/07/2014
Delivery Units,Adults and Communities,Other Agencies - Third Party Payments,30019769,CARETECH COMMUNITY SERVICES LTD,"6,844.29",03/07/2014
Delivery Units,Adults and Communities,Other Agencies - Third Party Payments,30020036,CARETECH COMMUNITY SERVICES LTD,"5,192.06",04/07/2014
Delivery Units,Adults and Communities,Other Agencies - Third Party Payments,30020323,CARETECH COMMUNITY SERVICES LTD,889.50,08/07/2014
Delivery Units,Adults and Communities,Other Agencies - Third Party Payments,30019761,CARETECH COMMUNITY SERVICES LTD,"4,896.30",23/07/2014
Delivery Units,Adults and Communities,Other Agencies - Third Party Payments,30019762,CARETECH COMMUNITY SERVICES LTD,-531.21,23/07/2014
Delivery Units,Adults and Communities,Other Agencies - Third Party Payments,30019455,CARLTON COURT (TLC GROUP),600.15,02/07/2014
Delivery Units,Adults and Communities,Other Agencies - Third Party Payments,30019456,CARLTON COURT (TLC GROUP),"3,720.93",02/07/2014
Delivery Units,Adults and Communities,Other Agencies - Third Party Payments,30019457,CARLTON COURT (TLC GROUP),"2,144.91",02/07/2014
Delivery Units,Adults and Communities,Other Agencies - Third Party Payments,30019458,CARLTON COURT (TLC GROUP),"2,144.91",02/07/2014
Delivery Units,Adults and Communities,Other Agencies - Third Party Payments,30019459,CARLTON COURT (TLC GROUP),"2,244.13",02/07/2014
Delivery Units,Adults and Communities,Other Agencies - Third Party Payments,30019460,CARLTON COURT (TLC GROUP),"2,244.13",02/07/2014
Delivery Units,Adults and Communities,Other Agencies - Third Party Payments,30019461,CARLTON COURT (TLC GROUP),"2,340.04",02/07/2014
Delivery Units,Adults and Communities,Other Agencies - Third Party Payments,30019462,CARLTON COURT (TLC GROUP),-531.21,02/07/2014
Delivery Units,Adults and Communities,Other Agencies - Third Party Payments,30019463,CARLTON COURT (TLC GROUP),"2,487.78",02/07/2014
Delivery Units,Adults and Communities,Other Agencies - Third Party Payments,30019464,CARLTON COURT (TLC GROUP),-539.19,02/07/2014
Delivery Units,Adults and Communities,Other Agencies - Third Party Payments,30019465,CARLTON COURT (TLC GROUP),"2,244.12",02/07/2014
Delivery Units,Adults and Communities,Other Agencies - Third Party Payments,30019466,CARLTON COURT (TLC GROUP),-610.11,02/07/2014
Delivery Units,Adults and Communities,Other Agencies - Third Party Payments,30019467,CARLTON COURT (TLC GROUP),"2,487.77",02/07/2014
Delivery Units,Adults and Communities,Other Agencies - Third Party Payments,30019468,CARLTON COURT (TLC GROUP),"2,487.77",02/07/2014
Delivery Units,Adults and Communities,Other Agencies - Third Party Payments,30019469,CARLTON COURT (TLC GROUP),"2,487.77",02/07/2014
Delivery Units,Adults and Communities,Other Agencies - Third Party Payments,30019470,CARLTON COURT (TLC GROUP),"2,487.77",02/07/2014
Delivery Units,Adults and Communities,Other Agencies - Third Party Payments,30019471,CARLTON COURT (TLC GROUP),"2,487.77",02/07/2014
Delivery Units,Adults and Communities,Other Agencies - Third Party Payments,30019472,CARLTON COURT (TLC GROUP),"2,244.13",02/07/2014
Delivery Units,Adults and Communities,Other Agencies - Third Party Payments,30019473,CARLTON COURT (TLC GROUP),"2,487.77",02/07/2014
Delivery Units,Adults and Communities,Other Agencies - Third Party Payments,30019474,CARLTON COURT (TLC GROUP),"2,487.77",02/07/2014
Delivery Units,Adults and Communities,Other Agencies - Third Party Payments,30019475,CARLTON COURT (TLC GROUP),"2,487.77",02/07/2014
Delivery Units,Adults and Communities,Other Agencies - Third Party Payments,30019476,CARLTON COURT (TLC GROUP),"2,487.77",02/07/2014
Delivery Units,Adults and Communities,Other Agencies - Third Party Payments,30019477,CARLTON COURT (TLC GROUP),"2,244.13",02/07/2014
Delivery Units,Adults and Communities,Other Agencies - Third Party Payments,30019478,CARLTON COURT (TLC GROUP),"2,487.77",02/07/2014
Delivery Units,Adults and Communities,Other Agencies - Third Party Payments,30019479,CARLTON COURT (TLC GROUP),"2,244.13",02/07/2014
Delivery Units,Adults and Communities,Other Agencies - Third Party Payments,30019480,CARLTON COURT (TLC GROUP),"2,487.77",02/07/2014
Delivery Units,Adults and Communities,Other Agencies - Third Party Payments,30019481,CARLTON COURT (TLC GROUP),-855.43,02/07/2014
Delivery Units,Adults and Communities,Other Agencies - Third Party Payments,30019482,CARLTON COURT (TLC GROUP),"7,098.12",02/07/2014
Delivery Units,Adults and Communities,Other Agencies - Third Party Payments,30019483,CARLTON COURT (TLC GROUP),"2,418.04",02/07/2014
Delivery Units,Adults and Communities,Other Agencies - Third Party Payments,30019484,CARLTON COURT (TLC GROUP),"2,340.04",02/07/2014
Delivery Units,Adults and Communities,Other Agencies - Third Party Payments,30019485,CARLTON COURT (TLC GROUP),"2,340.04",02/07/2014
Delivery Units,Adults and Communities,Other Agencies - Third Party Payments,30019486,CARLTON COURT (TLC GROUP),"2,144.91",02/07/2014
Delivery Units,Adults and Communities,Other Agencies - Third Party Payments,30025491,CARLTON COURT (TLC GROUP),"2,021.78",30/07/2014
Delivery Units,Adults and Communities,Other Agencies - Third Party Payments,30025496,CARLTON COURT (TLC GROUP),"2,964.05",30/07/2014
Delivery Units,Adults and Communities,Other Agencies - Third Party Payments,30025497,CARLTON COURT (TLC GROUP),"2,418.04",30/07/2014
Delivery Units,Adults and Communities,Other Agencies - Third Party Payments,30025498,CARLTON COURT (TLC GROUP),548.92,30/07/2014
Delivery Units,Adults and Communities,Other Agencies - Third Party Payments,30025500,CARLTON COURT (TLC GROUP),"4,071.43",30/07/2014
Delivery Units,Adults and Communities,Other Agencies - Third Party Payments,30025501,CARLTON COURT (TLC GROUP),"1,170.02",30/07/2014
Delivery Units,Adults and Communities,Other Agencies - Third Party Payments,30025502,CARLTON COURT (TLC GROUP),"2,021.78",30/07/2014
Delivery Units,Adults and Communities,Other Agencies - Third Party Payments,30025504,CARLTON COURT (TLC GROUP),548.92,30/07/2014
Delivery Units,Adults and Communities,Other Agencies - Third Party Payments,30019846,CARMEN LODGE RESIDENTIAL HOME,"2,651.10",04/07/2014
Delivery Units,Adults and Communities,Other Agencies - Third Party Payments,30020074,CARTREF CARE HOME,"2,001.92",08/07/2014
Delivery Units,Adults and Communities,Other Agencies - Third Party Payments,30020289,CATHERINE LODGE,"2,184.04",08/07/2014
Delivery Units,Adults and Communities,Other Agencies - Third Party Payments,30022405,CATHERINE LODGE,"2,660.00",21/07/2014
Delivery Units,Adults and Communities,Other Agencies - Third Party Payments,30022406,CATHERINE LODGE,"2,184.04",21/07/2014
Delivery Units,Adults and Communities,Other Agencies - Third Party Payments,30022318,CAVENDISH RADIO CARS,811.26,17/07/2014
Delivery Units,Adults and Communities,Other Agencies - Third Party Payments,30019637,CEDARS NURSING HOME,"2,244.13",03/07/2014
Delivery Units,Adults and Communities,Other Agencies - Third Party Payments,30019924,CEDARS NURSING HOME,"2,487.77",04/07/2014
Delivery Units,Adults and Communities,Other Agencies - Third Party Payments,30019925,CEDARS NURSING HOME,"2,487.77",04/07/2014
Delivery Units,Adults and Communities,Other Agencies - Third Party Payments,30019926,CEDARS NURSING HOME,"2,487.77",04/07/2014
Delivery Units,Adults and Communities,Other Agencies - Third Party Payments,30019927,CEDARS NURSING HOME,"2,244.13",04/07/2014
Delivery Units,Adults and Communities,Other Agencies - Third Party Payments,30019928,CEDARS NURSING HOME,"2,282.10",04/07/2014
Delivery Units,Adults and Communities,Other Agencies - Third Party Payments,30019929,CEDARS NURSING HOME,"2,487.77",04/07/2014
Delivery Units,Adults and Communities,Other Agencies - Third Party Payments,30019930,CEDARS NURSING HOME,"2,487.77",04/07/2014
Delivery Units,Adults and Communities,Other Agencies - Third Party Payments,30019931,CEDARS NURSING HOME,"2,487.77",04/07/2014
Delivery Units,Adults and Communities,Other Agencies - Third Party Payments,30019932,CEDARS NURSING HOME,"2,244.13",04/07/2014
Delivery Units,Adults and Communities,Other Agencies - Third Party Payments,30019933,CEDARS NURSING HOME,"2,487.77",04/07/2014
Delivery Units,Adults and Communities,Other Agencies - Third Party Payments,30019934,CEDARS NURSING HOME,"3,815.19",04/07/2014
Delivery Units,Adults and Communities,Other Agencies - Third Party Payments,30019935,CEDARS NURSING HOME,"2,282.10",04/07/2014
Delivery Units,Adults and Communities,Other Agencies - Third Party Payments,30019936,CEDARS NURSING HOME,"2,487.77",04/07/2014
Delivery Units,Adults and Communities,Other Agencies - Third Party Payments,30019937,CEDARS NURSING HOME,"2,340.04",04/07/2014
Delivery Units,Adults and Communities,Other Agencies - Third Party Payments,30020302,CEDARS NURSING HOME,"2,487.77",08/07/2014
Delivery Units,Adults and Communities,Other Agencies - Third Party Payments,30021072,CENTRAL MIDDLESEX SKILLS,723.68,09/07/2014
Delivery Units,Adults and Communities,Other Agencies - Third Party Payments,30021074,CENTRAL MIDDLESEX SKILLS,"1,175.98",09/07/2014
Delivery Units,Adults and Communities,Other Agencies - Third Party Payments,30021135,CENTRAL MIDDLESEX SKILLS,"1,175.98",11/07/2014
Delivery Units,Adults and Communities,Other Agencies - Third Party Payments,30019569,CHARING GARDENS LTD,"2,056.07",03/07/2014
Delivery Units,Adults and Communities,Other Agencies - Third Party Payments,30019851,CHATSWORTH CARE,"10,264.29",04/07/2014
Delivery Units,Adults and Communities,Other Agencies - Third Party Payments,30022320,CHEQUERS TRANSPORT LIMITED,956.28,17/07/2014
Delivery Units,Adults and Communities,Other Agencies - Third Party Payments,30019858,CHOICE CARE GROUP,"8,454.90",04/07/2014
Delivery Units,Adults and Communities,Other Agencies - Third Party Payments,30024580,CLARE HOUSE NURSING HOME,"2,094.52",29/07/2014
Delivery Units,Adults and Communities,Other Agencies - Third Party Payments,30020079,CLOVELLY HOUSE RESID. HOME LTD,"2,600.00",08/07/2014
Delivery Units,Adults and Communities,Other Agencies - Third Party Payments,30020080,CLOVELLY HOUSE RESID. HOME LTD,"2,184.04",08/07/2014
Delivery Units,Adults and Communities,Other Agencies - Third Party Payments,30020081,CLOVELLY HOUSE RESID. HOME LTD,"2,184.04",08/07/2014
Delivery Units,Adults and Communities,Other Agencies - Third Party Payments,30020083,CLOVELLY HOUSE RESID. HOME LTD,"2,184.04",08/07/2014
Delivery Units,Adults and Communities,Other Agencies - Third Party Payments,30020084,CLOVELLY HOUSE RESID. HOME LTD,"2,184.04",08/07/2014
Delivery Units,Adults and Communities,Other Agencies - Third Party Payments,30020086,CLOVELLY HOUSE RESID. HOME LTD,-713.04,08/07/2014
Delivery Units,Adults and Communities,Other Agencies - Third Party Payments,30020082,CLOVELLY HOUSE RESID. HOME LTD,"1,872.64",08/07/2014
Delivery Units,Adults and Communities,Other Agencies - Third Party Payments,30022091,CLOVELLY HOUSE RESID. HOME LTD,"1,360.00",16/07/2014
Delivery Units,Adults and Communities,Other Agencies - Third Party Payments,30022092,CLOVELLY HOUSE RESID. HOME LTD,"2,380.00",16/07/2014
Delivery Units,Adults and Communities,Other Agencies - Third Party Payments,30022093,CLOVELLY HOUSE RESID. HOME LTD,"2,380.00",16/07/2014
Delivery Units,Adults and Communities,Other Agencies - Third Party Payments,30022094,CLOVELLY HOUSE RESID. HOME LTD,"2,380.00",16/07/2014
Delivery Units,Adults and Communities,Other Agencies - Third Party Payments,30019425,CMG HOMES LTD,"2,097.96",02/07/2014
Delivery Units,Adults and Communities,Other Agencies - Third Party Payments,30019427,CMG HOMES LTD,"2,097.96",02/07/2014
Delivery Units,Adults and Communities,Other Agencies - Third Party Payments,30019429,CMG HOMES LTD,"3,990.12",02/07/2014
Delivery Units,Adults and Communities,Other Agencies - Third Party Payments,30019836,COMPLETE CARE SERVICES LTD,"5,251.80",04/07/2014
Delivery Units,Adults and Communities,Other Agencies - Third Party Payments,30019704,CONNIFERS CARE LTD,"8,270.74",03/07/2014
Delivery Units,Adults and Communities,Other Agencies - Third Party Payments,20008972,CO-OPERATIVE FUNERALCARE,966.80,04/07/2014
Delivery Units,Adults and Communities,Other Agencies - Third Party Payments,30019710,COURTLANDS,"2,785.80",07/07/2014
Delivery Units,Adults and Communities,Other Agencies - Third Party Payments,30019852,CRAEGMOOR,"3,665.19",04/07/2014
Delivery Units,Adults and Communities,Other Agencies - Third Party Payments,30025808,CRANSTOUN DRUG SERVICES,780.00,31/07/2014
Delivery Units,Adults and Communities,Other Agencies - Third Party Payments,30020106,CYGNET HEALTH CARE,"6,485.04",28/07/2014
Delivery Units,Adults and Communities,Other Agencies - Third Party Payments,30022329,DABB PAA,"1,092.96",17/07/2014
Delivery Units,Adults and Communities,Other Agencies - Third Party Payments,30025618,DANA CARE LIMITED,"4,951.27",31/07/2014
Delivery Units,Adults and Communities,Other Agencies - Third Party Payments,30025625,DANA CARE LIMITED,"10,101.57",31/07/2014
Delivery Units,Adults and Communities,Other Agencies - Third Party Payments,30025642,DANA CARE LIMITED,"8,176.07",31/07/2014
Delivery Units,Adults and Communities,Other Agencies - Third Party Payments,30025662,DANA CARE LIMITED,"9,902.29",31/07/2014
Delivery Units,Adults and Communities,Other Agencies - Third Party Payments,30024265,DEVELOPMENT AND LEARNING OPPORTUNIT,"1,056.00",25/07/2014
Delivery Units,Adults and Communities,Other Agencies - Third Party Payments,30024270,DEVELOPMENT AND LEARNING OPPORTUNIT,908.28,25/07/2014
Delivery Units,Adults and Communities,Other Agencies - Third Party Payments,20009901,DEVELOPMENT AND LEARNING OPPORTUNIT,652.40,30/07/2014
Delivery Units,Adults and Communities,Other Agencies - Third Party Payments,20009902,DEVELOPMENT AND LEARNING OPPORTUNIT,500.00,30/07/2014
Delivery Units,Adults and Communities,Other Agencies - Third Party Payments,30019534,DILLON CARE LTD,"3,900.00",02/07/2014
Delivery Units,Adults and Communities,Other Agencies - Third Party Payments,30019535,DILLON CARE LTD,"3,900.00",02/07/2014
Delivery Units,Adults and Communities,Other Agencies - Third Party Payments,30019536,DILLON CARE LTD,"3,900.00",02/07/2014
Delivery Units,Adults and Communities,Other Agencies - Third Party Payments,30019537,DILLON CARE LTD,"3,900.00",02/07/2014
Delivery Units,Adults and Communities,Other Agencies - Third Party Payments,30019506,DIMENSIONS UK,"2,128.00",02/07/2014
Delivery Units,Adults and Communities,Other Agencies - Third Party Payments,30019512,DIMENSIONS UK,"1,541.00",02/07/2014
Delivery Units,Adults and Communities,Other Agencies - Third Party Payments,30020015,DIMENSIONS UK,"1,196.80",04/07/2014
Delivery Units,Adults and Communities,Other Agencies - Third Party Payments,30020017,DIMENSIONS UK,729.30,04/07/2014
Delivery Units,Adults and Communities,Other Agencies - Third Party Payments,30020018,DIMENSIONS UK,"1,589.50",04/07/2014
Delivery Units,Adults and Communities,Other Agencies - Third Party Payments,30020019,DIMENSIONS UK,"1,570.80",04/07/2014
Delivery Units,Adults and Communities,Other Agencies - Third Party Payments,20009192,DIMENSIONS UK,"23,748.16",09/07/2014
Delivery Units,Adults and Communities,Other Agencies - Third Party Payments,30021094,DIMENSIONS UK,"7,950.68",09/07/2014
Delivery Units,Adults and Communities,Other Agencies - Third Party Payments,30021179,DIMENSIONS UK,"4,495.76",11/07/2014
Delivery Units,Adults and Communities,Other Agencies - Third Party Payments,30021180,DIMENSIONS UK,"4,495.76",11/07/2014
Delivery Units,Adults and Communities,Other Agencies - Third Party Payments,30022115,DIMENSIONS UK,965.60,16/07/2014
Delivery Units,Adults and Communities,Other Agencies - Third Party Payments,30022122,DIMENSIONS UK,"4,815.16",16/07/2014
Delivery Units,Adults and Communities,Other Agencies - Third Party Payments,30022124,DIMENSIONS UK,"4,495.76",16/07/2014
Delivery Units,Adults and Communities,Other Agencies - Third Party Payments,30024453,DIMENSIONS UK,"1,541.00",28/07/2014
Delivery Units,Adults and Communities,Other Agencies - Third Party Payments,30024605,DIMENSIONS UK,"2,128.00",29/07/2014
Delivery Units,Adults and Communities,Other Agencies - Third Party Payments,30024615,DIMENSIONS UK,"6,025.32",29/07/2014
Delivery Units,Adults and Communities,Other Agencies - Third Party Payments,30024616,DIMENSIONS UK,"4,495.76",29/07/2014
Delivery Units,Adults and Communities,Other Agencies - Third Party Payments,30024617,DIMENSIONS UK,"4,495.76",29/07/2014
Delivery Units,Adults and Communities,Other Agencies - Third Party Payments,30020090,DR FRENCH MEMORIAL HOME LTD,"1,794.03",10/07/2014
Delivery Units,Adults and Communities,Other Agencies - Third Party Payments,30023064,DR FRENCH MEMORIAL HOME LTD,546.01,23/07/2014
Delivery Units,Adults and Communities,Other Agencies - Third Party Payments,30021153,DYNAMIC PEOPLE LTD,520.00,11/07/2014
Delivery Units,Adults and Communities,Other Agencies - Third Party Payments,30022369,ELEANOR PALMER TRUST NO 2 A/C.,"1,429.94",18/07/2014
Delivery Units,Adults and Communities,Other Agencies - Third Party Payments,30020053,ELIZA HOUSE,"2,144.91",08/07/2014
Delivery Units,Adults and Communities,Other Agencies - Third Party Payments,30025726,ELIZABETH HOUSE,"2,418.04",31/07/2014
Delivery Units,Adults and Communities,Other Agencies - Third Party Payments,30019622,ELM PARK LODGE,"3,535.07",11/07/2014
Delivery Units,Adults and Communities,Other Agencies - Third Party Payments,30019685,ELM PARK LODGE,"3,000.00",11/07/2014
Delivery Units,Adults and Communities,Other Agencies - Third Party Payments,30019699,ELM PARK LODGE,"3,192.86",11/07/2014
Delivery Units,Adults and Communities,Other Agencies - Third Party Payments,30019712,ELM PARK LODGE,"3,278.57",11/07/2014
Delivery Units,Adults and Communities,Other Agencies - Third Party Payments,30019795,ELM PARK LODGE,"3,496.33",11/07/2014
Delivery Units,Adults and Communities,Other Agencies - Third Party Payments,30019636,ELM PARK LODGE,"3,407.14",11/07/2014
Delivery Units,Adults and Communities,Other Agencies - Third Party Payments,30019682,ELM PARK LODGE,"3,496.33",11/07/2014
Delivery Units,Adults and Communities,Other Agencies - Third Party Payments,30019689,ELM PARK LODGE,"2,092.11",11/07/2014
Delivery Units,Adults and Communities,Other Agencies - Third Party Payments,30019703,ELM PARK LODGE,"3,278.57",11/07/2014
Delivery Units,Adults and Communities,Other Agencies - Third Party Payments,30019706,ELM PARK LODGE,"3,107.14",11/07/2014
Delivery Units,Adults and Communities,Other Agencies - Third Party Payments,30019789,ELM PARK LODGE,"3,344.14",11/07/2014
Delivery Units,Adults and Communities,Other Agencies - Third Party Payments,30025514,ELM PARK LODGE,"7,292.71",29/07/2014
Delivery Units,Adults and Communities,Other Agencies - Third Party Payments,30025528,ELM PARK LODGE,"10,080.81",29/07/2014
Delivery Units,Adults and Communities,Other Agencies - Third Party Payments,30025513,ELM PARK LODGE,"11,147.14",29/07/2014
Delivery Units,Adults and Communities,Other Agencies - Third Party Payments,30025515,ELM PARK LODGE,"6,920.55",29/07/2014
Delivery Units,Adults and Communities,Other Agencies - Third Party Payments,30024586,EMMAUS HOUSE,"2,184.04",29/07/2014
Delivery Units,Adults and Communities,Other Agencies - Third Party Payments,30019604,FERNBANK NURSING HOME.,"2,244.00",03/07/2014
Delivery Units,Adults and Communities,Other Agencies - Third Party Payments,30019605,FERNBANK NURSING HOME.,"2,244.00",03/07/2014
Delivery Units,Adults and Communities,Other Agencies - Third Party Payments,30019606,FERNBANK NURSING HOME.,"2,244.00",03/07/2014
Delivery Units,Adults and Communities,Other Agencies - Third Party Payments,30019607,FERNBANK NURSING HOME.,"2,244.00",03/07/2014
Delivery Units,Adults and Communities,Other Agencies - Third Party Payments,30019608,FERNBANK NURSING HOME.,"2,244.00",03/07/2014
Delivery Units,Adults and Communities,Other Agencies - Third Party Payments,30019609,FERNBANK NURSING HOME.,"2,244.00",03/07/2014
Delivery Units,Adults and Communities,Other Agencies - Third Party Payments,30019610,FERNBANK NURSING HOME.,"2,244.00",03/07/2014
Delivery Units,Adults and Communities,Other Agencies - Third Party Payments,30019611,FERNBANK NURSING HOME.,"2,487.60",03/07/2014
Delivery Units,Adults and Communities,Other Agencies - Third Party Payments,30025656,FERNBANK NURSING HOME.,"2,318.80",31/07/2014
Delivery Units,Adults and Communities,Other Agencies - Third Party Payments,30025657,FERNBANK NURSING HOME.,"2,318.80",31/07/2014
Delivery Units,Adults and Communities,Other Agencies - Third Party Payments,30025658,FERNBANK NURSING HOME.,"2,318.80",31/07/2014
Delivery Units,Adults and Communities,Other Agencies - Third Party Payments,30025659,FERNBANK NURSING HOME.,"2,318.80",31/07/2014
Delivery Units,Adults and Communities,Other Agencies - Third Party Payments,30025660,FERNBANK NURSING HOME.,"2,318.80",31/07/2014
Delivery Units,Adults and Communities,Other Agencies - Third Party Payments,30025661,FERNBANK NURSING HOME.,"2,618.00",31/07/2014
Delivery Units,Adults and Communities,Other Agencies - Third Party Payments,30019612,FINBOND LIMITED,"2,144.91",03/07/2014
Delivery Units,Adults and Communities,Other Agencies - Third Party Payments,30020006,FLAGSWAN TWO LTD,"2,464.29",04/07/2014
Delivery Units,Adults and Communities,Other Agencies - Third Party Payments,30020091,FLAGSWAN TWO LTD,"3,291.90",08/07/2014
Delivery Units,Adults and Communities,Other Agencies - Third Party Payments,30019587,FOCUS 12,"2,200.00",03/07/2014
Delivery Units,Adults and Communities,Other Agencies - Third Party Payments,30022324,FOCUS 12,"1,650.00",17/07/2014
Delivery Units,Adults and Communities,Other Agencies - Third Party Payments,30021354,FOUR SEASONS HEALTH CARE,"2,447.76",14/07/2014
Delivery Units,Adults and Communities,Other Agencies - Third Party Payments,30021355,FOUR SEASONS HEALTH CARE,"2,090.12",14/07/2014
Delivery Units,Adults and Communities,Other Agencies - Third Party Payments,30021356,FOUR SEASONS HEALTH CARE,"2,090.12",14/07/2014
Delivery Units,Adults and Communities,Other Agencies - Third Party Payments,30021357,FOUR SEASONS HEALTH CARE,"2,317.52",14/07/2014
Delivery Units,Adults and Communities,Other Agencies - Third Party Payments,30021358,FOUR SEASONS HEALTH CARE,"2,317.52",14/07/2014
Delivery Units,Adults and Communities,Other Agencies - Third Party Payments,30021359,FOUR SEASONS HEALTH CARE,"2,090.12",14/07/2014
Delivery Units,Adults and Communities,Other Agencies - Third Party Payments,30021360,FOUR SEASONS HEALTH CARE,"2,317.52",14/07/2014
Delivery Units,Adults and Communities,Other Agencies - Third Party Payments,30021361,FOUR SEASONS HEALTH CARE,"2,090.12",14/07/2014
Delivery Units,Adults and Communities,Other Agencies - Third Party Payments,30021362,FOUR SEASONS HEALTH CARE,"2,074.88",14/07/2014
Delivery Units,Adults and Communities,Other Agencies - Third Party Payments,30021363,FOUR SEASONS HEALTH CARE,"2,090.12",14/07/2014
Delivery Units,Adults and Communities,Other Agencies - Third Party Payments,30021364,FOUR SEASONS HEALTH CARE,"2,090.12",14/07/2014
Delivery Units,Adults and Communities,Other Agencies - Third Party Payments,30022105,FOUR SEASONS HEALTH CARE,"2,127.92",16/07/2014
Delivery Units,Adults and Communities,Other Agencies - Third Party Payments,30022106,FOUR SEASONS HEALTH CARE,"2,105.95",16/07/2014
Delivery Units,Adults and Communities,Other Agencies - Third Party Payments,30022107,FOUR SEASONS HEALTH CARE,"2,127.92",16/07/2014
Delivery Units,Adults and Communities,Other Agencies - Third Party Payments,30025517,FOUR SEASONS HEALTH CARE,"2,439.58",30/07/2014
Delivery Units,Adults and Communities,Other Agencies - Third Party Payments,30025737,FOUR SEASONS HEALTH CARE,"3,122.51",31/07/2014
Delivery Units,Adults and Communities,Other Agencies - Third Party Payments,30021373,FREEWAYS TRUST LIMITED,"2,979.76",14/07/2014
Delivery Units,Adults and Communities,Other Agencies - Third Party Payments,30021374,FREEWAYS TRUST LIMITED,-890.20,14/07/2014
Delivery Units,Adults and Communities,Other Agencies - Third Party Payments,30021375,FREEWAYS TRUST LIMITED,829.80,14/07/2014
Delivery Units,Adults and Communities,Other Agencies - Third Party Payments,30022517,FREEWAYS TRUST LIMITED,"2,979.76",21/07/2014
Delivery Units,Adults and Communities,Other Agencies - Third Party Payments,30022518,FREEWAYS TRUST LIMITED,-890.20,21/07/2014
Delivery Units,Adults and Communities,Other Agencies - Third Party Payments,30022519,FREEWAYS TRUST LIMITED,829.80,21/07/2014
Delivery Units,Adults and Communities,Other Agencies - Third Party Payments,30019501,FREMANTLE TRUST,"2,236.44",02/07/2014
Delivery Units,Adults and Communities,Other Agencies - Third Party Payments,30019993,FREMANTLE TRUST,"5,154.19",04/07/2014
Delivery Units,Adults and Communities,Other Agencies - Third Party Payments,30019995,FREMANTLE TRUST,"24,036.83",04/07/2014
Delivery Units,Adults and Communities,Other Agencies - Third Party Payments,30019996,FREMANTLE TRUST,"-1,086.60",04/07/2014
Delivery Units,Adults and Communities,Other Agencies - Third Party Payments,30019997,FREMANTLE TRUST,"32,803.77",04/07/2014
Delivery Units,Adults and Communities,Other Agencies - Third Party Payments,30019998,FREMANTLE TRUST,"-2,281.80",04/07/2014
Delivery Units,Adults and Communities,Other Agencies - Third Party Payments,30023071,FREMANTLE TRUST,"1,978.03",23/07/2014
Delivery Units,Adults and Communities,Other Agencies - Third Party Payments,30024184,FREMANTLE TRUST,"-3,560.81",24/07/2014
Delivery Units,Adults and Communities,Other Agencies - Third Party Payments,30019565,FRIARY LODGE,"1,572.94",03/07/2014
Delivery Units,Adults and Communities,Other Agencies - Third Party Payments,30019576,FRIARY LODGE,"2,340.04",03/07/2014
Delivery Units,Adults and Communities,Other Agencies - Third Party Payments,30019578,FRIARY LODGE,"2,144.91",03/07/2014
Delivery Units,Adults and Communities,Other Agencies - Third Party Payments,30019595,FRIARY LODGE,"2,340.04",03/07/2014
Delivery Units,Adults and Communities,Other Agencies - Third Party Payments,30019601,FRIARY LODGE,"2,144.91",03/07/2014
Delivery Units,Adults and Communities,Other Agencies - Third Party Payments,30025636,FRIARY LODGE,"2,418.04",31/07/2014
Delivery Units,Adults and Communities,Other Agencies - Third Party Payments,30025637,FRIARY LODGE,"1,930.42",31/07/2014
Delivery Units,Adults and Communities,Other Agencies - Third Party Payments,30025639,FRIARY LODGE,"2,216.41",31/07/2014
Delivery Units,Adults and Communities,Other Agencies - Third Party Payments,30025641,FRIARY LODGE,"2,418.04",31/07/2014
Delivery Units,Adults and Communities,Other Agencies - Third Party Payments,30025654,FRIARY LODGE,"2,216.41",31/07/2014
Delivery Units,Adults and Communities,Other Agencies - Third Party Payments,30022102,FRIERN RESIDENTIAL CARE HOME,"2,155.41",16/07/2014
Delivery Units,Adults and Communities,Other Agencies - Third Party Payments,30022103,FRIERN RESIDENTIAL CARE HOME,-531.21,16/07/2014
Delivery Units,Adults and Communities,Other Agencies - Third Party Payments,30022125,FRIERN RESIDENTIAL CARE HOME,"2,144.91",16/07/2014
Delivery Units,Adults and Communities,Other Agencies - Third Party Payments,30022126,FRIERN RESIDENTIAL CARE HOME,-531.21,16/07/2014
Delivery Units,Adults and Communities,Other Agencies - Third Party Payments,30022090,FRIERN RESIDENTIAL CARE HOME,"2,035.46",16/07/2014
Delivery Units,Adults and Communities,Other Agencies - Third Party Payments,30022099,FRIERN RESIDENTIAL CARE HOME,"1,219.71",16/07/2014
Delivery Units,Adults and Communities,Other Agencies - Third Party Payments,30022100,FRIERN RESIDENTIAL CARE HOME,-531.21,16/07/2014
Delivery Units,Adults and Communities,Other Agencies - Third Party Payments,30022109,FRIERN RESIDENTIAL CARE HOME,"2,035.45",16/07/2014
Delivery Units,Adults and Communities,Other Agencies - Third Party Payments,30022515,FRIERN RESIDENTIAL CARE HOME,"1,322.66",21/07/2014
Delivery Units,Adults and Communities,Other Agencies - Third Party Payments,30025733,FRIERN RESIDENTIAL CARE HOME,"2,216.41",31/07/2014
Delivery Units,Adults and Communities,Other Agencies - Third Party Payments,30025734,FRIERN RESIDENTIAL CARE HOME,-548.92,31/07/2014
Delivery Units,Adults and Communities,Other Agencies - Third Party Payments,30025810,FRIERN RESIDENTIAL CARE HOME,"2,216.41",31/07/2014
Delivery Units,Adults and Communities,Other Agencies - Third Party Payments,30025811,FRIERN RESIDENTIAL CARE HOME,-548.92,31/07/2014
Delivery Units,Adults and Communities,Other Agencies - Third Party Payments,30025701,FRIERN RESIDENTIAL CARE HOME,"2,103.31",31/07/2014
Delivery Units,Adults and Communities,Other Agencies - Third Party Payments,30025720,FRIERN RESIDENTIAL CARE HOME,"1,260.37",31/07/2014
Delivery Units,Adults and Communities,Other Agencies - Third Party Payments,30025721,FRIERN RESIDENTIAL CARE HOME,-548.92,31/07/2014
Delivery Units,Adults and Communities,Other Agencies - Third Party Payments,30025740,FRIERN RESIDENTIAL CARE HOME,"2,103.30",31/07/2014
Delivery Units,Adults and Communities,Other Agencies - Third Party Payments,30025758,FRIERN RESIDENTIAL CARE HOME,"1,366.74",31/07/2014
Delivery Units,Adults and Communities,Other Agencies - Third Party Payments,30019978,GABRIEL COURT RESIDENTIAL HOME,"2,703.13",04/07/2014
Delivery Units,Adults and Communities,Other Agencies - Third Party Payments,30019979,GABRIEL COURT RESIDENTIAL HOME,-590.61,04/07/2014
Delivery Units,Adults and Communities,Other Agencies - Third Party Payments,30021171,GENTLE HANDS CARE AGENCY,"1,400.00",11/07/2014
Delivery Units,Adults and Communities,Other Agencies - Third Party Payments,30019700,GLENHOLME PSYCHIATRIC AFTER CARE HO,"3,857.57",03/07/2014
Delivery Units,Adults and Communities,Other Agencies - Third Party Payments,30019800,GLENHOLME PSYCHIATRIC AFTER CARE HO,"4,071.43",03/07/2014
Delivery Units,Adults and Communities,Other Agencies - Third Party Payments,30020087,GLENHOLME PSYCHIATRIC AFTER CARE HO,"3,964.89",08/07/2014
Delivery Units,Adults and Communities,Other Agencies - Third Party Payments,30025709,GLENHOLME PSYCHIATRIC AFTER CARE HO,"4,097.05",31/07/2014
Delivery Units,Adults and Communities,Other Agencies - Third Party Payments,30025739,GLENHOLME PSYCHIATRIC AFTER CARE HO,"3,986.16",31/07/2014
Delivery Units,Adults and Communities,Other Agencies - Third Party Payments,30025813,GLENHOLME PSYCHIATRIC AFTER CARE HO,"4,207.14",31/07/2014
Delivery Units,Adults and Communities,Other Agencies - Third Party Payments,30019843,GLOUCESTERSHIRE GROUP HOMES,"4,054.03",04/07/2014
Delivery Units,Adults and Communities,Other Agencies - Third Party Payments,30019844,GLOUCESTERSHIRE GROUP HOMES,-788.14,04/07/2014
Delivery Units,Adults and Communities,Other Agencies - Third Party Payments,30021368,GREEN TREES,546.01,14/07/2014
Delivery Units,Adults and Communities,Other Agencies - Third Party Payments,30021369,GREEN TREES,"1,638.03",14/07/2014
Delivery Units,Adults and Communities,Other Agencies - Third Party Payments,30021370,GREEN TREES,"2,184.04",14/07/2014
Delivery Units,Adults and Communities,Other Agencies - Third Party Payments,30021371,GREEN TREES,"2,184.04",14/07/2014
Delivery Units,Adults and Communities,Other Agencies - Third Party Payments,30019588,GREENFIELDS RESIDENTIAL HOME,"2,144.91",03/07/2014
Delivery Units,Adults and Communities,Other Agencies - Third Party Payments,30019589,GREENFIELDS RESIDENTIAL HOME,-824.14,03/07/2014
Delivery Units,Adults and Communities,Other Agencies - Third Party Payments,30019831,H.C.S. (ENFIELD) LTD,"5,101.71",04/07/2014
Delivery Units,Adults and Communities,Other Agencies - Third Party Payments,30019968,HALLMARK CARE (KINGS LYNN) LTD,"2,797.07",04/07/2014
Delivery Units,Adults and Communities,Other Agencies - Third Party Payments,30022514,HARDEN,"4,343.12",21/07/2014
Delivery Units,Adults and Communities,Other Agencies - Third Party Payments,30019436,HARTWIG CARE LIMITED,750.20,02/07/2014
Delivery Units,Adults and Communities,Other Agencies - Third Party Payments,30019437,HARTWIG CARE LIMITED,"1,058.37",02/07/2014
Delivery Units,Adults and Communities,Other Agencies - Third Party Payments,30019439,HARTWIG CARE LIMITED,750.20,02/07/2014
Delivery Units,Adults and Communities,Other Agencies - Third Party Payments,30019440,HARTWIG CARE LIMITED,975.46,02/07/2014
Delivery Units,Adults and Communities,Other Agencies - Third Party Payments,30021105,HARTWIG CARE LIMITED,983.84,11/07/2014
Delivery Units,Adults and Communities,Other Agencies - Third Party Payments,30021106,HARTWIG CARE LIMITED,"1,052.04",11/07/2014
Delivery Units,Adults and Communities,Other Agencies - Third Party Payments,30022419,HARTWIG CARE LIMITED,763.80,21/07/2014
Delivery Units,Adults and Communities,Other Agencies - Third Party Payments,30022420,HARTWIG CARE LIMITED,929.29,21/07/2014
Delivery Units,Adults and Communities,Other Agencies - Third Party Payments,30022421,HARTWIG CARE LIMITED,721.72,21/07/2014
Delivery Units,Adults and Communities,Other Agencies - Third Party Payments,30021139,HENRY NIHILL HOUSE,"2,094.52",11/07/2014
Delivery Units,Adults and Communities,Other Agencies - Third Party Payments,30021137,HENRY NIHILL HOUSE,"2,001.92",15/07/2014
Delivery Units,Adults and Communities,Other Agencies - Third Party Payments,30021269,HENRY NIHILL HOUSE,"2,321.92",17/07/2014
Delivery Units,Adults and Communities,Other Agencies - Third Party Payments,30021270,HENRY NIHILL HOUSE,"2,321.92",17/07/2014
Delivery Units,Adults and Communities,Other Agencies - Third Party Payments,30021271,HENRY NIHILL HOUSE,"2,094.52",17/07/2014
Delivery Units,Adults and Communities,Other Agencies - Third Party Payments,30021265,HENRY NIHILL HOUSE,"2,001.92",17/07/2014
Delivery Units,Adults and Communities,Other Agencies - Third Party Payments,30022433,HENRY NIHILL HOUSE,"2,321.92",21/07/2014
Delivery Units,Adults and Communities,Other Agencies - Third Party Payments,30022434,HENRY NIHILL HOUSE,"2,321.92",21/07/2014
Delivery Units,Adults and Communities,Other Agencies - Third Party Payments,30022431,HENRY NIHILL HOUSE,"4,643.84",24/07/2014
Delivery Units,Adults and Communities,Other Agencies - Third Party Payments,30022401,HIGH GABLE HOUSE,"3,060.00",21/07/2014
Delivery Units,Adults and Communities,Other Agencies - Third Party Payments,30022403,HIGH GABLE HOUSE,"3,060.00",21/07/2014
Delivery Units,Adults and Communities,Other Agencies - Third Party Payments,30022711,HIGH GABLE HOUSE,"2,564.20",23/07/2014
Delivery Units,Adults and Communities,Other Agencies - Third Party Payments,30019585,HILLGREEN CARE LTD,"6,864.42",03/07/2014
Delivery Units,Adults and Communities,Other Agencies - Third Party Payments,30024116,HILLVIEW COURT NURSING HOME,"4,200.00",24/07/2014
Delivery Units,Adults and Communities,Other Agencies - Third Party Payments,30022097,HILTON LODGE LTD.,"2,184.04",16/07/2014
Delivery Units,Adults and Communities,Other Agencies - Third Party Payments,30022098,HILTON LODGE LTD.,-581.32,16/07/2014
Delivery Units,Adults and Communities,Other Agencies - Third Party Payments,30022108,HILTON LODGE LTD.,"2,256.04",16/07/2014
Delivery Units,Adults and Communities,Other Agencies - Third Party Payments,30022111,HILTON LODGE LTD.,"2,184.04",16/07/2014
Delivery Units,Adults and Communities,Other Agencies - Third Party Payments,30022112,HILTON LODGE LTD.,"2,184.04",16/07/2014
Delivery Units,Adults and Communities,Other Agencies - Third Party Payments,30022127,HILTON LODGE LTD.,"2,184.04",16/07/2014
Delivery Units,Adults and Communities,Other Agencies - Third Party Payments,30022129,HILTON LODGE LTD.,"2,184.04",16/07/2014
Delivery Units,Adults and Communities,Other Agencies - Third Party Payments,30022136,HILTON LODGE LTD.,"2,184.04",16/07/2014
Delivery Units,Adults and Communities,Other Agencies - Third Party Payments,30022137,HILTON LODGE LTD.,-783.20,16/07/2014
Delivery Units,Adults and Communities,Other Agencies - Third Party Payments,30019711,HOLLY HOUSE RESIDENTIAL CARE HOME,"3,421.02",03/07/2014
Delivery Units,Adults and Communities,Other Agencies - Third Party Payments,30023069,HOLLY HOUSE RESIDENTIAL CARE HOME,"3,885.71",23/07/2014
Delivery Units,Adults and Communities,Other Agencies - Third Party Payments,30025761,HOLLY HOUSE RESIDENTIAL CARE HOME,"3,535.06",31/07/2014
Delivery Units,Adults and Communities,Other Agencies - Third Party Payments,30020294,HOME FARM TRUST LTD,"8,034.76",08/07/2014
Delivery Units,Adults and Communities,Other Agencies - Third Party Payments,30020296,HOME FARM TRUST LTD,"2,657.40",08/07/2014
Delivery Units,Adults and Communities,Other Agencies - Third Party Payments,30019628,HOME FARM TRUST LTD,"3,922.25",25/07/2014
Delivery Units,Adults and Communities,Other Agencies - Third Party Payments,30022130,HOME FROM HOME CARE LTD,"9,769.00",16/07/2014
Delivery Units,Adults and Communities,Other Agencies - Third Party Payments,30024093,HOUSE MARTINS CARE LTD,"4,502.40",30/07/2014
Delivery Units,Adults and Communities,Other Agencies - Third Party Payments,30024095,HOUSE MARTINS CARE LTD,"4,652.48",30/07/2014
Delivery Units,Adults and Communities,Other Agencies - Third Party Payments,30024097,HOUSE MARTINS CARE LTD,"4,502.40",30/07/2014
Delivery Units,Adults and Communities,Other Agencies - Third Party Payments,30020039,HUSKARDS NEW CARE LTD,"2,145.00",04/07/2014
Delivery Units,Adults and Communities,Other Agencies - Third Party Payments,30022128,HUSKARDS NEW CARE LTD,"2,144.91",16/07/2014
Delivery Units,Adults and Communities,Other Agencies - Third Party Payments,30021069,INDEPENDENCE HOMES LIMITED,"5,400.00",09/07/2014
Delivery Units,Adults and Communities,Other Agencies - Third Party Payments,30019420,INDIVIDUALISED CARE LIMITED,"2,430.00",02/07/2014
Delivery Units,Adults and Communities,Other Agencies - Third Party Payments,30019817,INDIVIDUALISED CARE LIMITED,800.00,04/07/2014
Delivery Units,Adults and Communities,Other Agencies - Third Party Payments,30019818,INDIVIDUALISED CARE LIMITED,500.00,04/07/2014
Delivery Units,Adults and Communities,Other Agencies - Third Party Payments,30019819,INDIVIDUALISED CARE LIMITED,800.00,04/07/2014
Delivery Units,Adults and Communities,Other Agencies - Third Party Payments,30021063,INDIVIDUALISED CARE LIMITED,600.00,09/07/2014
Delivery Units,Adults and Communities,Other Agencies - Third Party Payments,30021064,INDIVIDUALISED CARE LIMITED,800.00,09/07/2014
Delivery Units,Adults and Communities,Other Agencies - Third Party Payments,30021065,INDIVIDUALISED CARE LIMITED,516.00,09/07/2014
Delivery Units,Adults and Communities,Other Agencies - Third Party Payments,30021101,INDIVIDUALISED CARE LIMITED,"2,100.00",11/07/2014
Delivery Units,Adults and Communities,Other Agencies - Third Party Payments,30022292,INDIVIDUALISED CARE LIMITED,642.00,17/07/2014
Delivery Units,Adults and Communities,Other Agencies - Third Party Payments,30022293,INDIVIDUALISED CARE LIMITED,540.00,17/07/2014
Delivery Units,Adults and Communities,Other Agencies - Third Party Payments,30024032,INDIVIDUALISED CARE LIMITED,549.50,24/07/2014
Delivery Units,Adults and Communities,Other Agencies - Third Party Payments,30019586,INSIGHT SPECIALIST BEHAVIOURAL,"5,944.08",03/07/2014
Delivery Units,Adults and Communities,Other Agencies - Third Party Payments,30022825,IVER HOUSE LTD,"3,812.98",23/07/2014
Delivery Units,Adults and Communities,Other Agencies - Third Party Payments,30019837,JANITH HOMES LTD,"2,564.70",04/07/2014
Delivery Units,Adults and Communities,Other Agencies - Third Party Payments,30020046,JEAN JUGAN RESIDENCE,"2,094.52",08/07/2014
Delivery Units,Adults and Communities,Other Agencies - Third Party Payments,30022075,JEMINI RESPONSE,"9,400.00",23/07/2014
Delivery Units,Adults and Communities,Other Agencies - Third Party Payments,30022089,JEWISH CARE,702.01,16/07/2014
Delivery Units,Adults and Communities,Other Agencies - Third Party Payments,30022486,JEWISH CARE,"2,800.00",21/07/2014
Delivery Units,Adults and Communities,Other Agencies - Third Party Payments,30022487,JEWISH CARE,"2,244.13",21/07/2014
Delivery Units,Adults and Communities,Other Agencies - Third Party Payments,30023035,JEWISH CARE,546.01,23/07/2014
Delivery Units,Adults and Communities,Other Agencies - Third Party Payments,30023036,JEWISH CARE,"2,702.75",23/07/2014
Delivery Units,Adults and Communities,Other Agencies - Third Party Payments,30023037,JEWISH CARE,737.11,23/07/2014
Delivery Units,Adults and Communities,Other Agencies - Third Party Payments,30024572,JEWISH CARE,"2,102.00",29/07/2014
Delivery Units,Adults and Communities,Other Agencies - Third Party Payments,30024576,JEWISH CARE,"2,199.24",29/07/2014
Delivery Units,Adults and Communities,Other Agencies - Third Party Payments,30020049,JIGSAW CREATIVE CARE LIMITED,"2,998.68",08/07/2014
Delivery Units,Adults and Communities,Other Agencies - Third Party Payments,30020050,JIGSAW CREATIVE CARE LIMITED,"2,783.00",08/07/2014
Delivery Units,Adults and Communities,Other Agencies - Third Party Payments,30020052,JIGSAW CREATIVE CARE LIMITED,"1,412.00",08/07/2014
Delivery Units,Adults and Communities,Other Agencies - Third Party Payments,30021188,JIGSAW CREATIVE CARE LIMITED,"2,998.68",11/07/2014
Delivery Units,Adults and Communities,Other Agencies - Third Party Payments,30021189,JIGSAW CREATIVE CARE LIMITED,"1,412.00",11/07/2014
Delivery Units,Adults and Communities,Other Agencies - Third Party Payments,30021190,JIGSAW CREATIVE CARE LIMITED,"2,783.00",11/07/2014
Delivery Units,Adults and Communities,Other Agencies - Third Party Payments,30022302,JIGSAW CREATIVE CARE LIMITED,"2,998.68",17/07/2014
Delivery Units,Adults and Communities,Other Agencies - Third Party Payments,30022303,JIGSAW CREATIVE CARE LIMITED,"1,412.00",17/07/2014
Delivery Units,Adults and Communities,Other Agencies - Third Party Payments,30022304,JIGSAW CREATIVE CARE LIMITED,"2,783.00",17/07/2014
Delivery Units,Adults and Communities,Other Agencies - Third Party Payments,30024228,JIGSAW CREATIVE CARE LIMITED,"2,783.00",25/07/2014
Delivery Units,Adults and Communities,Other Agencies - Third Party Payments,30024229,JIGSAW CREATIVE CARE LIMITED,"2,998.68",25/07/2014
Delivery Units,Adults and Communities,Other Agencies - Third Party Payments,30024230,JIGSAW CREATIVE CARE LIMITED,"1,412.00",25/07/2014
Delivery Units,Adults and Communities,Other Agencies - Third Party Payments,30025621,JIGSAW CREATIVE CARE LIMITED,"2,998.68",31/07/2014
Delivery Units,Adults and Communities,Other Agencies - Third Party Payments,30025622,JIGSAW CREATIVE CARE LIMITED,"1,412.00",31/07/2014
Delivery Units,Adults and Communities,Other Agencies - Third Party Payments,30025624,JIGSAW CREATIVE CARE LIMITED,"2,783.00",31/07/2014
Delivery Units,Adults and Communities,Other Agencies - Third Party Payments,30019805,KEMBLE HOUSE,"7,928.70",04/07/2014
Delivery Units,Adults and Communities,Other Agencies - Third Party Payments,30021218,KEMBLE HOUSE,"9,680.37",14/07/2014
Delivery Units,Adults and Communities,Other Agencies - Third Party Payments,30020303,KIRKLEY MANOR,"2,001.92",08/07/2014
Delivery Units,Adults and Communities,Other Agencies - Third Party Payments,30021113,KISHARON DAY SCHOOL,"1,464.03",11/07/2014
Delivery Units,Adults and Communities,Other Agencies - Third Party Payments,30021114,KISHARON DAY SCHOOL,"2,144.10",11/07/2014
Delivery Units,Adults and Communities,Other Agencies - Third Party Payments,30021115,KISHARON DAY SCHOOL,"2,284.24",11/07/2014
Delivery Units,Adults and Communities,Other Agencies - Third Party Payments,30021116,KISHARON DAY SCHOOL,"1,373.68",11/07/2014
Delivery Units,Adults and Communities,Other Agencies - Third Party Payments,30021117,KISHARON DAY SCHOOL,"1,373.49",11/07/2014
Delivery Units,Adults and Communities,Other Agencies - Third Party Payments,30021118,KISHARON DAY SCHOOL,794.08,11/07/2014
Delivery Units,Adults and Communities,Other Agencies - Third Party Payments,30021120,KISHARON DAY SCHOOL,"1,373.49",11/07/2014
Delivery Units,Adults and Communities,Other Agencies - Third Party Payments,30021122,KISHARON DAY SCHOOL,"1,679.87",11/07/2014
Delivery Units,Adults and Communities,Other Agencies - Third Party Payments,30021123,KISHARON DAY SCHOOL,"1,340.18",11/07/2014
Delivery Units,Adults and Communities,Other Agencies - Third Party Payments,30021124,KISHARON DAY SCHOOL,"1,241.16",11/07/2014
Delivery Units,Adults and Communities,Other Agencies - Third Party Payments,30021126,KISHARON DAY SCHOOL,"1,133.60",11/07/2014
Delivery Units,Adults and Communities,Other Agencies - Third Party Payments,30021127,KISHARON DAY SCHOOL,"1,373.68",11/07/2014
Delivery Units,Adults and Communities,Other Agencies - Third Party Payments,30021128,KISHARON DAY SCHOOL,"1,369.23",11/07/2014
Delivery Units,Adults and Communities,Other Agencies - Third Party Payments,30021130,KISHARON DAY SCHOOL,"1,275.96",11/07/2014
Delivery Units,Adults and Communities,Other Agencies - Third Party Payments,30021133,KISHARON DAY SCHOOL,733.72,11/07/2014
Delivery Units,Adults and Communities,Other Agencies - Third Party Payments,30021248,KISHARON DAY SCHOOL,"2,998.11",14/07/2014
Delivery Units,Adults and Communities,Other Agencies - Third Party Payments,30021250,KISHARON DAY SCHOOL,"4,881.51",14/07/2014
Delivery Units,Adults and Communities,Other Agencies - Third Party Payments,30021252,KISHARON DAY SCHOOL,"2,998.11",14/07/2014
Delivery Units,Adults and Communities,Other Agencies - Third Party Payments,30021254,KISHARON DAY SCHOOL,"2,998.11",14/07/2014
Delivery Units,Adults and Communities,Other Agencies - Third Party Payments,30024504,KISHARON DAY SCHOOL,"-4,237.20",29/07/2014
Delivery Units,Adults and Communities,Other Agencies - Third Party Payments,30024505,KISHARON DAY SCHOOL,"9,586.62",29/07/2014
Delivery Units,Adults and Communities,Other Agencies - Third Party Payments,30024506,KISHARON DAY SCHOOL,"4,260.72",29/07/2014
Delivery Units,Adults and Communities,Other Agencies - Third Party Payments,30024507,KISHARON DAY SCHOOL,"4,260.72",29/07/2014
Delivery Units,Adults and Communities,Other Agencies - Third Party Payments,30025620,KISHARON DAY SCHOOL,530.60,31/07/2014
Delivery Units,Adults and Communities,Other Agencies - Third Party Payments,30020034,LANCASTER COURT,"2,184.30",04/07/2014
Delivery Units,Adults and Communities,Other Agencies - Third Party Payments,30020035,LANCASTER COURT,"2,531.01",04/07/2014
Delivery Units,Adults and Communities,Other Agencies - Third Party Payments,30013451,LANGDON COMMUNITY LTD,"-6,006.80",02/07/2014
Delivery Units,Adults and Communities,Other Agencies - Third Party Payments,30019497,LANGDON COMMUNITY LTD,"1,003.57",02/07/2014
Delivery Units,Adults and Communities,Other Agencies - Third Party Payments,30019499,LANGDON COMMUNITY LTD,"1,859.77",02/07/2014
Delivery Units,Adults and Communities,Other Agencies - Third Party Payments,30019500,LANGDON COMMUNITY LTD,"1,859.77",02/07/2014
Delivery Units,Adults and Communities,Other Agencies - Third Party Payments,30019539,LANGDON COMMUNITY LTD,"1,380.00",02/07/2014
Delivery Units,Adults and Communities,Other Agencies - Third Party Payments,30019540,LANGDON COMMUNITY LTD,"1,380.00",02/07/2014
Delivery Units,Adults and Communities,Other Agencies - Third Party Payments,30019541,LANGDON COMMUNITY LTD,638.00,02/07/2014
Delivery Units,Adults and Communities,Other Agencies - Third Party Payments,30019542,LANGDON COMMUNITY LTD,638.00,02/07/2014
Delivery Units,Adults and Communities,Other Agencies - Third Party Payments,30019616,LANGDON COMMUNITY LTD,"2,522.52",03/07/2014
Delivery Units,Adults and Communities,Other Agencies - Third Party Payments,30019632,LANGDON COMMUNITY LTD,"1,003.57",03/07/2014
Delivery Units,Adults and Communities,Other Agencies - Third Party Payments,30019638,LANGDON COMMUNITY LTD,"3,299.74",03/07/2014
Delivery Units,Adults and Communities,Other Agencies - Third Party Payments,30019639,LANGDON COMMUNITY LTD,"3,299.74",03/07/2014
Delivery Units,Adults and Communities,Other Agencies - Third Party Payments,30019653,LANGDON COMMUNITY LTD,"3,579.80",03/07/2014
Delivery Units,Adults and Communities,Other Agencies - Third Party Payments,30019654,LANGDON COMMUNITY LTD,"3,579.80",03/07/2014
Delivery Units,Adults and Communities,Other Agencies - Third Party Payments,30019655,LANGDON COMMUNITY LTD,"2,630.48",03/07/2014
Delivery Units,Adults and Communities,Other Agencies - Third Party Payments,30019656,LANGDON COMMUNITY LTD,"2,630.48",03/07/2014
Delivery Units,Adults and Communities,Other Agencies - Third Party Payments,30019660,LANGDON COMMUNITY LTD,"1,850.20",03/07/2014
Delivery Units,Adults and Communities,Other Agencies - Third Party Payments,30019661,LANGDON COMMUNITY LTD,"1,850.20",03/07/2014
Delivery Units,Adults and Communities,Other Agencies - Third Party Payments,30019693,LANGDON COMMUNITY LTD,"2,201.10",03/07/2014
Delivery Units,Adults and Communities,Other Agencies - Third Party Payments,30019694,LANGDON COMMUNITY LTD,"2,201.10",03/07/2014
Delivery Units,Adults and Communities,Other Agencies - Third Party Payments,30019695,LANGDON COMMUNITY LTD,"5,249.46",03/07/2014
Delivery Units,Adults and Communities,Other Agencies - Third Party Payments,30019696,LANGDON COMMUNITY LTD,"5,249.46",03/07/2014
Delivery Units,Adults and Communities,Other Agencies - Third Party Payments,30019697,LANGDON COMMUNITY LTD,"5,816.00",03/07/2014
Delivery Units,Adults and Communities,Other Agencies - Third Party Payments,30019698,LANGDON COMMUNITY LTD,"5,816.00",03/07/2014
Delivery Units,Adults and Communities,Other Agencies - Third Party Payments,30019708,LANGDON COMMUNITY LTD,"2,233.00",03/07/2014
Delivery Units,Adults and Communities,Other Agencies - Third Party Payments,30019709,LANGDON COMMUNITY LTD,"2,233.00",03/07/2014
Delivery Units,Adults and Communities,Other Agencies - Third Party Payments,30019798,LANGDON COMMUNITY LTD,"1,116.52",03/07/2014
Delivery Units,Adults and Communities,Other Agencies - Third Party Payments,30019799,LANGDON COMMUNITY LTD,"1,116.52",03/07/2014
Delivery Units,Adults and Communities,Other Agencies - Third Party Payments,30019688,LEEMING BAR CARE HOME,"1,876.76",03/07/2014
Delivery Units,Adults and Communities,Other Agencies - Third Party Payments,30018651,LEO BAECK HOUSING ASSOC. LTD,"4,361.33",03/07/2014
Delivery Units,Adults and Communities,Other Agencies - Third Party Payments,30018652,LEO BAECK HOUSING ASSOC. LTD,"-1,078.03",03/07/2014
Delivery Units,Adults and Communities,Other Agencies - Third Party Payments,30019777,LEWIS.W.HAMMERSON MEMORIAL HOME,"2,144.91",03/07/2014
Delivery Units,Adults and Communities,Other Agencies - Third Party Payments,30019779,LEWIS.W.HAMMERSON MEMORIAL HOME,"2,244.12",03/07/2014
Delivery Units,Adults and Communities,Other Agencies - Third Party Payments,30019780,LEWIS.W.HAMMERSON MEMORIAL HOME,-531.21,03/07/2014
Delivery Units,Adults and Communities,Other Agencies - Third Party Payments,30019781,LEWIS.W.HAMMERSON MEMORIAL HOME,"2,144.91",03/07/2014
Delivery Units,Adults and Communities,Other Agencies - Third Party Payments,30019782,LEWIS.W.HAMMERSON MEMORIAL HOME,"2,144.92",03/07/2014
Delivery Units,Adults and Communities,Other Agencies - Third Party Payments,30019783,LEWIS.W.HAMMERSON MEMORIAL HOME,-876.69,03/07/2014
Delivery Units,Adults and Communities,Other Agencies - Third Party Payments,30019784,LEWIS.W.HAMMERSON MEMORIAL HOME,"2,144.92",03/07/2014
Delivery Units,Adults and Communities,Other Agencies - Third Party Payments,30019785,LEWIS.W.HAMMERSON MEMORIAL HOME,-642.13,03/07/2014
Delivery Units,Adults and Communities,Other Agencies - Third Party Payments,30019786,LEWIS.W.HAMMERSON MEMORIAL HOME,"2,144.92",03/07/2014
Delivery Units,Adults and Communities,Other Agencies - Third Party Payments,30019787,LEWIS.W.HAMMERSON MEMORIAL HOME,-526.46,03/07/2014
Delivery Units,Adults and Communities,Other Agencies - Third Party Payments,30019788,LEWIS.W.HAMMERSON MEMORIAL HOME,"2,144.91",03/07/2014
Delivery Units,Adults and Communities,Other Agencies - Third Party Payments,30024622,LEWIS.W.HAMMERSON MEMORIAL HOME,"2,216.41",29/07/2014
Delivery Units,Adults and Communities,Other Agencies - Third Party Payments,30025797,LEWIS.W.HAMMERSON MEMORIAL HOME,"2,318.93",31/07/2014
Delivery Units,Adults and Communities,Other Agencies - Third Party Payments,30025798,LEWIS.W.HAMMERSON MEMORIAL HOME,-548.92,31/07/2014
Delivery Units,Adults and Communities,Other Agencies - Third Party Payments,30025799,LEWIS.W.HAMMERSON MEMORIAL HOME,"2,216.41",31/07/2014
Delivery Units,Adults and Communities,Other Agencies - Third Party Payments,30025800,LEWIS.W.HAMMERSON MEMORIAL HOME,"2,216.41",31/07/2014
Delivery Units,Adults and Communities,Other Agencies - Third Party Payments,30025801,LEWIS.W.HAMMERSON MEMORIAL HOME,-905.91,31/07/2014
Delivery Units,Adults and Communities,Other Agencies - Third Party Payments,30025802,LEWIS.W.HAMMERSON MEMORIAL HOME,"2,216.41",31/07/2014
Delivery Units,Adults and Communities,Other Agencies - Third Party Payments,30025803,LEWIS.W.HAMMERSON MEMORIAL HOME,-663.53,31/07/2014
Delivery Units,Adults and Communities,Other Agencies - Third Party Payments,30025804,LEWIS.W.HAMMERSON MEMORIAL HOME,"2,216.42",31/07/2014
Delivery Units,Adults and Communities,Other Agencies - Third Party Payments,30025805,LEWIS.W.HAMMERSON MEMORIAL HOME,-544.01,31/07/2014
Delivery Units,Adults and Communities,Other Agencies - Third Party Payments,30025806,LEWIS.W.HAMMERSON MEMORIAL HOME,"2,216.41",31/07/2014
Delivery Units,Adults and Communities,Other Agencies - Third Party Payments,30020338,LIFESTYLE CARE 2011 PLC,"2,138.00",08/07/2014
Delivery Units,Adults and Communities,Other Agencies - Third Party Payments,30025738,LIFESTYLE CARE 2011 PLC,"2,138.00",31/07/2014
Delivery Units,Adults and Communities,Other Agencies - Third Party Payments,30019950,LIFEWAYS,"3,656.00",04/07/2014
Delivery Units,Adults and Communities,Other Agencies - Third Party Payments,30019951,LIFEWAYS,"5,766.44",04/07/2014
Delivery Units,Adults and Communities,Other Agencies - Third Party Payments,30019956,LIFEWAYS,"2,377.20",04/07/2014
Delivery Units,Adults and Communities,Other Agencies - Third Party Payments,30019941,LIFEWAYS,"3,145.24",04/07/2014
Delivery Units,Adults and Communities,Other Agencies - Third Party Payments,30019942,LIFEWAYS,"6,930.00",04/07/2014
Delivery Units,Adults and Communities,Other Agencies - Third Party Payments,30019944,LIFEWAYS,"5,943.00",04/07/2014
Delivery Units,Adults and Communities,Other Agencies - Third Party Payments,30019953,LIFEWAYS,"4,828.24",04/07/2014
Delivery Units,Adults and Communities,Other Agencies - Third Party Payments,30022325,LIONCARE LIMITED,"5,409.60",17/07/2014
Delivery Units,Adults and Communities,Other Agencies - Third Party Payments,30022326,LIONCARE LIMITED,"5,409.60",17/07/2014
Delivery Units,Adults and Communities,Other Agencies - Third Party Payments,30018649,LIVABILITY,"-6,207.16",08/07/2014
Delivery Units,Adults and Communities,Other Agencies - Third Party Payments,30018665,LIVABILITY,"4,891.20",08/07/2014
Delivery Units,Adults and Communities,Other Agencies - Third Party Payments,30020300,LIVABILITY,"2,400.00",08/07/2014
Delivery Units,Adults and Communities,Other Agencies - Third Party Payments,30022393,LIVABILITY,"6,207.16",18/07/2014
Delivery Units,Adults and Communities,Other Agencies - Third Party Payments,30022500,LIVABILITY,"3,189.32",21/07/2014
Delivery Units,Adults and Communities,Other Agencies - Third Party Payments,30022502,LIVABILITY,"3,424.00",21/07/2014
Delivery Units,Adults and Communities,Other Agencies - Third Party Payments,30022503,LIVABILITY,"2,766.88",21/07/2014
Delivery Units,Adults and Communities,Other Agencies - Third Party Payments,30022505,LIVABILITY,"3,672.00",21/07/2014
Delivery Units,Adults and Communities,Other Agencies - Third Party Payments,30023072,LIVABILITY,"5,279.24",23/07/2014
Delivery Units,Adults and Communities,Other Agencies - Third Party Payments,30024182,LIVABILITY,"5,279.24",24/07/2014
Delivery Units,Adults and Communities,Other Agencies - Third Party Payments,30021088,LONDON CARE PLC,"6,512.46",16/07/2014
Delivery Units,Adults and Communities,Other Agencies - Third Party Payments,30021089,LONDON CARE PLC,"5,354.38",16/07/2014
Delivery Units,Adults and Communities,Other Agencies - Third Party Payments,30021090,LONDON CARE PLC,"5,199.16",16/07/2014
Delivery Units,Adults and Communities,Other Agencies - Third Party Payments,30021091,LONDON CARE PLC,"5,487.54",16/07/2014
Delivery Units,Adults and Communities,Other Agencies - Third Party Payments,30021092,LONDON CARE PLC,"4,880.66",16/07/2014
Delivery Units,Adults and Communities,Other Agencies - Third Party Payments,30019856,LONG FURROWS RESIDENTIAL CARE HOME,"4,105.24",04/07/2014
Delivery Units,Adults and Communities,Other Agencies - Third Party Payments,30019857,LONG FURROWS RESIDENTIAL CARE HOME,-531.21,04/07/2014
Delivery Units,Adults and Communities,Other Agencies - Third Party Payments,30019992,M D HOMES,"3,428.57",04/07/2014
Delivery Units,Adults and Communities,Other Agencies - Third Party Payments,30020324,MACINTYRE CARE,"4,015.72",08/07/2014
Delivery Units,Adults and Communities,Other Agencies - Third Party Payments,30020326,MACINTYRE CARE,"2,332.48",08/07/2014
Delivery Units,Adults and Communities,Other Agencies - Third Party Payments,30020328,MACINTYRE CARE,750.40,08/07/2014
Delivery Units,Adults and Communities,Other Agencies - Third Party Payments,30020329,MACINTYRE CARE,"3,812.84",08/07/2014
Delivery Units,Adults and Communities,Other Agencies - Third Party Payments,30020331,MACINTYRE CARE,"3,570.16",08/07/2014
Delivery Units,Adults and Communities,Other Agencies - Third Party Payments,30020333,MACINTYRE CARE,"2,326.48",08/07/2014
Delivery Units,Adults and Communities,Other Agencies - Third Party Payments,30020105,MADELAYNE COURT,"2,144.91",08/07/2014
Delivery Units,Adults and Communities,Other Agencies - Third Party Payments,30021109,MAISON MOTI LTD,"2,561.43",11/07/2014
Delivery Units,Adults and Communities,Other Agencies - Third Party Payments,30021193,MAISON MOTI LTD,"1,642.48",11/07/2014
Delivery Units,Adults and Communities,Other Agencies - Third Party Payments,30021194,MAISON MOTI LTD,"2,240.00",11/07/2014
Delivery Units,Adults and Communities,Other Agencies - Third Party Payments,30021195,MAISON MOTI LTD,"2,500.00",11/07/2014
Delivery Units,Adults and Communities,Other Agencies - Third Party Payments,30021196,MAISON MOTI LTD,"2,500.00",11/07/2014
Delivery Units,Adults and Communities,Other Agencies - Third Party Payments,30021277,MAISON MOTI LTD,814.29,14/07/2014
Delivery Units,Adults and Communities,Other Agencies - Third Party Payments,30021367,MAISON MOTI LTD,548.57,14/07/2014
Delivery Units,Adults and Communities,Other Agencies - Third Party Payments,30022081,MAISON MOTI LTD,"3,260.00",16/07/2014
Delivery Units,Adults and Communities,Other Agencies - Third Party Payments,30024598,MARRILYNE LODGE,"2,554.16",29/07/2014
Delivery Units,Adults and Communities,Other Agencies - Third Party Payments,30024599,MARRILYNE LODGE,"2,235.12",29/07/2014
Delivery Units,Adults and Communities,Other Agencies - Third Party Payments,30019591,MARYVILLE CARE HOME,"2,244.13",03/07/2014
Delivery Units,Adults and Communities,Other Agencies - Third Party Payments,30019592,MARYVILLE CARE HOME,-531.21,03/07/2014
Delivery Units,Adults and Communities,Other Agencies - Third Party Payments,30019867,MARYVILLE CARE HOME,"2,431.67",04/07/2014
Delivery Units,Adults and Communities,Other Agencies - Third Party Payments,30019868,MARYVILLE CARE HOME,-531.21,04/07/2014
Delivery Units,Adults and Communities,Other Agencies - Third Party Payments,30020003,MAYFIELD ADULT SERVICES,"9,557.14",04/07/2014
Delivery Units,Adults and Communities,Other Agencies - Third Party Payments,30019773,MCCH SOCIETY LIMITED,"4,280.00",24/07/2014
Delivery Units,Adults and Communities,Other Agencies - Third Party Payments,30021260,MEADOWBANK TRUST,"3,096.21",14/07/2014
Delivery Units,Adults and Communities,Other Agencies - Third Party Payments,30024508,MEADOWBANK TRUST,"3,199.42",29/07/2014
Delivery Units,Adults and Communities,Other Agencies - Third Party Payments,30025646,MEADOWBANK TRUST,"3,199.42",31/07/2014
Delivery Units,Adults and Communities,Other Agencies - Third Party Payments,30019705,MEERA NURSING HOME LIMITED,"2,244.13",03/07/2014
Delivery Units,Adults and Communities,Other Agencies - Third Party Payments,30019916,MEERA NURSING HOME LIMITED,"2,244.13",04/07/2014
Delivery Units,Adults and Communities,Other Agencies - Third Party Payments,30019987,MEERA NURSING HOME LIMITED,"2,245.71",04/07/2014
Delivery Units,Adults and Communities,Other Agencies - Third Party Payments,30020008,MEERA NURSING HOME LIMITED,"2,244.13",04/07/2014
Delivery Units,Adults and Communities,Other Agencies - Third Party Payments,30020010,MEERA NURSING HOME LIMITED,"2,449.76",04/07/2014
Delivery Units,Adults and Communities,Other Agencies - Third Party Payments,30020011,MEERA NURSING HOME LIMITED,"2,244.13",04/07/2014
Delivery Units,Adults and Communities,Other Agencies - Third Party Payments,30020012,MEERA NURSING HOME LIMITED,"2,245.67",04/07/2014
Delivery Units,Adults and Communities,Other Agencies - Third Party Payments,30020033,MEERA NURSING HOME LIMITED,"2,244.13",04/07/2014
Delivery Units,Adults and Communities,Other Agencies - Third Party Payments,30020109,MEERA NURSING HOME LIMITED,"2,244.13",08/07/2014
Delivery Units,Adults and Communities,Other Agencies - Third Party Payments,30022132,METHODIST HOMES FOR THE AGED,"2,321.92",16/07/2014
Delivery Units,Adults and Communities,Other Agencies - Third Party Payments,30022134,METHODIST HOMES FOR THE AGED,"2,321.92",16/07/2014
Delivery Units,Adults and Communities,Other Agencies - Third Party Payments,30022562,METHODIST HOMES FOR THE AGED,"2,321.92",21/07/2014
Delivery Units,Adults and Communities,Other Agencies - Third Party Payments,30023070,METHODIST HOMES FOR THE AGED,"2,001.92",23/07/2014
Delivery Units,Adults and Communities,Other Agencies - Third Party Payments,30023077,METHODIST HOMES FOR THE AGED,"2,500.00",23/07/2014
Delivery Units,Adults and Communities,Other Agencies - Third Party Payments,30022557,MILBURY,"6,235.00",21/07/2014
Delivery Units,Adults and Communities,Other Agencies - Third Party Payments,30019488,ML HOMES LTD,"1,740.00",02/07/2014
Delivery Units,Adults and Communities,Other Agencies - Third Party Payments,30020298,NAS SERVICES LTD,"2,035.64",08/07/2014
Delivery Units,Adults and Communities,Other Agencies - Third Party Payments,30022492,NAS SERVICES LTD,"3,666.96",21/07/2014
Delivery Units,Adults and Communities,Other Agencies - Third Party Payments,30022494,NAS SERVICES LTD,"2,035.64",21/07/2014
Delivery Units,Adults and Communities,Other Agencies - Third Party Payments,30019416,NATIONAL STAR COLLEGE,"12,889.00",02/07/2014
Delivery Units,Adults and Communities,Other Agencies - Third Party Payments,30021099,NATIONAL STAR COLLEGE,"12,889.00",11/07/2014
Delivery Units,Adults and Communities,Other Agencies - Third Party Payments,30019972,NAZARETH HOUSE,"2,144.91",04/07/2014
Delivery Units,Adults and Communities,Other Agencies - Third Party Payments,30019646,NAZARETH HOUSE,"2,144.91",08/07/2014
Delivery Units,Adults and Communities,Other Agencies - Third Party Payments,30019647,NAZARETH HOUSE,"2,839.71",08/07/2014
Delivery Units,Adults and Communities,Other Agencies - Third Party Payments,30019648,NAZARETH HOUSE,"2,340.04",08/07/2014
Delivery Units,Adults and Communities,Other Agencies - Third Party Payments,30019563,NEEM TREE CARE CENTRE,"2,610.00",03/07/2014
Delivery Units,Adults and Communities,Other Agencies - Third Party Payments,30024476,NEEM TREE CARE CENTRE,"1,741.44",29/07/2014
Delivery Units,Adults and Communities,Other Agencies - Third Party Payments,30019811,NEWCENTURY CARE LTD,"2,534.14",04/07/2014
Delivery Units,Adults and Communities,Other Agencies - Third Party Payments,30020045,NEWCENTURY CARE LTD,"2,288.00",08/07/2014
Delivery Units,Adults and Communities,Other Agencies - Third Party Payments,30023068,NEWCENTURY CARE LTD,"5,080.43",23/07/2014
Delivery Units,Adults and Communities,Other Agencies - Third Party Payments,30021084,NEXT STEP SUPPORT LIMITED,"2,240.00",09/07/2014
Delivery Units,Adults and Communities,Other Agencies - Third Party Payments,30021096,NEXT STEP SUPPORT LIMITED,"2,000.00",09/07/2014
Delivery Units,Adults and Communities,Other Agencies - Third Party Payments,30019778,NIGHTINGALE HOUSE,"2,442.86",04/07/2014
Delivery Units,Adults and Communities,Other Agencies - Third Party Payments,30019849,NORTH LONDON CARE SERVICES LTD,"6,058.88",04/07/2014
Delivery Units,Adults and Communities,Other Agencies - Third Party Payments,30019538,NORWOOD RAVENSWOOD SCHOOLS LTD,820.80,02/07/2014
Delivery Units,Adults and Communities,Other Agencies - Third Party Payments,30019792,NORWOOD RAVENSWOOD SCHOOLS LTD,880.00,03/07/2014
Delivery Units,Adults and Communities,Other Agencies - Third Party Payments,30022520,NORWOOD RAVENSWOOD SCHOOLS LTD,"5,732.00",23/07/2014
Delivery Units,Adults and Communities,Other Agencies - Third Party Payments,30022522,NORWOOD RAVENSWOOD SCHOOLS LTD,"6,528.00",23/07/2014
Delivery Units,Adults and Communities,Other Agencies - Third Party Payments,30022524,NORWOOD RAVENSWOOD SCHOOLS LTD,"4,656.00",23/07/2014
Delivery Units,Adults and Communities,Other Agencies - Third Party Payments,30022528,NORWOOD RAVENSWOOD SCHOOLS LTD,"5,792.00",23/07/2014
Delivery Units,Adults and Communities,Other Agencies - Third Party Payments,30022530,NORWOOD RAVENSWOOD SCHOOLS LTD,"7,788.00",23/07/2014
Delivery Units,Adults and Communities,Other Agencies - Third Party Payments,30022538,NORWOOD RAVENSWOOD SCHOOLS LTD,"4,748.00",23/07/2014
Delivery Units,Adults and Communities,Other Agencies - Third Party Payments,30022540,NORWOOD RAVENSWOOD SCHOOLS LTD,"4,924.00",23/07/2014
Delivery Units,Adults and Communities,Other Agencies - Third Party Payments,30022544,NORWOOD RAVENSWOOD SCHOOLS LTD,"7,148.00",23/07/2014
Delivery Units,Adults and Communities,Other Agencies - Third Party Payments,30022550,NORWOOD RAVENSWOOD SCHOOLS LTD,"5,540.00",23/07/2014
Delivery Units,Adults and Communities,Other Agencies - Third Party Payments,30024186,NORWOOD RAVENSWOOD SCHOOLS LTD,608.00,24/07/2014
Delivery Units,Adults and Communities,Other Agencies - Third Party Payments,30024187,NORWOOD RAVENSWOOD SCHOOLS LTD,"1,520.00",24/07/2014
Delivery Units,Adults and Communities,Other Agencies - Third Party Payments,30024188,NORWOOD RAVENSWOOD SCHOOLS LTD,729.60,24/07/2014
Delivery Units,Adults and Communities,Other Agencies - Third Party Payments,30024191,NORWOOD RAVENSWOOD SCHOOLS LTD,790.40,24/07/2014
Delivery Units,Adults and Communities,Other Agencies - Third Party Payments,30024375,NORWOOD RAVENSWOOD SCHOOLS LTD,"1,021.44",25/07/2014
Delivery Units,Adults and Communities,Other Agencies - Third Party Payments,30024381,NORWOOD RAVENSWOOD SCHOOLS LTD,"1,021.44",25/07/2014
Delivery Units,Adults and Communities,Other Agencies - Third Party Payments,30024387,NORWOOD RAVENSWOOD SCHOOLS LTD,820.80,25/07/2014
Delivery Units,Adults and Communities,Other Agencies - Third Party Payments,30024451,NOTTING HILL HOUSING TRUST,"19,136.25",28/07/2014
Delivery Units,Adults and Communities,Other Agencies - Third Party Payments,30024472,OAKHOUSE,"2,977.08",29/07/2014
Delivery Units,Adults and Communities,Other Agencies - Third Party Payments,30024474,OAKHOUSE,"3,047.48",29/07/2014
Delivery Units,Adults and Communities,Other Agencies - Third Party Payments,30020021,ONE STEP (SUPPORT) LTD,"1,084.60",04/07/2014
Delivery Units,Adults and Communities,Other Agencies - Third Party Payments,30019593,OPTIMAL LIVING (LUTON) LTD,"4,622.61",03/07/2014
Delivery Units,Adults and Communities,Other Agencies - Third Party Payments,30019594,OPTIMAL LIVING (LUTON) LTD,-531.21,03/07/2014
Delivery Units,Adults and Communities,Other Agencies - Third Party Payments,30022551,ORIGIN HOUSING LIMITED,"1,065.60",21/07/2014
Delivery Units,Adults and Communities,Other Agencies - Third Party Payments,30022552,ORIGIN HOUSING LIMITED,"1,728.00",21/07/2014
Delivery Units,Adults and Communities,Other Agencies - Third Party Payments,30022554,ORIGIN HOUSING LIMITED,"1,324.80",21/07/2014
Delivery Units,Adults and Communities,Other Agencies - Third Party Payments,30021262,PARADISE HOUSE ASSOCIATION LTD,"3,401.31",14/07/2014
Delivery Units,Adults and Communities,Other Agencies - Third Party Payments,30024510,PARADISE HOUSE ASSOCIATION LTD,"3,514.69",29/07/2014
Delivery Units,Adults and Communities,Other Agencies - Third Party Payments,30025648,PARADISE HOUSE ASSOCIATION LTD,"3,514.69",31/07/2014
Delivery Units,Adults and Communities,Other Agencies - Third Party Payments,30019847,PARKCARE HOMES (NO2) LIMITED,"4,641.68",04/07/2014
Delivery Units,Adults and Communities,Other Agencies - Third Party Payments,30019860,PARKCARE HOMES (NO2) LIMITED,"4,658.14",04/07/2014
Delivery Units,Adults and Communities,Other Agencies - Third Party Payments,30019862,PARKCARE HOMES (NO2) LIMITED,"4,988.74",04/07/2014
Delivery Units,Adults and Communities,Other Agencies - Third Party Payments,30019864,PARKCARE HOMES (NO2) LIMITED,"4,988.74",04/07/2014
Delivery Units,Adults and Communities,Other Agencies - Third Party Payments,30020057,PARKCARE HOMES (NO2) LIMITED,"5,309.91",08/07/2014
Delivery Units,Adults and Communities,Other Agencies - Third Party Payments,30024059,PAULMAY RESIDENTIAL HOME,"2,184.04",29/07/2014
Delivery Units,Adults and Communities,Other Agencies - Third Party Payments,30024060,PAULMAY RESIDENTIAL HOME,"1,326.02",29/07/2014
Delivery Units,Adults and Communities,Other Agencies - Third Party Payments,30019633,PILLARCARE,"6,328.00",03/07/2014
Delivery Units,Adults and Communities,Other Agencies - Third Party Payments,30019652,PLATINUM HEALTH RESOURCES LTD,"1,597.84",08/07/2014
Delivery Units,Adults and Communities,Other Agencies - Third Party Payments,30022096,PLATINUM HEALTH RESOURCES LTD,"4,789.46",16/07/2014
Delivery Units,Adults and Communities,Other Agencies - Third Party Payments,30022104,PLATINUM HEALTH RESOURCES LTD,"3,642.86",16/07/2014
Delivery Units,Adults and Communities,Other Agencies - Third Party Payments,30021187,PRT BARNET CARERS CENTRE,751.39,11/07/2014
Delivery Units,Adults and Communities,Other Agencies - Third Party Payments,30024200,PRT BARNET CARERS CENTRE,725.48,25/07/2014
Delivery Units,Adults and Communities,Other Agencies - Third Party Payments,30020004,PURBECK CARE LTD,"7,637.14",04/07/2014
Delivery Units,Adults and Communities,Other Agencies - Third Party Payments,30020005,PURBECK CARE LTD,-531.21,04/07/2014
Delivery Units,Adults and Communities,Other Agencies - Third Party Payments,30019649,QUALITY HOUSING & SOCIAL CARE LTD,"2,785.71",03/07/2014
Delivery Units,Adults and Communities,Other Agencies - Third Party Payments,30022082,QUANTUM CARE LIMITED,"2,245.67",16/07/2014
Delivery Units,Adults and Communities,Other Agencies - Third Party Payments,30022083,QUANTUM CARE LIMITED,-531.21,16/07/2014
Delivery Units,Adults and Communities,Other Agencies - Third Party Payments,30022084,QUANTUM CARE LIMITED,"2,247.00",16/07/2014
Delivery Units,Adults and Communities,Other Agencies - Third Party Payments,30022085,QUANTUM CARE LIMITED,"2,340.04",16/07/2014
Delivery Units,Adults and Communities,Other Agencies - Third Party Payments,30022086,QUANTUM CARE LIMITED,-531.21,16/07/2014
Delivery Units,Adults and Communities,Other Agencies - Third Party Payments,30022812,QUANTUM CARE LIMITED,"2,364.81",23/07/2014
Delivery Units,Adults and Communities,Other Agencies - Third Party Payments,30022813,QUANTUM CARE LIMITED,"2,288.53",23/07/2014
Delivery Units,Adults and Communities,Other Agencies - Third Party Payments,30019985,QUEEN ANN CARE,"3,857.14",04/07/2014
Delivery Units,Adults and Communities,Other Agencies - Third Party Payments,30019423,RAINBOW HOMES LONDON LTD,"3,978.00",02/07/2014
Delivery Units,Adults and Communities,Other Agencies - Third Party Payments,30020048,RAINBOW HOMES LONDON LTD,"3,199.80",08/07/2014
Delivery Units,Adults and Communities,Other Agencies - Third Party Payments,30025615,RAINBOW HOMES LONDON LTD,"4,110.60",31/07/2014
Delivery Units,Adults and Communities,Other Agencies - Third Party Payments,30025616,RAINBOW HOMES LONDON LTD,"3,306.46",31/07/2014
Delivery Units,Adults and Communities,Other Agencies - Third Party Payments,30024577,REAL LIFE OPTIONS,"5,252.28",29/07/2014
Delivery Units,Adults and Communities,Other Agencies - Third Party Payments,30019873,REDACTED - PERSONAL DATA,"4,705.88",04/07/2014
Delivery Units,Adults and Communities,Other Agencies - Third Party Payments,30019431,REHABILITATION EDUCATION AND,"2,961.76",02/07/2014
Delivery Units,Adults and Communities,Other Agencies - Third Party Payments,30025627,REHABILITATION EDUCATION AND,"2,961.76",31/07/2014
Delivery Units,Adults and Communities,Other Agencies - Third Party Payments,30019866,RIDGEWAY NURSING HOME,"2,357.10",04/07/2014
Delivery Units,Adults and Communities,Other Agencies - Third Party Payments,30019829,ROBERT OWEN COMMUNITIES (ROC),"5,721.43",04/07/2014
Delivery Units,Adults and Communities,Other Agencies - Third Party Payments,30019991,ROLAND RESIDENTIAL CARE HOMES,"3,918.81",04/07/2014
Delivery Units,Adults and Communities,Other Agencies - Third Party Payments,30019915,ROLAND RESIDENTIAL CARE HOMES LTD,"3,121.20",04/07/2014
Delivery Units,Adults and Communities,Other Agencies - Third Party Payments,30019980,ROLAND RESIDENTIAL CARE HOMES LTD,"4,061.14",04/07/2014
Delivery Units,Adults and Communities,Other Agencies - Third Party Payments,30020088,ROLAND RESIDENTIAL CARE HOMES LTD,"3,169.29",08/07/2014
Delivery Units,Adults and Communities,Other Agencies - Third Party Payments,30020306,ROSEACRES CARE HOME LIMITED,"-2,418.04",08/07/2014
Delivery Units,Adults and Communities,Other Agencies - Third Party Payments,30020307,ROSEACRES CARE HOME LIMITED,"2,340.04",08/07/2014
Delivery Units,Adults and Communities,Other Agencies - Third Party Payments,30020308,ROSEACRES CARE HOME LIMITED,"2,340.04",08/07/2014
Delivery Units,Adults and Communities,Other Agencies - Third Party Payments,30020309,ROSEACRES CARE HOME LIMITED,"2,340.04",08/07/2014
Delivery Units,Adults and Communities,Other Agencies - Third Party Payments,30020310,ROSEACRES CARE HOME LIMITED,"2,340.04",08/07/2014
Delivery Units,Adults and Communities,Other Agencies - Third Party Payments,30020311,ROSEACRES CARE HOME LIMITED,"1,248.02",08/07/2014
Delivery Units,Adults and Communities,Other Agencies - Third Party Payments,30020312,ROSEACRES CARE HOME LIMITED,"2,340.04",08/07/2014
Delivery Units,Adults and Communities,Other Agencies - Third Party Payments,30020313,ROSEACRES CARE HOME LIMITED,"2,340.04",08/07/2014
Delivery Units,Adults and Communities,Other Agencies - Third Party Payments,30020314,ROSEACRES CARE HOME LIMITED,"2,340.04",08/07/2014
Delivery Units,Adults and Communities,Other Agencies - Third Party Payments,30020315,ROSEACRES CARE HOME LIMITED,"2,340.04",08/07/2014
Delivery Units,Adults and Communities,Other Agencies - Third Party Payments,30020316,ROSEACRES CARE HOME LIMITED,"2,340.04",08/07/2014
Delivery Units,Adults and Communities,Other Agencies - Third Party Payments,30020317,ROSEACRES CARE HOME LIMITED,"2,340.04",08/07/2014
Delivery Units,Adults and Communities,Other Agencies - Third Party Payments,30020318,ROSEACRES CARE HOME LIMITED,"2,340.04",08/07/2014
Delivery Units,Adults and Communities,Other Agencies - Third Party Payments,30020319,ROSEACRES CARE HOME LIMITED,"2,340.04",08/07/2014
Delivery Units,Adults and Communities,Other Agencies - Third Party Payments,30025518,ROSEACRES CARE HOME LIMITED,546.01,30/07/2014
Delivery Units,Adults and Communities,Other Agencies - Third Party Payments,30025519,ROSEACRES CARE HOME LIMITED,"2,496.05",30/07/2014
Delivery Units,Adults and Communities,Other Agencies - Third Party Payments,30025744,ROSEACRES CARE HOME LIMITED,"2,418.04",31/07/2014
Delivery Units,Adults and Communities,Other Agencies - Third Party Payments,30025745,ROSEACRES CARE HOME LIMITED,"2,418.04",31/07/2014
Delivery Units,Adults and Communities,Other Agencies - Third Party Payments,30025747,ROSEACRES CARE HOME LIMITED,"2,418.04",31/07/2014
Delivery Units,Adults and Communities,Other Agencies - Third Party Payments,30025748,ROSEACRES CARE HOME LIMITED,"2,418.04",31/07/2014
Delivery Units,Adults and Communities,Other Agencies - Third Party Payments,30025749,ROSEACRES CARE HOME LIMITED,"2,418.04",31/07/2014
Delivery Units,Adults and Communities,Other Agencies - Third Party Payments,30025750,ROSEACRES CARE HOME LIMITED,"2,418.04",31/07/2014
Delivery Units,Adults and Communities,Other Agencies - Third Party Payments,30025751,ROSEACRES CARE HOME LIMITED,"2,418.04",31/07/2014
Delivery Units,Adults and Communities,Other Agencies - Third Party Payments,30025752,ROSEACRES CARE HOME LIMITED,"2,418.04",31/07/2014
Delivery Units,Adults and Communities,Other Agencies - Third Party Payments,30025753,ROSEACRES CARE HOME LIMITED,"2,418.04",31/07/2014
Delivery Units,Adults and Communities,Other Agencies - Third Party Payments,30025754,ROSEACRES CARE HOME LIMITED,"2,418.04",31/07/2014
Delivery Units,Adults and Communities,Other Agencies - Third Party Payments,30025755,ROSEACRES CARE HOME LIMITED,"2,418.04",31/07/2014
Delivery Units,Adults and Communities,Other Agencies - Third Party Payments,30019683,ROWAN HOUSE,"4,279.63",03/07/2014
Delivery Units,Adults and Communities,Other Agencies - Third Party Payments,30025638,SAGE NURSING HOME,"2,244.30",31/07/2014
Delivery Units,Adults and Communities,Other Agencies - Third Party Payments,20009820,SAINT JOHN OF GOD HOSPITALLER SERVICES,528.50,29/07/2014
Delivery Units,Adults and Communities,Other Agencies - Third Party Payments,30019974,SANCTUARY CARE LTD,"2,340.04",04/07/2014
Delivery Units,Adults and Communities,Other Agencies - Third Party Payments,30019801,SAXON COURT,"2,355.55",04/07/2014
Delivery Units,Adults and Communities,Other Agencies - Third Party Payments,30019802,SAXON COURT,-531.21,04/07/2014
Delivery Units,Adults and Communities,Other Agencies - Third Party Payments,30019803,SAXON COURT,"2,355.56",04/07/2014
Delivery Units,Adults and Communities,Other Agencies - Third Party Payments,30019804,SAXON COURT,-531.21,04/07/2014
Delivery Units,Adults and Communities,Other Agencies - Third Party Payments,30016611,SCIMITAR CARE HOTELS PLC,"2,534.00",01/07/2014
Delivery Units,Adults and Communities,Other Agencies - Third Party Payments,30019965,SCIMITAR CARE HOTELS PLC,"2,340.04",04/07/2014
Delivery Units,Adults and Communities,Other Agencies - Third Party Payments,30019966,SCIMITAR CARE HOTELS PLC,"2,665.71",04/07/2014
Delivery Units,Adults and Communities,Other Agencies - Third Party Payments,30019967,SCIMITAR CARE HOTELS PLC,-514.07,04/07/2014
Delivery Units,Adults and Communities,Other Agencies - Third Party Payments,30019999,SCIMITAR CARE HOTELS PLC,"2,340.04",04/07/2014
Delivery Units,Adults and Communities,Other Agencies - Third Party Payments,30019555,SCOPE,"2,903.88",03/07/2014
Delivery Units,Adults and Communities,Other Agencies - Third Party Payments,30021219,SCOPE,"3,259.40",14/07/2014
Delivery Units,Adults and Communities,Other Agencies - Third Party Payments,30021220,SCOPE,-531.21,14/07/2014
Delivery Units,Adults and Communities,Other Agencies - Third Party Payments,30021110,SCOTTISH SOCIETY FOR AUTISM,"5,781.64",11/07/2014
Delivery Units,Adults and Communities,Other Agencies - Third Party Payments,30021112,SCOTTISH SOCIETY FOR AUTISM,"1,172.08",11/07/2014
Delivery Units,Adults and Communities,Other Agencies - Third Party Payments,30019961,SEAFORTH LODGE,"2,340.04",04/07/2014
Delivery Units,Adults and Communities,Other Agencies - Third Party Payments,30019984,SEAFORTH LODGE,"2,144.91",04/07/2014
Delivery Units,Adults and Communities,Other Agencies - Third Party Payments,30020007,SEAFORTH LODGE,"2,340.04",04/07/2014
Delivery Units,Adults and Communities,Other Agencies - Third Party Payments,30020037,SEAFORTH LODGE,"2,340.04",04/07/2014
Delivery Units,Adults and Communities,Other Agencies - Third Party Payments,30019624,SELF UNLIMITED,"3,195.34",03/07/2014
Delivery Units,Adults and Communities,Other Agencies - Third Party Payments,30019626,SELF UNLIMITED,"2,217.25",03/07/2014
Delivery Units,Adults and Communities,Other Agencies - Third Party Payments,30025696,SELF UNLIMITED,"2,291.16",31/07/2014
Delivery Units,Adults and Communities,Other Agencies - Third Party Payments,30019496,SELF UNLIMITED-LONDON REGION,"4,221.36",02/07/2014
Delivery Units,Adults and Communities,Other Agencies - Third Party Payments,20009051,SELF UNLIMITED-LONDON REGION,"1,177.20",08/07/2014
Delivery Units,Adults and Communities,Other Agencies - Third Party Payments,30021212,SELF UNLIMITED-LONDON REGION,990.00,11/07/2014
Delivery Units,Adults and Communities,Other Agencies - Third Party Payments,30024344,SELF UNLIMITED-LONDON REGION,"1,921.28",25/07/2014
Delivery Units,Adults and Communities,Other Agencies - Third Party Payments,30024345,SELF UNLIMITED-LONDON REGION,"1,695.12",25/07/2014
Delivery Units,Adults and Communities,Other Agencies - Third Party Payments,30024346,SELF UNLIMITED-LONDON REGION,"4,221.36",25/07/2014
Delivery Units,Adults and Communities,Other Agencies - Third Party Payments,30024347,SELF UNLIMITED-LONDON REGION,"1,520.00",25/07/2014
Delivery Units,Adults and Communities,Other Agencies - Third Party Payments,30024348,SELF UNLIMITED-LONDON REGION,"3,947.12",25/07/2014
Delivery Units,Adults and Communities,Other Agencies - Third Party Payments,30024349,SELF UNLIMITED-LONDON REGION,"1,781.44",25/07/2014
Delivery Units,Adults and Communities,Other Agencies - Third Party Payments,30024350,SELF UNLIMITED-LONDON REGION,"1,690.24",25/07/2014
Delivery Units,Adults and Communities,Other Agencies - Third Party Payments,30024351,SELF UNLIMITED-LONDON REGION,"1,088.32",25/07/2014
Delivery Units,Adults and Communities,Other Agencies - Third Party Payments,30024352,SELF UNLIMITED-LONDON REGION,"3,279.56",25/07/2014
Delivery Units,Adults and Communities,Other Agencies - Third Party Payments,30024353,SELF UNLIMITED-LONDON REGION,"1,459.20",25/07/2014
Delivery Units,Adults and Communities,Other Agencies - Third Party Payments,30024354,SELF UNLIMITED-LONDON REGION,"1,155.20",25/07/2014
Delivery Units,Adults and Communities,Other Agencies - Third Party Payments,30024355,SELF UNLIMITED-LONDON REGION,"6,157.84",25/07/2014
Delivery Units,Adults and Communities,Other Agencies - Third Party Payments,30024356,SELF UNLIMITED-LONDON REGION,"3,240.64",25/07/2014
Delivery Units,Adults and Communities,Other Agencies - Third Party Payments,30024357,SELF UNLIMITED-LONDON REGION,"2,783.44",25/07/2014
Delivery Units,Adults and Communities,Other Agencies - Third Party Payments,30024359,SELF UNLIMITED-LONDON REGION,"2,145.04",25/07/2014
Delivery Units,Adults and Communities,Other Agencies - Third Party Payments,30024360,SELF UNLIMITED-LONDON REGION,"3,554.36",25/07/2014
Delivery Units,Adults and Communities,Other Agencies - Third Party Payments,30024361,SELF UNLIMITED-LONDON REGION,"4,496.16",25/07/2014
Delivery Units,Adults and Communities,Other Agencies - Third Party Payments,30024362,SELF UNLIMITED-LONDON REGION,"7,009.04",25/07/2014
Delivery Units,Adults and Communities,Other Agencies - Third Party Payments,30024363,SELF UNLIMITED-LONDON REGION,"3,947.12",25/07/2014
Delivery Units,Adults and Communities,Other Agencies - Third Party Payments,30024364,SELF UNLIMITED-LONDON REGION,"3,149.44",25/07/2014
Delivery Units,Adults and Communities,Other Agencies - Third Party Payments,30024365,SELF UNLIMITED-LONDON REGION,"1,094.40",25/07/2014
Delivery Units,Adults and Communities,Other Agencies - Third Party Payments,30024366,SELF UNLIMITED-LONDON REGION,"4,859.12",25/07/2014
Delivery Units,Adults and Communities,Other Agencies - Third Party Payments,30024367,SELF UNLIMITED-LONDON REGION,"1,921.28",25/07/2014
Delivery Units,Adults and Communities,Other Agencies - Third Party Payments,30024368,SELF UNLIMITED-LONDON REGION,"1,914.00",25/07/2014
Delivery Units,Adults and Communities,Other Agencies - Third Party Payments,30024369,SELF UNLIMITED-LONDON REGION,"2,926.32",25/07/2014
Delivery Units,Adults and Communities,Other Agencies - Third Party Payments,30024370,SELF UNLIMITED-LONDON REGION,"2,110.96",25/07/2014
Delivery Units,Adults and Communities,Other Agencies - Third Party Payments,30024448,SELF UNLIMITED-LONDON REGION,"4,025.56",28/07/2014
Delivery Units,Adults and Communities,Other Agencies - Third Party Payments,30020100,SENSE CAS FINANCE TEAM,"4,754.52",08/07/2014
Delivery Units,Adults and Communities,Other Agencies - Third Party Payments,30019503,SENSE CAS FINANCE TEAM,"2,413.60",08/07/2014
Delivery Units,Adults and Communities,Other Agencies - Third Party Payments,30019713,SENSE CAS FINANCE TEAM,"3,866.28",08/07/2014
Delivery Units,Adults and Communities,Other Agencies - Third Party Payments,30020094,SENSE CAS FINANCE TEAM,"7,942.20",08/07/2014
Delivery Units,Adults and Communities,Other Agencies - Third Party Payments,30020095,SENSE CAS FINANCE TEAM,-531.21,08/07/2014
Delivery Units,Adults and Communities,Other Agencies - Third Party Payments,30020096,SENSE CAS FINANCE TEAM,"6,511.68",08/07/2014
Delivery Units,Adults and Communities,Other Agencies - Third Party Payments,30020098,SENSE CAS FINANCE TEAM,"6,773.28",08/07/2014
Delivery Units,Adults and Communities,Other Agencies - Third Party Payments,30025525,SENSE CAS FINANCE TEAM,"4,754.52",30/07/2014
Delivery Units,Adults and Communities,Other Agencies - Third Party Payments,30025521,SENSE CAS FINANCE TEAM,"6,511.68",30/07/2014
Delivery Units,Adults and Communities,Other Agencies - Third Party Payments,30025523,SENSE CAS FINANCE TEAM,"6,773.28",30/07/2014
Delivery Units,Adults and Communities,Other Agencies - Third Party Payments,30025762,SENSE CAS FINANCE TEAM,"8,206.94",31/07/2014
Delivery Units,Adults and Communities,Other Agencies - Third Party Payments,30025763,SENSE CAS FINANCE TEAM,-548.92,31/07/2014
Delivery Units,Adults and Communities,Other Agencies - Third Party Payments,30019841,SEVA CARE HOME,"2,144.91",04/07/2014
Delivery Units,Adults and Communities,Other Agencies - Third Party Payments,30019842,SEVA CARE HOME,"2,144.91",04/07/2014
Delivery Units,Adults and Communities,Other Agencies - Third Party Payments,30020067,SEYMOUR RESIDENTIAL CARE HOME,"2,340.04",08/07/2014
Delivery Units,Adults and Communities,Other Agencies - Third Party Payments,30021087,SGSL LTD,"2,880.00",09/07/2014
Delivery Units,Adults and Communities,Other Agencies - Third Party Payments,30021093,SGSL LTD,"1,390.00",09/07/2014
Delivery Units,Adults and Communities,Other Agencies - Third Party Payments,30021095,SGSL LTD,"2,399.88",09/07/2014
Delivery Units,Adults and Communities,Other Agencies - Third Party Payments,30021184,SGSL LTD,"2,720.00",11/07/2014
Delivery Units,Adults and Communities,Other Agencies - Third Party Payments,30021365,SHAKTI NURSING HOME,"2,244.13",14/07/2014
Delivery Units,Adults and Communities,Other Agencies - Third Party Payments,30021366,SHAKTI NURSING HOME,"2,244.13",14/07/2014
Delivery Units,Adults and Communities,Other Agencies - Third Party Payments,30019574,SHAW TRUST LIMITED,560.00,03/07/2014
Delivery Units,Adults and Communities,Other Agencies - Third Party Payments,30019914,SHINE PARTNERSHIPS LTD,"2,352.00",04/07/2014
Delivery Units,Adults and Communities,Other Agencies - Third Party Payments,30021178,SHINE PARTNERSHIPS LTD,"2,357.14",11/07/2014
Delivery Units,Adults and Communities,Other Agencies - Third Party Payments,30025699,SHINE PARTNERSHIPS LTD,"2,352.00",31/07/2014
Delivery Units,Adults and Communities,Other Agencies - Third Party Payments,30025724,SHINE PARTNERSHIPS LTD,"1,885.71",31/07/2014
Delivery Units,Adults and Communities,Other Agencies - Third Party Payments,30025764,SHINE PARTNERSHIPS LTD,"2,640.00",31/07/2014
Delivery Units,Adults and Communities,Other Agencies - Third Party Payments,30025631,SIGN HEALTH,"10,185.71",31/07/2014
Delivery Units,Adults and Communities,Other Agencies - Third Party Payments,30019577,SIMEON CARE,"3,097.16",03/07/2014
Delivery Units,Adults and Communities,Other Agencies - Third Party Payments,30019878,SIR THOMAS LIPTON,"2,145.00",04/07/2014
Delivery Units,Adults and Communities,Other Agencies - Third Party Payments,30019579,SONESTA NURSING HOME LTD.,"2,244.13",03/07/2014
Delivery Units,Adults and Communities,Other Agencies - Third Party Payments,30019580,SONESTA NURSING HOME LTD.,"2,244.13",03/07/2014
Delivery Units,Adults and Communities,Other Agencies - Third Party Payments,30019581,SONESTA NURSING HOME LTD.,"2,041.67",03/07/2014
Delivery Units,Adults and Communities,Other Agencies - Third Party Payments,30019582,SONESTA NURSING HOME LTD.,"2,244.13",03/07/2014
Delivery Units,Adults and Communities,Other Agencies - Third Party Payments,30019583,SONESTA NURSING HOME LTD.,"2,487.77",03/07/2014
Delivery Units,Adults and Communities,Other Agencies - Third Party Payments,30020078,SPANISH AND PORTUGUESE JEWISH,"2,144.91",11/07/2014
Delivery Units,Adults and Communities,Other Agencies - Third Party Payments,30021256,SPRINGDENE,"3,501.00",14/07/2014
Delivery Units,Adults and Communities,Other Agencies - Third Party Payments,30021258,SPRINGDENE,"3,214.29",14/07/2014
Delivery Units,Adults and Communities,Other Agencies - Third Party Payments,30021267,SPRINGDENE,"2,290.71",14/07/2014
Delivery Units,Adults and Communities,Other Agencies - Third Party Payments,30021268,SPRINGDENE,-597.94,14/07/2014
Delivery Units,Adults and Communities,Other Agencies - Third Party Payments,30019767,ST AGNELL'S HOUSE (CARETECH),"5,978.57",03/07/2014
Delivery Units,Adults and Communities,Other Agencies - Third Party Payments,30022327,ST ANDREWS DAY CENTRE,"2,689.74",17/07/2014
Delivery Units,Adults and Communities,Other Agencies - Third Party Payments,30022328,ST ANDREWS DAY CENTRE,"2,988.60",17/07/2014
Delivery Units,Adults and Communities,Other Agencies - Third Party Payments,30019424,ST DOMINIC'S NURSING HOME,"2,094.52",02/07/2014
Delivery Units,Adults and Communities,Other Agencies - Third Party Payments,30025617,ST DOMINIC'S NURSING HOME,"2,094.52",31/07/2014
Delivery Units,Adults and Communities,Other Agencies - Third Party Payments,30019771,ST ELIZABETH'S CENTRE,"10,147.50",03/07/2014
Delivery Units,Adults and Communities,Other Agencies - Third Party Payments,30020027,ST ELIZABETH'S CENTRE,"4,211.40",04/07/2014
Delivery Units,Adults and Communities,Other Agencies - Third Party Payments,30020028,ST ELIZABETH'S CENTRE,-531.21,04/07/2014
Delivery Units,Adults and Communities,Other Agencies - Third Party Payments,30020029,ST ELIZABETH'S CENTRE,"11,374.20",04/07/2014
Delivery Units,Adults and Communities,Other Agencies - Third Party Payments,30024083,ST MUNGO ASSOCIATION,"2,720.00",24/07/2014
Delivery Units,Adults and Communities,Other Agencies - Third Party Payments,30019839,ST RAPHAELS HOME,"2,382.85",04/07/2014
Delivery Units,Adults and Communities,Other Agencies - Third Party Payments,30019840,ST RAPHAELS HOME,-531.21,04/07/2014
Delivery Units,Adults and Communities,Other Agencies - Third Party Payments,30019679,ST VINCENT'S NURSING HOME,"2,144.91",03/07/2014
Delivery Units,Adults and Communities,Other Agencies - Third Party Payments,30019680,ST VINCENT'S NURSING HOME,-531.21,03/07/2014
Delivery Units,Adults and Communities,Other Agencies - Third Party Payments,30025727,ST VINCENT'S NURSING HOME,"2,216.41",31/07/2014
Delivery Units,Adults and Communities,Other Agencies - Third Party Payments,30025728,ST VINCENT'S NURSING HOME,-548.92,31/07/2014
Delivery Units,Adults and Communities,Other Agencies - Third Party Payments,30019815,ST. AUDREYS RETIREMENT HOME,"2,340.04",04/07/2014
Delivery Units,Adults and Communities,Other Agencies - Third Party Payments,30018613,ST. MARK'S DAY SERVICE,"1,999.08",03/07/2014
Delivery Units,Adults and Communities,Other Agencies - Third Party Payments,30024331,ST. MARK'S DAY SERVICE,"1,999.08",31/07/2014
Delivery Units,Adults and Communities,Other Agencies - Third Party Payments,30020285,STALLCOMBE HOUSE FARM TRUST,"6,472.00",08/07/2014
Delivery Units,Adults and Communities,Other Agencies - Third Party Payments,30020064,STOUR VALLEY CARE GROUP,548.58,08/07/2014
Delivery Units,Adults and Communities,Other Agencies - Third Party Payments,30020065,STOUR VALLEY CARE GROUP,"5,668.57",08/07/2014
Delivery Units,Adults and Communities,Other Agencies - Third Party Payments,30020066,STOUR VALLEY CARE GROUP,"5,485.72",08/07/2014
Delivery Units,Adults and Communities,Other Agencies - Third Party Payments,30020287,STRIVING FOR INDEPENDENCE HOMES LLP,"5,828.57",08/07/2014
Delivery Units,Adults and Communities,Other Agencies - Third Party Payments,30020288,STRIVING FOR INDEPENDENCE HOMES LLP,-531.21,08/07/2014
Delivery Units,Adults and Communities,Other Agencies - Third Party Payments,30025613,STRIVING FOR INDEPENDENCE HOMES LLP,"6,022.86",31/07/2014
Delivery Units,Adults and Communities,Other Agencies - Third Party Payments,30025614,STRIVING FOR INDEPENDENCE HOMES LLP,-548.92,31/07/2014
Delivery Units,Adults and Communities,Other Agencies - Third Party Payments,30019855,SUNRIDGE HOUSING ASSOCIATION LTD,-560.16,04/07/2014
Delivery Units,Adults and Communities,Other Agencies - Third Party Payments,30020030,SYDMAR LODGE,"2,144.91",04/07/2014
Delivery Units,Adults and Communities,Other Agencies - Third Party Payments,30020031,SYDMAR LODGE,"2,785.71",04/07/2014
Delivery Units,Adults and Communities,Other Agencies - Third Party Payments,30020032,SYDMAR LODGE,"2,340.04",04/07/2014
Delivery Units,Adults and Communities,Other Agencies - Third Party Payments,30019650,TANSLEY HOUSE RESIDENTIAL HOME,"4,361.33",03/07/2014
Delivery Units,Adults and Communities,Other Agencies - Third Party Payments,30020042,TENTERDEN HOUSE,"3,834.60",04/07/2014
Delivery Units,Adults and Communities,Other Agencies - Third Party Payments,30021221,TERRINGTON LODGE LTD,"1,899.68",14/07/2014
Delivery Units,Adults and Communities,Other Agencies - Third Party Payments,30021222,TERRINGTON LODGE LTD,"1,963.00",14/07/2014
Delivery Units,Adults and Communities,Other Agencies - Third Party Payments,30021223,TERRINGTON LODGE LTD,"1,773.03",14/07/2014
Delivery Units,Adults and Communities,Other Agencies - Third Party Payments,30021224,TERRINGTON LODGE LTD,"1,963.00",14/07/2014
Delivery Units,Adults and Communities,Other Agencies - Third Party Payments,30021225,TERRINGTON LODGE LTD,"1,963.00",14/07/2014
Delivery Units,Adults and Communities,Other Agencies - Third Party Payments,30021226,TERRINGTON LODGE LTD,"1,899.68",14/07/2014
Delivery Units,Adults and Communities,Other Agencies - Third Party Payments,30025608,TERRINGTON LODGE LTD,"1,899.68",31/07/2014
Delivery Units,Adults and Communities,Other Agencies - Third Party Payments,30025609,TERRINGTON LODGE LTD,"1,963.00",31/07/2014
Delivery Units,Adults and Communities,Other Agencies - Third Party Payments,30019517,THE BARNETGROUP LIMITED,"1,590.00",02/07/2014
Delivery Units,Adults and Communities,Other Agencies - Third Party Payments,30019520,THE BARNETGROUP LIMITED,"3,920.00",02/07/2014
Delivery Units,Adults and Communities,Other Agencies - Third Party Payments,30019522,THE BARNETGROUP LIMITED,881.60,02/07/2014
Delivery Units,Adults and Communities,Other Agencies - Third Party Payments,30019525,THE BARNETGROUP LIMITED,"1,120.00",02/07/2014
Delivery Units,Adults and Communities,Other Agencies - Third Party Payments,30019527,THE BARNETGROUP LIMITED,"1,120.00",02/07/2014
Delivery Units,Adults and Communities,Other Agencies - Third Party Payments,30019529,THE BARNETGROUP LIMITED,"1,120.00",02/07/2014
Delivery Units,Adults and Communities,Other Agencies - Third Party Payments,30019531,THE BARNETGROUP LIMITED,"1,120.00",02/07/2014
Delivery Units,Adults and Communities,Other Agencies - Third Party Payments,30024460,THE BARNETGROUP LIMITED,"3,920.00",28/07/2014
Delivery Units,Adults and Communities,Other Agencies - Third Party Payments,30024462,THE BARNETGROUP LIMITED,"1,120.00",28/07/2014
Delivery Units,Adults and Communities,Other Agencies - Third Party Payments,30024465,THE BARNETGROUP LIMITED,"1,120.00",28/07/2014
Delivery Units,Adults and Communities,Other Agencies - Third Party Payments,30024467,THE BARNETGROUP LIMITED,"1,120.00",28/07/2014
Delivery Units,Adults and Communities,Other Agencies - Third Party Payments,30024468,THE BARNETGROUP LIMITED,881.60,28/07/2014
Delivery Units,Adults and Communities,Other Agencies - Third Party Payments,30024470,THE BARNETGROUP LIMITED,"1,120.00",28/07/2014
Delivery Units,Adults and Communities,Other Agencies - Third Party Payments,30021332,THE BEECHES UK LTD,"13,746.52",14/07/2014
Delivery Units,Adults and Communities,Other Agencies - Third Party Payments,30020291,THE CONIFERS,"2,417.02",08/07/2014
Delivery Units,Adults and Communities,Other Agencies - Third Party Payments,30020292,THE CONIFERS,-505.50,08/07/2014
Delivery Units,Adults and Communities,Other Agencies - Third Party Payments,30019631,THE DISABILITIES TRUST,"7,507.80",03/07/2014
Delivery Units,Adults and Communities,Other Agencies - Third Party Payments,30019690,THE DISABILITIES TRUST,"15,407.74",03/07/2014
Delivery Units,Adults and Communities,Other Agencies - Third Party Payments,30019691,THE DISABILITIES TRUST,"18,415.71",03/07/2014
Delivery Units,Adults and Communities,Other Agencies - Third Party Payments,30021174,THE DISABILITIES TRUST,"53,412.00",11/07/2014
Delivery Units,Adults and Communities,Other Agencies - Third Party Payments,30021142,THE EXTRA MILE CARE CO LTD,796.34,11/07/2014
Delivery Units,Adults and Communities,Other Agencies - Third Party Payments,30021144,THE EXTRA MILE CARE CO LTD,"1,018.18",11/07/2014
Delivery Units,Adults and Communities,Other Agencies - Third Party Payments,30021146,THE EXTRA MILE CARE CO LTD,883.56,11/07/2014
Delivery Units,Adults and Communities,Other Agencies - Third Party Payments,30021199,THE EXTRA MILE CARE CO LTD,746.28,11/07/2014
Delivery Units,Adults and Communities,Other Agencies - Third Party Payments,30021200,THE EXTRA MILE CARE CO LTD,510.62,11/07/2014
Delivery Units,Adults and Communities,Other Agencies - Third Party Payments,30021201,THE EXTRA MILE CARE CO LTD,518.56,11/07/2014
Delivery Units,Adults and Communities,Other Agencies - Third Party Payments,30021203,THE EXTRA MILE CARE CO LTD,698.26,11/07/2014
Delivery Units,Adults and Communities,Other Agencies - Third Party Payments,30021204,THE EXTRA MILE CARE CO LTD,589.84,11/07/2014
Delivery Units,Adults and Communities,Other Agencies - Third Party Payments,30021208,THE EXTRA MILE CARE CO LTD,912.76,11/07/2014
Delivery Units,Adults and Communities,Other Agencies - Third Party Payments,30021209,THE EXTRA MILE CARE CO LTD,909.84,11/07/2014
Delivery Units,Adults and Communities,Other Agencies - Third Party Payments,30021210,THE EXTRA MILE CARE CO LTD,571.44,11/07/2014
Delivery Units,Adults and Communities,Other Agencies - Third Party Payments,30021322,THE EXTRA MILE CARE CO LTD,584.54,14/07/2014
Delivery Units,Adults and Communities,Other Agencies - Third Party Payments,30021323,THE EXTRA MILE CARE CO LTD,576.76,14/07/2014
Delivery Units,Adults and Communities,Other Agencies - Third Party Payments,30021443,THE EXTRA MILE CARE CO LTD,550.00,15/07/2014
Delivery Units,Adults and Communities,Other Agencies - Third Party Payments,30021445,THE EXTRA MILE CARE CO LTD,518.56,15/07/2014
Delivery Units,Adults and Communities,Other Agencies - Third Party Payments,30022332,THE EXTRA MILE CARE CO LTD,889.28,17/07/2014
Delivery Units,Adults and Communities,Other Agencies - Third Party Payments,30022333,THE EXTRA MILE CARE CO LTD,740.88,17/07/2014
Delivery Units,Adults and Communities,Other Agencies - Third Party Payments,30022335,THE EXTRA MILE CARE CO LTD,"1,515.54",17/07/2014
Delivery Units,Adults and Communities,Other Agencies - Third Party Payments,30022337,THE EXTRA MILE CARE CO LTD,814.80,17/07/2014
Delivery Units,Adults and Communities,Other Agencies - Third Party Payments,30022339,THE EXTRA MILE CARE CO LTD,555.66,17/07/2014
Delivery Units,Adults and Communities,Other Agencies - Third Party Payments,30022377,THE EXTRA MILE CARE CO LTD,735.44,18/07/2014
Delivery Units,Adults and Communities,Other Agencies - Third Party Payments,30022378,THE EXTRA MILE CARE CO LTD,963.20,18/07/2014
Delivery Units,Adults and Communities,Other Agencies - Third Party Payments,30022379,THE EXTRA MILE CARE CO LTD,"2,222.08",18/07/2014
Delivery Units,Adults and Communities,Other Agencies - Third Party Payments,30022388,THE EXTRA MILE CARE CO LTD,"1,845.62",18/07/2014
Delivery Units,Adults and Communities,Other Agencies - Third Party Payments,30022389,THE EXTRA MILE CARE CO LTD,740.88,18/07/2014
Delivery Units,Adults and Communities,Other Agencies - Third Party Payments,30022390,THE EXTRA MILE CARE CO LTD,518.56,18/07/2014
Delivery Units,Adults and Communities,Other Agencies - Third Party Payments,30022391,THE EXTRA MILE CARE CO LTD,"1,925.28",18/07/2014
Delivery Units,Adults and Communities,Other Agencies - Third Party Payments,30022392,THE EXTRA MILE CARE CO LTD,666.96,18/07/2014
Delivery Units,Adults and Communities,Other Agencies - Third Party Payments,30022471,THE EXTRA MILE CARE CO LTD,571.44,21/07/2014
Delivery Units,Adults and Communities,Other Agencies - Third Party Payments,30022475,THE EXTRA MILE CARE CO LTD,592.48,21/07/2014
Delivery Units,Adults and Communities,Other Agencies - Third Party Payments,30024155,THE EXTRA MILE CARE CO LTD,"1,471.18",24/07/2014
Delivery Units,Adults and Communities,Other Agencies - Third Party Payments,30024156,THE EXTRA MILE CARE CO LTD,"1,851.92",24/07/2014
Delivery Units,Adults and Communities,Other Agencies - Third Party Payments,30024157,THE EXTRA MILE CARE CO LTD,931.26,24/07/2014
Delivery Units,Adults and Communities,Other Agencies - Third Party Payments,30024160,THE EXTRA MILE CARE CO LTD,888.72,24/07/2014
Delivery Units,Adults and Communities,Other Agencies - Third Party Payments,30024162,THE EXTRA MILE CARE CO LTD,727.46,24/07/2014
Delivery Units,Adults and Communities,Other Agencies - Third Party Payments,30024163,THE EXTRA MILE CARE CO LTD,"1,090.00",24/07/2014
Delivery Units,Adults and Communities,Other Agencies - Third Party Payments,30024312,THE EXTRA MILE CARE CO LTD,910.08,25/07/2014
Delivery Units,Adults and Communities,Other Agencies - Third Party Payments,30024313,THE EXTRA MILE CARE CO LTD,925.40,25/07/2014
Delivery Units,Adults and Communities,Other Agencies - Third Party Payments,30024314,THE EXTRA MILE CARE CO LTD,989.24,25/07/2014
Delivery Units,Adults and Communities,Other Agencies - Third Party Payments,30024319,THE EXTRA MILE CARE CO LTD,756.20,25/07/2014
Delivery Units,Adults and Communities,Other Agencies - Third Party Payments,30024321,THE EXTRA MILE CARE CO LTD,666.40,25/07/2014
Delivery Units,Adults and Communities,Other Agencies - Third Party Payments,30024311,THE EXTRA MILE CARE CO LTD,740.32,25/07/2014
Delivery Units,Adults and Communities,Other Agencies - Third Party Payments,30024434,THE EXTRA MILE CARE CO LTD,"1,399.34",28/07/2014
Delivery Units,Adults and Communities,Other Agencies - Third Party Payments,30024435,THE EXTRA MILE CARE CO LTD,"3,026.09",28/07/2014
Delivery Units,Adults and Communities,Other Agencies - Third Party Payments,30024438,THE EXTRA MILE CARE CO LTD,947.32,28/07/2014
Delivery Units,Adults and Communities,Other Agencies - Third Party Payments,30024551,THE EXTRA MILE CARE CO LTD,"1,370.24",29/07/2014
Delivery Units,Adults and Communities,Other Agencies - Third Party Payments,30024553,THE EXTRA MILE CARE CO LTD,"1,396.14",29/07/2014
Delivery Units,Adults and Communities,Other Agencies - Third Party Payments,30024555,THE EXTRA MILE CARE CO LTD,"1,629.60",29/07/2014
Delivery Units,Adults and Communities,Other Agencies - Third Party Payments,30024556,THE EXTRA MILE CARE CO LTD,"1,706.76",29/07/2014
Delivery Units,Adults and Communities,Other Agencies - Third Party Payments,30025477,THE EXTRA MILE CARE CO LTD,"2,034.70",30/07/2014
Delivery Units,Adults and Communities,Other Agencies - Third Party Payments,30025478,THE EXTRA MILE CARE CO LTD,"1,160.94",30/07/2014
Delivery Units,Adults and Communities,Other Agencies - Third Party Payments,30025482,THE EXTRA MILE CARE CO LTD,740.88,30/07/2014
Delivery Units,Adults and Communities,Other Agencies - Third Party Payments,30025484,THE EXTRA MILE CARE CO LTD,611.00,30/07/2014
Delivery Units,Adults and Communities,Other Agencies - Third Party Payments,30020293,THE GRANGE,"2,184.04",08/07/2014
Delivery Units,Adults and Communities,Other Agencies - Third Party Payments,30022361,THE GRANGE,"2,184.04",18/07/2014
Delivery Units,Adults and Communities,Other Agencies - Third Party Payments,30022368,THE GRANGE,"2,184.04",18/07/2014
Delivery Units,Adults and Communities,Other Agencies - Third Party Payments,30022371,THE GRANGE,"1,092.02",18/07/2014
Delivery Units,Adults and Communities,Other Agencies - Third Party Payments,30024513,THE GRANGE,"1,092.02",29/07/2014
Delivery Units,Adults and Communities,Other Agencies - Third Party Payments,30025644,THE GRANGE,"2,184.04",31/07/2014
Delivery Units,Adults and Communities,Other Agencies - Third Party Payments,30025645,THE GRANGE,-767.64,31/07/2014
Delivery Units,Adults and Communities,Other Agencies - Third Party Payments,30025650,THE GRANGE,"2,184.04",31/07/2014
Delivery Units,Adults and Communities,Other Agencies - Third Party Payments,30025651,THE GRANGE,"2,184.04",31/07/2014
Delivery Units,Adults and Communities,Other Agencies - Third Party Payments,30025653,THE GRANGE,"2,184.04",31/07/2014
Delivery Units,Adults and Communities,Other Agencies - Third Party Payments,30025695,THE GRANGE,"2,184.04",31/07/2014
Delivery Units,Adults and Communities,Other Agencies - Third Party Payments,30025666,THE GRANGE,"2,184.04",31/07/2014
Delivery Units,Adults and Communities,Other Agencies - Third Party Payments,30019570,THE HOLLIES RESIDENTIAL HOTEL,"2,184.04",03/07/2014
Delivery Units,Adults and Communities,Other Agencies - Third Party Payments,30025629,THE HOLLIES RESIDENTIAL HOTEL,"2,184.04",31/07/2014
Delivery Units,Adults and Communities,Other Agencies - Third Party Payments,30018657,THE KINGSDOWNE SOCIETY,"2,441.92",01/07/2014
Delivery Units,Adults and Communities,Other Agencies - Third Party Payments,30018658,THE KINGSDOWNE SOCIETY,"2,001.92",01/07/2014
Delivery Units,Adults and Communities,Other Agencies - Third Party Payments,30018659,THE KINGSDOWNE SOCIETY,"2,001.92",01/07/2014
Delivery Units,Adults and Communities,Other Agencies - Third Party Payments,30018660,THE KINGSDOWNE SOCIETY,"2,001.92",01/07/2014
Delivery Units,Adults and Communities,Other Agencies - Third Party Payments,30018661,THE KINGSDOWNE SOCIETY,"2,184.04",01/07/2014
Delivery Units,Adults and Communities,Other Agencies - Third Party Payments,30018662,THE KINGSDOWNE SOCIETY,"2,001.92",01/07/2014
Delivery Units,Adults and Communities,Other Agencies - Third Party Payments,30024176,THE KINGSDOWNE SOCIETY,"2,441.92",29/07/2014
Delivery Units,Adults and Communities,Other Agencies - Third Party Payments,30024177,THE KINGSDOWNE SOCIETY,"2,001.92",29/07/2014
Delivery Units,Adults and Communities,Other Agencies - Third Party Payments,30024178,THE KINGSDOWNE SOCIETY,"2,001.92",29/07/2014
Delivery Units,Adults and Communities,Other Agencies - Third Party Payments,30024179,THE KINGSDOWNE SOCIETY,"2,184.04",29/07/2014
Delivery Units,Adults and Communities,Other Agencies - Third Party Payments,30024180,THE KINGSDOWNE SOCIETY,"2,001.92",29/07/2014
Delivery Units,Adults and Communities,Other Agencies - Third Party Payments,30020092,THE LEONARD CHESHIRE FOUNDATION,"3,328.58",25/07/2014
Delivery Units,Adults and Communities,Other Agencies - Third Party Payments,30020093,THE LEONARD CHESHIRE FOUNDATION,-531.21,25/07/2014
Delivery Units,Adults and Communities,Other Agencies - Third Party Payments,30019623,THE LIMES RESIDENTIAL HOME,"2,340.04",03/07/2014
Delivery Units,Adults and Communities,Other Agencies - Third Party Payments,30019670,THE LIMES RESIDENTIAL HOME,"2,340.04",03/07/2014
Delivery Units,Adults and Communities,Other Agencies - Third Party Payments,30019681,THE LIMES RESIDENTIAL HOME,"2,340.04",03/07/2014
Delivery Units,Adults and Communities,Other Agencies - Third Party Payments,30019684,THE LIMES RESIDENTIAL HOME,"2,340.04",03/07/2014
Delivery Units,Adults and Communities,Other Agencies - Third Party Payments,30019686,THE LIMES RESIDENTIAL HOME,"2,144.91",03/07/2014
Delivery Units,Adults and Communities,Other Agencies - Third Party Payments,30019692,THE LIMES RESIDENTIAL HOME,"2,340.04",03/07/2014
Delivery Units,Adults and Communities,Other Agencies - Third Party Payments,30020108,THE LIMES RESIDENTIAL HOME,"2,340.04",08/07/2014
Delivery Units,Adults and Communities,Other Agencies - Third Party Payments,30024583,THE LIMES RESIDENTIAL HOME,"2,001.92",29/07/2014
Delivery Units,Adults and Communities,Other Agencies - Third Party Payments,30024587,THE LIMES RESIDENTIAL HOME,"1,092.02",29/07/2014
Delivery Units,Adults and Communities,Other Agencies - Third Party Payments,30024594,THE LIMES RESIDENTIAL HOME,"2,418.04",29/07/2014
Delivery Units,Adults and Communities,Other Agencies - Third Party Payments,30024595,THE LIMES RESIDENTIAL HOME,"2,340.04",29/07/2014
Delivery Units,Adults and Communities,Other Agencies - Third Party Payments,30024596,THE LIMES RESIDENTIAL HOME,"2,418.04",29/07/2014
Delivery Units,Adults and Communities,Other Agencies - Third Party Payments,30024597,THE LIMES RESIDENTIAL HOME,"2,340.04",29/07/2014
Delivery Units,Adults and Communities,Other Agencies - Third Party Payments,30025516,THE LIMES RESIDENTIAL HOME,702.01,30/07/2014
Delivery Units,Adults and Communities,Other Agencies - Third Party Payments,30022496,THE NATIONAL AUTISTIC SOCIETY,"5,325.20",21/07/2014
Delivery Units,Adults and Communities,Other Agencies - Third Party Payments,30022498,THE NATIONAL AUTISTIC SOCIETY,"5,325.20",21/07/2014
Delivery Units,Adults and Communities,Other Agencies - Third Party Payments,30023061,THE NATIONAL AUTISTIC SOCIETY,"3,304.60",23/07/2014
Delivery Units,Adults and Communities,Other Agencies - Third Party Payments,30019775,THE NATIONAL SOCIETY FOR EPILEPSY,"5,407.90",03/07/2014
Delivery Units,Adults and Communities,Other Agencies - Third Party Payments,30019776,THE NATIONAL SOCIETY FOR EPILEPSY,"11,425.00",03/07/2014
Delivery Units,Adults and Communities,Other Agencies - Third Party Payments,30019566,THE PRIORY GRANGE POTTERS BAR,"6,599.91",03/07/2014
Delivery Units,Adults and Communities,Other Agencies - Third Party Payments,30019568,THE PRIORY GRANGE POTTERS BAR,"1,706.80",03/07/2014
Delivery Units,Adults and Communities,Other Agencies - Third Party Payments,30019988,THE REGARD PARTNERSHIP LTD,"5,069.83",04/07/2014
Delivery Units,Adults and Communities,Other Agencies - Third Party Payments,30019990,THE REGARD PARTNERSHIP LTD,"7,781.27",04/07/2014
Delivery Units,Adults and Communities,Other Agencies - Third Party Payments,30023150,THE REGARD PARTNERSHIP LTD,"3,856.84",23/07/2014
Delivery Units,Adults and Communities,Other Agencies - Third Party Payments,30019442,THE WELL HOUSE,"4,350.00",02/07/2014
Delivery Units,Adults and Communities,Other Agencies - Third Party Payments,30020320,THE WOODSIDE HOME,"6,005.76",08/07/2014
Delivery Units,Adults and Communities,Other Agencies - Third Party Payments,30022101,THE WOODSIDE HOME,"2,073.42",17/07/2014
Delivery Units,Adults and Communities,Other Agencies - Third Party Payments,30022513,THE WOODSIDE HOME,643.50,21/07/2014
Delivery Units,Adults and Communities,Other Agencies - Third Party Payments,30024405,THEMI CARE LTD,"4,440.00",28/07/2014
Delivery Units,Adults and Communities,Other Agencies - Third Party Payments,30024407,THEMI CARE LTD,"4,440.00",28/07/2014
Delivery Units,Adults and Communities,Other Agencies - Third Party Payments,30019959,THORNDENE LTD,"3,591.42",04/07/2014
Delivery Units,Adults and Communities,Other Agencies - Third Party Payments,30019960,THORNDENE LTD,-531.21,04/07/2014
Delivery Units,Adults and Communities,Other Agencies - Third Party Payments,30020299,THOUGHTS OF OTHERS LTD,"6,336.36",08/07/2014
Delivery Units,Adults and Communities,Other Agencies - Third Party Payments,30024579,TORRINGTON HOMES,"2,184.04",29/07/2014
Delivery Units,Adults and Communities,Other Agencies - Third Party Payments,30024584,TORRINGTON HOMES,"2,184.04",29/07/2014
Delivery Units,Adults and Communities,Other Agencies - Third Party Payments,30024585,TORRINGTON HOMES,"2,184.04",29/07/2014
Delivery Units,Adults and Communities,Other Agencies - Third Party Payments,30024588,TORRINGTON HOMES,"2,184.04",29/07/2014
Delivery Units,Adults and Communities,Other Agencies - Third Party Payments,30024590,TORRINGTON HOMES,"2,001.92",29/07/2014
Delivery Units,Adults and Communities,Other Agencies - Third Party Payments,30024591,TORRINGTON HOMES,"2,184.04",29/07/2014
Delivery Units,Adults and Communities,Other Agencies - Third Party Payments,30024592,TORRINGTON HOMES,"2,184.04",29/07/2014
Delivery Units,Adults and Communities,Other Agencies - Third Party Payments,30024593,TORRINGTON HOMES,"2,001.92",29/07/2014
Delivery Units,Adults and Communities,Other Agencies - Third Party Payments,30024600,TORRINGTON HOMES,"2,184.04",29/07/2014
Delivery Units,Adults and Communities,Other Agencies - Third Party Payments,30024602,TORRINGTON HOMES,"2,184.04",29/07/2014
Delivery Units,Adults and Communities,Other Agencies - Third Party Payments,30019872,TOWERTREND LTD,"3,214.29",04/07/2014
Delivery Units,Adults and Communities,Other Agencies - Third Party Payments,30019597,TRAFALGAR HEALTHCARE LTD,"2,340.04",03/07/2014
Delivery Units,Adults and Communities,Other Agencies - Third Party Payments,30019814,TUDOR LODGE RESIDENTIAL HOME,"2,448.00",04/07/2014
Delivery Units,Adults and Communities,Other Agencies - Third Party Payments,30022744,TWO RIVERS,"1,225.00",23/07/2014
Delivery Units,Adults and Communities,Other Agencies - Third Party Payments,30020009,UNIQUE CARE SERVICES,"2,455.24",04/07/2014
Delivery Units,Adults and Communities,Other Agencies - Third Party Payments,30020301,VENTRY RESIDENTIAL CARE LTD,"2,184.04",08/07/2014
Delivery Units,Adults and Communities,Other Agencies - Third Party Payments,30020305,VENTRY RESIDENTIAL CARE LTD,"6,474.12",08/07/2014
Delivery Units,Adults and Communities,Other Agencies - Third Party Payments,30024589,VENTRY RESIDENTIAL CARE LTD,"1,501.50",29/07/2014
Delivery Units,Adults and Communities,Other Agencies - Third Party Payments,30022561,VILLA SCALABRINI,"1,121.30",25/07/2014
Delivery Units,Adults and Communities,Other Agencies - Third Party Payments,30019917,VOYAGE CARE,"5,571.43",04/07/2014
Delivery Units,Adults and Communities,Other Agencies - Third Party Payments,30019918,VOYAGE CARE,-509.79,04/07/2014
Delivery Units,Adults and Communities,Other Agencies - Third Party Payments,30019919,VOYAGE CARE,"4,714.28",04/07/2014
Delivery Units,Adults and Communities,Other Agencies - Third Party Payments,30019921,VOYAGE CARE,"7,234.28",04/07/2014
Delivery Units,Adults and Communities,Other Agencies - Third Party Payments,30022555,VOYAGE CARE,"6,800.00",21/07/2014
Delivery Units,Adults and Communities,Other Agencies - Third Party Payments,30020038,VOYAGE LTD (SOLOR CARE),"6,342.26",04/07/2014
Delivery Units,Adults and Communities,Other Agencies - Third Party Payments,30019543,WALSINGHAM,"5,299.50",03/07/2014
Delivery Units,Adults and Communities,Other Agencies - Third Party Payments,30019544,WALSINGHAM,-531.20,03/07/2014
Delivery Units,Adults and Communities,Other Agencies - Third Party Payments,30019545,WALSINGHAM,"5,299.50",03/07/2014
Delivery Units,Adults and Communities,Other Agencies - Third Party Payments,30019547,WALSINGHAM,"3,120.90",03/07/2014
Delivery Units,Adults and Communities,Other Agencies - Third Party Payments,30019549,WALSINGHAM,"3,120.90",03/07/2014
Delivery Units,Adults and Communities,Other Agencies - Third Party Payments,30019553,WALSINGHAM,"3,120.90",03/07/2014
Delivery Units,Adults and Communities,Other Agencies - Third Party Payments,30025602,WALSINGHAM,"3,224.93",31/07/2014
Delivery Units,Adults and Communities,Other Agencies - Third Party Payments,30025604,WALSINGHAM,"3,224.93",31/07/2014
Delivery Units,Adults and Communities,Other Agencies - Third Party Payments,30019797,WENSLEY HOUSE RESIDENTIAL HOME,"2,571.43",03/07/2014
Delivery Units,Adults and Communities,Other Agencies - Third Party Payments,30024199,WENSLEY HOUSE RESIDENTIAL HOME,"2,657.14",24/07/2014
Delivery Units,Adults and Communities,Other Agencies - Third Party Payments,30020040,WESTGATE HOUSE CARE CENTRE,"3,605.57",04/07/2014
Delivery Units,Adults and Communities,Other Agencies - Third Party Payments,30019822,WESTMINSTER HEALTH CARE LTD,"4,350.90",04/07/2014
Delivery Units,Adults and Communities,Other Agencies - Third Party Payments,30019823,WESTMINSTER HEALTH CARE LTD,"2,244.13",04/07/2014
Delivery Units,Adults and Communities,Other Agencies - Third Party Payments,30019824,WESTMINSTER HEALTH CARE LTD,"4,707.17",04/07/2014
Delivery Units,Adults and Communities,Other Agencies - Third Party Payments,30019825,WESTMINSTER HEALTH CARE LTD,"4,707.17",04/07/2014
Delivery Units,Adults and Communities,Other Agencies - Third Party Payments,30019826,WESTMINSTER HEALTH CARE LTD,"4,923.56",04/07/2014
Delivery Units,Adults and Communities,Other Agencies - Third Party Payments,30019419,WESTMINSTER HEALTH CARE LTD,"-4,395.29",31/07/2014
Delivery Units,Adults and Communities,Other Agencies - Third Party Payments,30021097,WILLOW CARE HOMES,"5,066.00",09/07/2014
Delivery Units,Adults and Communities,Other Agencies - Third Party Payments,30020335,WILLOW CARE HOMES,"4,904.00",10/07/2014
Delivery Units,Adults and Communities,Other Agencies - Third Party Payments,20009814,WILLOW CARE HOMES,"18,338.40",28/07/2014
Delivery Units,Adults and Communities,Other Agencies - Third Party Payments,30019559,WILSMERE HOUSE CARE CENTRE,"4,818.73",03/07/2014
Delivery Units,Adults and Communities,Other Agencies - Third Party Payments,30019560,WILSMERE HOUSE CARE CENTRE,"5,247.00",03/07/2014
Delivery Units,Adults and Communities,Other Agencies - Third Party Payments,30019561,WILSMERE HOUSE CARE CENTRE,"5,357.14",03/07/2014
Delivery Units,Adults and Communities,Other Agencies - Third Party Payments,30021376,WOODFIELD HOUSE,"3,000.00",14/07/2014
Delivery Units,Adults and Communities,Other Agencies - Third Party Payments,30023073,WOODFIELD HOUSE,"3,600.00",23/07/2014
Delivery Units,Adults and Communities,Other Agencies - Third Party Payments,30023080,WOODFIELD HOUSE,"2,700.00",23/07/2014
Delivery Units,Adults and Communities,Other Agencies - Third Party Payments,30023074,WOODFIELD HOUSE,"2,700.00",23/07/2014
Delivery Units,Adults and Communities,Other Agencies - Third Party Payments,30023075,WOODFIELD HOUSE,"3,200.00",23/07/2014
Delivery Units,Adults and Communities,Other Agencies - Third Party Payments,30023076,WOODFIELD HOUSE,"6,368.00",23/07/2014
Delivery Units,Adults and Communities,Other Agencies - Third Party Payments,30023079,WOODFIELD HOUSE,"2,700.00",23/07/2014
Delivery Units,Adults and Communities,Other Agencies - Third Party Payments,30023081,WOODFIELD HOUSE,"2,700.00",23/07/2014
Delivery Units,Adults and Communities,Other Agencies - Third Party Payments,30023082,WOODFIELD HOUSE,"4,688.00",23/07/2014
Delivery Units,Adults and Communities,Other Agencies - Third Party Payments,30015956,YAD VOEZER LIMITED,"9,559.50",03/07/2014
Delivery Units,Adults and Communities,Other Agencies - Third Party Payments,30018116,YAD VOEZER LIMITED,"5,199.86",23/07/2014
Delivery Units,Adults and Communities,Other Agencies - Third Party Payments,30018118,YAD VOEZER LIMITED,"5,199.88",23/07/2014
Delivery Units,Adults and Communities,Other Agencies - Third Party Payments,30020110,YAD VOEZER LIMITED,"4,838.88",28/07/2014
Delivery Units,Adults and Communities,Other Agencies - Third Party Payments,30020111,YAD VOEZER LIMITED,"6,499.85",29/07/2014
Delivery Units,Adults and Communities,Other Agencies - Third Party Payments,30018035,YOUNG FOUNDATIONS LTD,"13,064.33",23/07/2014
Delivery Units,Adults and Communities,Other Agencies - Third Party Payments,30019557,YOUNG FOUNDATIONS LTD,"12,642.90",23/07/2014
Delivery Units,Adults and Communities,Other Agencies - Third Party Payments,30022410,Z & M CARE LTD,"2,184.04",21/07/2014
Delivery Units,Adults and Communities,Other Services,10004559,ASHPRI LIMITED,"1,128.20",18/07/2014
Delivery Units,Adults and Communities,Other Services,10005164,KORU MEDICAL LTD,903.95,29/07/2014
Delivery Units,Adults and Communities,Other Services,10004561,LMS (BOLTON) LTD,536.01,30/07/2014
Delivery Units,Adults and Communities,Other Services,10004563,LMS (BOLTON) LTD,548.73,30/07/2014
Delivery Units,Adults and Communities,Other Services,10003257,MI HOMECARE LIMITED,"1,908.00",04/07/2014
Delivery Units,Adults and Communities,Other Services,10003277,MI HOMECARE LIMITED,"1,780.80",04/07/2014
Delivery Units,Adults and Communities,Other Services,10003278,MI HOMECARE LIMITED,"1,780.80",04/07/2014
Delivery Units,Adults and Communities,Other Services,10003279,MI HOMECARE LIMITED,"1,908.00",04/07/2014
Delivery Units,Adults and Communities,Other Services,10003463,MI HOMECARE LIMITED,"1,908.00",07/07/2014
Delivery Units,Adults and Communities,Other Services,10003465,MI HOMECARE LIMITED,"1,908.00",07/07/2014
Delivery Units,Adults and Communities,Other Services,10003466,MI HOMECARE LIMITED,"1,780.80",07/07/2014
Delivery Units,Adults and Communities,Other Services,10003464,MI HOMECARE LIMITED,"1,780.80",10/07/2014
Delivery Units,Adults and Communities,Other Services,10003262,RNIB  (CHARITY),550.00,04/07/2014
Delivery Units,Adults and Communities,Other Services,10003266,RNIB  (CHARITY),700.00,04/07/2014
Delivery Units,Adults and Communities,Other Services,10005061,RNIB  (CHARITY),550.00,28/07/2014
Delivery Units,Adults and Communities,Other Services,30022275,WILLOW HOUSING & CARE LTD.,711.38,17/07/2014
Delivery Units,Adults and Communities,Other Transfer Payments to Soc,10004486,HOUSING 21,634.56,17/07/2014
Delivery Units,Adults and Communities,Other Transfer Payments to Soc,10004487,HOUSING 21,634.56,17/07/2014
Delivery Units,Adults and Communities,Other Transfer Payments to Soc,10004488,HOUSING 21,634.56,17/07/2014
Delivery Units,Adults and Communities,Other Transfer Payments to Soc,10004489,HOUSING 21,634.56,17/07/2014
Delivery Units,Adults and Communities,Other Transfer Payments to Soc,10004490,HOUSING 21,634.56,17/07/2014
Delivery Units,Adults and Communities,Other Transfer Payments to Soc,10004491,HOUSING 21,634.56,17/07/2014
Delivery Units,Adults and Communities,Other Transfer Payments to Soc,10004492,HOUSING 21,634.56,17/07/2014
Delivery Units,Adults and Communities,Other Transfer Payments to Soc,10004493,HOUSING 21,634.56,17/07/2014
Delivery Units,Adults and Communities,Other Transfer Payments to Soc,10004494,HOUSING 21,634.56,17/07/2014
Delivery Units,Adults and Communities,Other Transfer Payments to Soc,10004495,HOUSING 21,634.56,17/07/2014
Delivery Units,Adults and Communities,Other Transfer Payments to Soc,10004496,HOUSING 21,634.56,17/07/2014
Delivery Units,Adults and Communities,Other Transfer Payments to Soc,10004497,HOUSING 21,634.56,17/07/2014
Delivery Units,Adults and Communities,Other Transfer Payments to Soc,10004498,HOUSING 21,634.56,17/07/2014
Delivery Units,Adults and Communities,Other Transfer Payments to Soc,10004499,HOUSING 21,634.56,17/07/2014
Delivery Units,Adults and Communities,Other Transfer Payments to Soc,10004500,HOUSING 21,634.56,17/07/2014
Delivery Units,Adults and Communities,Other Transfer Payments to Soc,10004501,HOUSING 21,634.56,17/07/2014
Delivery Units,Adults and Communities,Other Transfer Payments to Soc,10004502,HOUSING 21,634.56,17/07/2014
Delivery Units,Adults and Communities,Other Transfer Payments to Soc,10004503,HOUSING 21,634.56,17/07/2014
Delivery Units,Adults and Communities,Other Transfer Payments to Soc,10004504,HOUSING 21,634.56,17/07/2014
Delivery Units,Adults and Communities,Other Transfer Payments to Soc,10004505,HOUSING 21,634.56,17/07/2014
Delivery Units,Adults and Communities,Other Transfer Payments to Soc,10004506,HOUSING 21,634.56,17/07/2014
Delivery Units,Adults and Communities,Other Transfer Payments to Soc,10004507,HOUSING 21,"1,681.56",17/07/2014
Delivery Units,Adults and Communities,Other Transfer Payments to Soc,10002809,TIME BANKING UK,"9,400.00",02/07/2014
Delivery Units,Adults and Communities,Private Contractors-Third Party Payments,10004474,GREENWICH LEISURE LTD,"2,225.24",17/07/2014
Delivery Units,Adults and Communities,Software Licences & Support,10004508,CARE MONITORING 2000 LTD,"7,864.75",16/07/2014
Delivery Units,Adults and Communities,Stationery,10003631,COLES PEN CO.,647.15,08/07/2014
Delivery Units,Adults and Communities,Subscriptions,10004867,LONDON BOROUGH OF EALING,"1,000.00",25/07/2014
Delivery Units,Adults and Communities,Telephones Calls,10004791,CCTV TRAINING.COM LTD,"2,250.00",25/07/2014
Delivery Units,Adults and Communities,Training,10004729,VBA PARTNERS LTD,829.60,21/07/2014
Delivery Units,Adults and Communities,Training,10004730,VBA PARTNERS LTD,768.80,21/07/2014
Delivery Units,Adults and Communities,Ttl IT & Comms,10003261,BRITISH TELECOM PLC,"1,363.38",02/07/2014
Delivery Units,Adults and Communities,Ttl IT & Comms,10004220,BRITISH TELECOM PLC,"2,202.53",14/07/2014
Delivery Units,Adults and Communities,Voluntary Associations - Third Party Payment,30022278,BARNET ASIAN WOMENS ASSOCIATION,"2,471.35",17/07/2014
Delivery Units,Adults and Communities,Voluntary Associations - Third Party Payment,30022279,BARNET BEREAVEMENT SERVICE,"3,869.88",17/07/2014
Delivery Units,Adults and Communities,Voluntary Associations - Third Party Payment,30022253,BARNET MENCAP,"10,523.61",17/07/2014
Delivery Units,Adults and Communities,Voluntary Associations - Third Party Payment,30022281,BARNET REFUGEE SERVICE,"5,578.83",23/07/2014
Delivery Units,Adults and Communities,Voluntary Associations - Third Party Payment,30022282,BRITISH RED CROSS SOCIETY,"3,164.63",17/07/2014
Delivery Units,Adults and Communities,Voluntary Associations - Third Party Payment,30022283,CHERRY LODGE CANCER CARE,"1,173.83",17/07/2014
Delivery Units,Adults and Communities,Voluntary Associations - Third Party Payment,30022254,CHINESE MENTAL HEALTH ASSOCIATION,"3,907.90",17/07/2014
Delivery Units,Adults and Communities,Voluntary Associations - Third Party Payment,30022284,DIMENSIONS UK,"26,750.42",17/07/2014
Delivery Units,Adults and Communities,Voluntary Associations - Third Party Payment,30022261,JEWISH COMMUNITY HOUSING ASSOCIATIO,568.17,17/07/2014
Delivery Units,Adults and Communities,Voluntary Associations - Third Party Payment,30022270,LINEN & WOOLLEN DRAPERS COTTAGE,730.11,17/07/2014
Delivery Units,Adults and Communities,Voluntary Associations - Third Party Payment,30022285,MIND IN BARNET,"6,418.22",17/07/2014
Delivery Units,Adults and Communities,Voluntary Associations - Third Party Payment,30022271,ROYAL MENCAP SOCIETY,"2,930.88",17/07/2014
Delivery Units,Adults and Communities,Voluntary Associations - Third Party Payment,30022269,ST PANCRAS & HUMANIST H.A.,661.55,17/07/2014
Delivery Units,Adults and Communities,Voluntary Associations - Third Party Payment,30022287,THE RICHMOND FELLOWSHIP,"44,166.67",17/07/2014
Delivery Units,Childrens Services,Advertising,10003905,EXTERION MEDIA (UK) LIMITED,"3,118.00",11/07/2014
Delivery Units,Childrens Services,Advertising,10003907,EXTERION MEDIA (UK) LIMITED,"1,379.00",11/07/2014
Delivery Units,Childrens Services,Advertising,10003908,EXTERION MEDIA (UK) LIMITED,"3,384.00",11/07/2014
Delivery Units,Childrens Services,Advertising for staff,10003182,THE LONDON APPRENTICESHIP CO,"6,050.00",02/07/2014
Delivery Units,Childrens Services,Advertising for staff,10003183,THE LONDON APPRENTICESHIP CO,"8,525.00",02/07/2014
Delivery Units,Childrens Services,Advertising for staff,10004305,THE LONDON APPRENTICESHIP CO,"2,887.50",15/07/2014
Delivery Units,Childrens Services,Advertising for staff,10004320,THE LONDON APPRENTICESHIP CO,"6,600.00",15/07/2014
Delivery Units,Childrens Services,Advertising for staff,20009607,TMP (UK) LTD,552.30,23/07/2014
Delivery Units,Childrens Services,Advertising for staff,20009603,TMP (UK) LTD,698.00,23/07/2014
Delivery Units,Childrens Services,Advertising for staff,20009606,TMP (UK) LTD,"3,022.60",23/07/2014
Delivery Units,Childrens Services,Advertising for staff,20009604,TMP (UK) LTD,841.00,23/07/2014
Delivery Units,Childrens Services,Agency/Interim Non Hays,20009609,TMP (UK) LTD,792.00,23/07/2014
Delivery Units,Childrens Services,Agency/Interim Non Hays,20009598,TMP (UK) LTD,792.50,23/07/2014
Delivery Units,Childrens Services,Agency/Interim Non Hays,20009582,TMP (UK) LTD,"4,378.00",23/07/2014
Delivery Units,Childrens Services,Agency/Interim Non Hays,20009599,TMP (UK) LTD,"5,071.00",23/07/2014
Delivery Units,Childrens Services,Agency/Interim Non Hays,20009600,TMP (UK) LTD,"2,644.60",23/07/2014
Delivery Units,Childrens Services,Agency/Interim Non Hays,20009601,TMP (UK) LTD,"5,373.40",23/07/2014
Delivery Units,Childrens Services,Books-CDs-Audio-Video,30016661,GOSH COMICS,550.07,14/07/2014
Delivery Units,Childrens Services,Building Repairs & Maintenance,10003167,BREYER GROUP PLC,"7,125.00",04/07/2014
Delivery Units,Childrens Services,Building Repairs & Maintenance,10003168,BREYER GROUP PLC,"18,727.09",04/07/2014
Delivery Units,Childrens Services,Building Repairs & Maintenance,10004463,ENVIRONMENT AGENCY,"1,026.00",16/07/2014
Delivery Units,Childrens Services,Building Repairs & Maintenance,10001175,KINDLELIGHT GLAZING SPECAILISTS LIMITED,"63,629.00",10/07/2014
Delivery Units,Childrens Services,Building Repairs & Maintenance,10003101,KINDLELIGHT GLAZING SPECAILISTS LIMITED,"-63,629.00",10/07/2014
Delivery Units,Childrens Services,Building Repairs & Maintenance,10003853,LEE SECURITY LONDON LIMITED,"1,761.00",09/07/2014
Delivery Units,Childrens Services,Building Repairs & Maintenance,10004645,REDACTED - PERSONAL DATA,650.00,29/07/2014
Delivery Units,Childrens Services,Capital Construction and Works,10003344,GARDINER & THEOBALD LLP,"6,500.00",16/07/2014
Delivery Units,Childrens Services,Capital Construction and Works,10003345,GARDINER & THEOBALD LLP,"10,100.00",16/07/2014
Delivery Units,Childrens Services,Capital Construction and Works,10003346,GARDINER & THEOBALD LLP,"1,000.00",16/07/2014
Delivery Units,Childrens Services,Capital Construction and Works,10004692,GARDINER & THEOBALD LLP,"1,000.00",29/07/2014
Delivery Units,Childrens Services,Capital Construction and Works,10003826,KIER REGIONAL LTD,"511,190.00",10/07/2014
Delivery Units,Childrens Services,Capital Construction and Works,10004795,KIER REGIONAL LTD,"18,371.67",25/07/2014
Delivery Units,Childrens Services,Capital Construction and Works,10003137,LIQUIDLOGIC LTD,"22,500.00",01/07/2014
Delivery Units,Childrens Services,Capital Construction and Works,10003138,LIQUIDLOGIC LTD,"13,625.00",01/07/2014
Delivery Units,Childrens Services,Capital Construction and Works,20008466,LONDON DIOCESAN BOARD FOR SCHOOL,"11,000.00",02/07/2014
Delivery Units,Childrens Services,Capital Construction and Works,10004922,LONDON DIOCESAN BOARD FOR SCHOOL,"350,782.06",25/07/2014
Delivery Units,Childrens Services,Capital Construction and Works,10003559,MORGAN SINDALL,"212,430.00",07/07/2014
Delivery Units,Childrens Services,Capital Construction and Works,10004788,MORGAN SINDALL,"92,811.00",24/07/2014
Delivery Units,Childrens Services,Consumable Catering Supplies,10001692,HOBART UK,"5,544.05",28/07/2014
Delivery Units,Childrens Services,Consumable Catering Supplies,10003478,LONDON BIO PACKAGING,607.23,04/07/2014
Delivery Units,Childrens Services,Contract Cleaning,10005014,BIRKIN CLEANING SERVICES LTD,745.32,29/07/2014
Delivery Units,Childrens Services,Electricity,10003330,KENT COUNTY COUNCIL (KCS),520.24,03/07/2014
Delivery Units,Childrens Services,Electricity,10003119,KENT COUNTY COUNCIL (KCS),"1,127.20",04/07/2014
Delivery Units,Childrens Services,Electricity,10003120,KENT COUNTY COUNCIL (KCS),"2,475.08",04/07/2014
Delivery Units,Childrens Services,Electricity,10003123,KENT COUNTY COUNCIL (KCS),"1,496.58",04/07/2014
Delivery Units,Childrens Services,Electricity,10003253,KENT COUNTY COUNCIL (KCS),"1,316.99",07/07/2014
Delivery Units,Childrens Services,Electricity,10003814,KENT COUNTY COUNCIL (KCS),567.23,09/07/2014
Delivery Units,Childrens Services,Electricity,10004536,KENT COUNTY COUNCIL (KCS),712.54,16/07/2014
Delivery Units,Childrens Services,Electricity,10002629,KENT COUNTY COUNCIL (KCS),"1,117.17",31/07/2014
Delivery Units,Childrens Services,Equipment and Materials Purchase ,10003267,ADAMS ENVIRONMENTAL LTD,810.00,02/07/2014
Delivery Units,Childrens Services,Equipment and Materials Purchase ,10003269,ADAMS ENVIRONMENTAL LTD,"1,510.00",02/07/2014
Delivery Units,Childrens Services,Equipment and Materials Purchase ,10003270,ADAMS ENVIRONMENTAL LTD,820.00,02/07/2014
Delivery Units,Childrens Services,Equipment and Materials Purchase ,10003580,D LONG (CONSTRUCTION) LTD,"19,689.00",08/07/2014
Delivery Units,Childrens Services,Equipment and Materials Purchase ,10003271,ELLIOTT GROUP LTD,"4,844.53",02/07/2014
Delivery Units,Childrens Services,Equipment and Materials Purchase ,10002867,FOSTER REFRIGERATOR (UK) LTD,"2,016.00",03/07/2014
Delivery Units,Childrens Services,Equipment and Materials Purchase ,10003316,GRASVENOR AVENUE INFANT SCHOOL (ACA,"25,000.00",04/07/2014
Delivery Units,Childrens Services,Equipment and Materials Purchase ,10001805,HOBART UK,"5,553.80",28/07/2014
Delivery Units,Childrens Services,Equipment and Materials Purchase ,10002459,KINDLELIGHT GLAZING SPECAILISTS LIMITED,"60,288.28",10/07/2014
Delivery Units,Childrens Services,Equipment and Materials Purchase ,10002102,KIRKFIELDS HEATING SERVICES LTD,"11,665.72",08/07/2014
Delivery Units,Childrens Services,Equipment and Materials Purchase ,10003808,KIRKFIELDS HEATING SERVICES LTD,"26,395.96",09/07/2014
Delivery Units,Childrens Services,Equipment and Materials Purchase ,10003225,LONDON DIOCESAN BOARD FOR SCHOOL,"331,600.00",02/07/2014
Delivery Units,Childrens Services,Equipment and Materials Purchase ,10003296,MENORAH FOUNDATION SCHOOL (GOVERNOR,"19,961.14",04/07/2014
Delivery Units,Childrens Services,Equipment and Materials Purchase ,10003273,PORTAKABIN LTD,"1,934.85",02/07/2014
Delivery Units,Childrens Services,Equipment and Materials Purchase ,10003306,PORTAKABIN LTD,"1,934.85",02/07/2014
Delivery Units,Childrens Services,Equipment and Materials Purchase ,10003308,PORTAKABIN LTD,"1,934.85",02/07/2014
Delivery Units,Childrens Services,Equipment and Materials Purchase ,10003739,REDACTED - PERSONAL DATA,"3,263.03",10/07/2014
Delivery Units,Childrens Services,Equipment and Materials Purchase ,10003740,REDACTED - PERSONAL DATA,"2,187.50",10/07/2014
Delivery Units,Childrens Services,Equipment and Materials Purchase ,10003741,REDACTED - PERSONAL DATA,"3,263.02",11/07/2014
Delivery Units,Childrens Services,Equipment and Materials Purchase ,10003742,REDACTED - PERSONAL DATA,"44,500.83",17/07/2014
Delivery Units,Childrens Services,Equipment and Materials Purchase ,10004784,W.V. HOWE LTD,"16,392.34",28/07/2014
Delivery Units,Childrens Services,Equipment and Materials Repair,10004782,WMF,975.00,29/07/2014
Delivery Units,Childrens Services,Equipment and Materials Repair,10004783,WMF,975.00,29/07/2014
Delivery Units,Childrens Services,Food Costs,10003407,BRAKE BROS ( FROZEN FOODS) LTD,582.13,04/07/2014
Delivery Units,Childrens Services,Food Costs,10003422,HATOV DISTRIBUTION,518.50,07/07/2014
Delivery Units,Childrens Services,Food Costs,10003420,REDACTED - PERSONAL DATA,"1,196.98",07/07/2014
Delivery Units,Childrens Services,Food Costs,10004024,REDACTED - PERSONAL DATA,"1,194.07",11/07/2014
Delivery Units,Childrens Services,Food Costs,10004025,REDACTED - PERSONAL DATA,828.34,11/07/2014
Delivery Units,Childrens Services,Food Costs,10004034,REDACTED - PERSONAL DATA,657.52,14/07/2014
Delivery Units,Childrens Services,Food Costs,10004036,REDACTED - PERSONAL DATA,535.04,17/07/2014
Delivery Units,Childrens Services,Gas,10004546,BRITISH GAS BUSINESS,"1,598.62",17/07/2014
Delivery Units,Childrens Services,Gas,10003332,EDF ENERGY CUSTOMERS PLC,"1,020.37",04/07/2014
Delivery Units,Childrens Services,Grant Payments,20009522,BLUE SKIES,"3,358.85",18/07/2014
Delivery Units,Childrens Services,Grant Payments,20009402,BRIGHT LEARNERS MONTESSORI SCHOOL,630.00,15/07/2014
Delivery Units,Childrens Services,Grant Payments,20009893,FAITHS CHILDMINDING,"2,610.00",30/07/2014
Delivery Units,Childrens Services,Grant Payments,20009233,HONEY BANKS LTD,630.00,11/07/2014
Delivery Units,Childrens Services,Grant Payments,20009024,KINDERGARTEN NURSERY SCHOOLS LTD,810.00,08/07/2014
Delivery Units,Childrens Services,Grant Payments,20009401,LUBAVITCH OF EDGWARE,"1,103.40",15/07/2014
Delivery Units,Childrens Services,Grant Payments,20009023,OAKHILL COMMUNITY NURSERY,"2,358.00",08/07/2014
Delivery Units,Childrens Services,Grant Payments,20009400,OLD BARN PRE-SCHOOL,"1,304.97",15/07/2014
Delivery Units,Childrens Services,Grant Payments,20008896,SOUTHOVER PRE-SCHOOL,"1,080.00",03/07/2014
Delivery Units,Childrens Services,Grant Payments,20009399,ST ANDREWS PRE-SCHOOL,"10,000.00",15/07/2014
Delivery Units,Childrens Services,Grant Payments,20009693,ST ANDREWS PRE-SCHOOL,609.00,23/07/2014
Delivery Units,Childrens Services,Health authorities - Third Party Payment,10004467,TAVISTOCK & PORTMAN NHS TRUST,"19,165.95",16/07/2014
Delivery Units,Childrens Services,IT Services,10003252,CLIVE ATKINS CONSULTANCY LTD,"7,500.00",02/07/2014
Delivery Units,Childrens Services,Other Agencies - Third Party Payments,10002816,24 SEVEN FOSTERING SERVICES,"3,317.00",02/07/2014
Delivery Units,Childrens Services,Other Agencies - Third Party Payments,10003303,ABOVE BEYOND CARE,"3,321.34",04/07/2014
Delivery Units,Childrens Services,Other Agencies - Third Party Payments,10003301,ABOVE BEYOND CARE,"3,214.20",14/07/2014
Delivery Units,Childrens Services,Other Agencies - Third Party Payments,10002773,ADVANTAGE HEALTHCARE GROUP LTD,"1,576.99",03/07/2014
Delivery Units,Childrens Services,Other Agencies - Third Party Payments,10004291,ADVANTAGE HEALTHCARE GROUP LTD,937.00,15/07/2014
Delivery Units,Childrens Services,Other Agencies - Third Party Payments,10004293,ADVANTAGE HEALTHCARE GROUP LTD,697.37,15/07/2014
Delivery Units,Childrens Services,Other Agencies - Third Party Payments,10004295,ADVANTAGE HEALTHCARE GROUP LTD,657.16,15/07/2014
Delivery Units,Childrens Services,Other Agencies - Third Party Payments,10004290,ADVANTAGE HEALTHCARE GROUP LTD,"1,149.33",17/07/2014
Delivery Units,Childrens Services,Other Agencies - Third Party Payments,10003378,ALERE CARE,"2,679.00",04/07/2014
Delivery Units,Childrens Services,Other Agencies - Third Party Payments,10003757,ANCHOR FOSTER CARE SERVICES LTD,"3,063.29",09/07/2014
Delivery Units,Childrens Services,Other Agencies - Third Party Payments,10003758,ANCHOR FOSTER CARE SERVICES LTD,"3,684.57",09/07/2014
Delivery Units,Childrens Services,Other Agencies - Third Party Payments,10003884,APPLE FOSTERING,"3,321.60",28/07/2014
Delivery Units,Childrens Services,Other Agencies - Third Party Payments,10003492,ARCHWAY CARE LTD,"5,445.00",10/07/2014
Delivery Units,Childrens Services,Other Agencies - Third Party Payments,10003507,ARNFIELD CARE LTD,532.60,07/07/2014
Delivery Units,Childrens Services,Other Agencies - Third Party Payments,10003832,ATLANTIC LODGE LTD,"3,471.30",10/07/2014
Delivery Units,Childrens Services,Other Agencies - Third Party Payments,10003837,ATLANTIC LODGE LTD,"3,587.01",10/07/2014
Delivery Units,Childrens Services,Other Agencies - Third Party Payments,10003447,BARNET MENCAP,"1,247.40",04/07/2014
Delivery Units,Childrens Services,Other Agencies - Third Party Payments,10004811,BOOK TRUST,"2,114.71",31/07/2014
Delivery Units,Childrens Services,Other Agencies - Third Party Payments,10004800,BRIGHTER FUTURES FOSTERCARE,"3,113.29",25/07/2014
Delivery Units,Childrens Services,Other Agencies - Third Party Payments,10003130,CALDECOTT FOSTERING LTD,"4,285.71",01/07/2014
Delivery Units,Childrens Services,Other Agencies - Third Party Payments,10003133,CALDECOTT FOSTERING LTD,"3,686.83",01/07/2014
Delivery Units,Childrens Services,Other Agencies - Third Party Payments,10003134,CALDECOTT FOSTERING LTD,"3,567.90",01/07/2014
Delivery Units,Childrens Services,Other Agencies - Third Party Payments,10003135,CALDECOTT FOSTERING LTD,"4,428.58",01/07/2014
Delivery Units,Childrens Services,Other Agencies - Third Party Payments,10003774,CALDECOTT FOSTERING LTD,"4,285.71",09/07/2014
Delivery Units,Childrens Services,Other Agencies - Third Party Payments,10003775,CALDECOTT FOSTERING LTD,"3,567.90",09/07/2014
Delivery Units,Childrens Services,Other Agencies - Third Party Payments,20009354,CALDECOTT FOSTERING LTD,"4,000.00",15/07/2014
Delivery Units,Childrens Services,Other Agencies - Third Party Payments,20008079,CAPSTONE FOSTER CARE (SOUTH) LTD,"-1,363.18",07/07/2014
Delivery Units,Childrens Services,Other Agencies - Third Party Payments,10003486,CAPSTONE FOSTER CARE (SOUTH) LTD,"1,350.00",07/07/2014
Delivery Units,Childrens Services,Other Agencies - Third Party Payments,10003776,CAPSTONE FOSTER CARE (SOUTH) LTD,750.00,09/07/2014
Delivery Units,Childrens Services,Other Agencies - Third Party Payments,10004477,CAPSTONE FOSTER CARE (SOUTH) LTD,"3,145.80",17/07/2014
Delivery Units,Childrens Services,Other Agencies - Third Party Payments,10004479,CAPSTONE FOSTER CARE (SOUTH) LTD,"4,002.86",17/07/2014
Delivery Units,Childrens Services,Other Agencies - Third Party Payments,10004480,CAPSTONE FOSTER CARE (SOUTH) LTD,"3,210.00",17/07/2014
Delivery Units,Childrens Services,Other Agencies - Third Party Payments,10004481,CAPSTONE FOSTER CARE (SOUTH) LTD,"3,317.00",17/07/2014
Delivery Units,Childrens Services,Other Agencies - Third Party Payments,10004482,CAPSTONE FOSTER CARE (SOUTH) LTD,"3,250.66",17/07/2014
Delivery Units,Childrens Services,Other Agencies - Third Party Payments,10004483,CAPSTONE FOSTER CARE (SOUTH) LTD,"4,136.29",17/07/2014
Delivery Units,Childrens Services,Other Agencies - Third Party Payments,10003762,CHILDREN FIRST FOSTERING AGENCY LTD,"1,080.00",10/07/2014
Delivery Units,Childrens Services,Other Agencies - Third Party Payments,10003763,CHILDREN FIRST FOSTERING AGENCY LTD,"3,240.00",10/07/2014
Delivery Units,Childrens Services,Other Agencies - Third Party Payments,10003764,CHILDREN FIRST FOSTERING AGENCY LTD,"3,142.80",10/07/2014
Delivery Units,Childrens Services,Other Agencies - Third Party Payments,10003765,CHILDREN FIRST FOSTERING AGENCY LTD,"1,047.60",10/07/2014
Delivery Units,Childrens Services,Other Agencies - Third Party Payments,10004708,CHILDREN FIRST FOSTERING AGENCY LTD,"3,348.00",18/07/2014
Delivery Units,Childrens Services,Other Agencies - Third Party Payments,10004709,CHILDREN FIRST FOSTERING AGENCY LTD,"3,247.56",18/07/2014
Delivery Units,Childrens Services,Other Agencies - Third Party Payments,10004710,CHILDREN FIRST FOSTERING AGENCY LTD,"5,181.34",18/07/2014
Delivery Units,Childrens Services,Other Agencies - Third Party Payments,10003714,CHILDREN OF COLOUR LTD,"1,714.29",09/07/2014
Delivery Units,Childrens Services,Other Agencies - Third Party Payments,10003760,CHILDREN OF COLOUR LTD,"1,868.57",10/07/2014
Delivery Units,Childrens Services,Other Agencies - Third Party Payments,10003761,CHILDREN OF COLOUR LTD,"1,714.29",10/07/2014
Delivery Units,Childrens Services,Other Agencies - Third Party Payments,10004470,CHILDREN OF COLOUR LTD,"1,714.29",17/07/2014
Delivery Units,Childrens Services,Other Agencies - Third Party Payments,10004471,CHILDREN OF COLOUR LTD,"1,868.57",17/07/2014
Delivery Units,Childrens Services,Other Agencies - Third Party Payments,10004472,CHILDREN OF COLOUR LTD,"1,714.29",17/07/2014
Delivery Units,Childrens Services,Other Agencies - Third Party Payments,10004462,DYNAMIC PEOPLE LTD,"1,159.50",16/07/2014
Delivery Units,Childrens Services,Other Agencies - Third Party Payments,20009403,FAIR PLAY BARNET,"6,490.00",15/07/2014
Delivery Units,Childrens Services,Other Agencies - Third Party Payments,10003156,FOSTER CARE ASSOCIATES LTD,"2,954.10",02/07/2014
Delivery Units,Childrens Services,Other Agencies - Third Party Payments,10003487,FOSTER CARE ASSOCIATES LTD,"3,420.00",07/07/2014
Delivery Units,Childrens Services,Other Agencies - Third Party Payments,10004738,FOSTER CARE ASSOCIATES LTD,"3,052.57",21/07/2014
Delivery Units,Childrens Services,Other Agencies - Third Party Payments,10004332,FOSTERING OPTIONS LTD,"3,380.40",16/07/2014
Delivery Units,Childrens Services,Other Agencies - Third Party Payments,10004333,FOSTERING OPTIONS LTD,"3,493.08",16/07/2014
Delivery Units,Childrens Services,Other Agencies - Third Party Payments,10004828,FOSTERING OPTIONS LTD,"3,309.87",25/07/2014
Delivery Units,Childrens Services,Other Agencies - Third Party Payments,10005183,FOSTERING SUPPORT LIMITED,"6,618.90",31/07/2014
Delivery Units,Childrens Services,Other Agencies - Third Party Payments,10003575,FUTURES FOR CHILDREN LTD,"3,344.90",11/07/2014
Delivery Units,Childrens Services,Other Agencies - Third Party Payments,10004740,GREATER LONDON FOSTERING,"3,132.30",21/07/2014
Delivery Units,Childrens Services,Other Agencies - Third Party Payments,10003721,HILLCREST CARE LTD,"3,147.90",08/07/2014
Delivery Units,Childrens Services,Other Agencies - Third Party Payments,10003755,HILLCREST CARE LTD,"3,180.90",09/07/2014
Delivery Units,Childrens Services,Other Agencies - Third Party Payments,10003756,HILLCREST CARE LTD,"3,147.90",09/07/2014
Delivery Units,Childrens Services,Other Agencies - Third Party Payments,10003248,HORIZON FOSTERING SERVICES LTD,"3,255.00",04/07/2014
Delivery Units,Childrens Services,Other Agencies - Third Party Payments,10003551,HORIZON FOSTERING SERVICES LTD,"3,255.00",07/07/2014
Delivery Units,Childrens Services,Other Agencies - Third Party Payments,10003969,HORIZON FOSTERING SERVICES LTD,"3,255.00",11/07/2014
Delivery Units,Childrens Services,Other Agencies - Third Party Payments,10003970,HORIZON FOSTERING SERVICES LTD,"3,150.00",11/07/2014
Delivery Units,Childrens Services,Other Agencies - Third Party Payments,10004707,HORIZON FOSTERING SERVICES LTD,"3,150.00",18/07/2014
Delivery Units,Childrens Services,Other Agencies - Third Party Payments,10004706,HORIZON FOSTERING SERVICES LTD,630.00,21/07/2014
Delivery Units,Childrens Services,Other Agencies - Third Party Payments,10005112,HORIZON FOSTERING SERVICES LTD,"3,150.00",30/07/2014
Delivery Units,Childrens Services,Other Agencies - Third Party Payments,10005016,HOUSING PLUS LTD,"1,305.00",28/07/2014
Delivery Units,Childrens Services,Other Agencies - Third Party Payments,10005039,HOUSING PLUS LTD,"2,175.00",28/07/2014
Delivery Units,Childrens Services,Other Agencies - Third Party Payments,10005040,HOUSING PLUS LTD,"1,305.00",28/07/2014
Delivery Units,Childrens Services,Other Agencies - Third Party Payments,10005042,HOUSING PLUS LTD,"1,305.00",28/07/2014
Delivery Units,Childrens Services,Other Agencies - Third Party Payments,10005043,HOUSING PLUS LTD,"1,305.00",28/07/2014
Delivery Units,Childrens Services,Other Agencies - Third Party Payments,10005044,HOUSING PLUS LTD,"1,305.00",28/07/2014
Delivery Units,Childrens Services,Other Agencies - Third Party Payments,10005115,HOUSING PLUS LTD,"1,305.00",30/07/2014
Delivery Units,Childrens Services,Other Agencies - Third Party Payments,10005062,HOUSING PLUS LTD,"1,305.00",31/07/2014
Delivery Units,Childrens Services,Other Agencies - Third Party Payments,10005063,HOUSING PLUS LTD,"1,348.50",31/07/2014
Delivery Units,Childrens Services,Other Agencies - Third Party Payments,10003887,HYTHE HOUSE SUPPORT LTD,"4,144.04",29/07/2014
Delivery Units,Childrens Services,Other Agencies - Third Party Payments,10003480,INTEGRATED SERVICES PROGRAMME,"4,635.75",07/07/2014
Delivery Units,Childrens Services,Other Agencies - Third Party Payments,10003481,INTEGRATED SERVICES PROGRAMME,"4,496.68",07/07/2014
Delivery Units,Childrens Services,Other Agencies - Third Party Payments,10003766,INTEGRATED SERVICES PROGRAMME,"5,284.80",10/07/2014
Delivery Units,Childrens Services,Other Agencies - Third Party Payments,10003767,INTEGRATED SERVICES PROGRAMME,"4,455.00",10/07/2014
Delivery Units,Childrens Services,Other Agencies - Third Party Payments,10003768,INTEGRATED SERVICES PROGRAMME,"5,284.80",10/07/2014
Delivery Units,Childrens Services,Other Agencies - Third Party Payments,10003769,INTEGRATED SERVICES PROGRAMME,"5,284.80",10/07/2014
Delivery Units,Childrens Services,Other Agencies - Third Party Payments,10003770,INTEGRATED SERVICES PROGRAMME,"5,284.80",10/07/2014
Delivery Units,Childrens Services,Other Agencies - Third Party Payments,10003771,INTEGRATED SERVICES PROGRAMME,"3,214.20",10/07/2014
Delivery Units,Childrens Services,Other Agencies - Third Party Payments,10003772,INTEGRATED SERVICES PROGRAMME,"5,284.50",10/07/2014
Delivery Units,Childrens Services,Other Agencies - Third Party Payments,10003773,INTEGRATED SERVICES PROGRAMME,"5,396.01",10/07/2014
Delivery Units,Childrens Services,Other Agencies - Third Party Payments,10004793,INTEGRATED SERVICES PROGRAMME,"5,562.90",25/07/2014
Delivery Units,Childrens Services,Other Agencies - Third Party Payments,10004712,INTEGRATED SERVICES PROGRAMME,"5,748.33",29/07/2014
Delivery Units,Childrens Services,Other Agencies - Third Party Payments,10004722,INTEGRATED SERVICES PROGRAMME,"5,575.88",29/07/2014
Delivery Units,Childrens Services,Other Agencies - Third Party Payments,10004723,INTEGRATED SERVICES PROGRAMME,"3,321.34",29/07/2014
Delivery Units,Childrens Services,Other Agencies - Third Party Payments,10004724,INTEGRATED SERVICES PROGRAMME,"5,460.96",29/07/2014
Delivery Units,Childrens Services,Other Agencies - Third Party Payments,10004725,INTEGRATED SERVICES PROGRAMME,"5,460.65",29/07/2014
Delivery Units,Childrens Services,Other Agencies - Third Party Payments,10004726,INTEGRATED SERVICES PROGRAMME,"5,460.96",29/07/2014
Delivery Units,Childrens Services,Other Agencies - Third Party Payments,10004741,INTEGRATED SERVICES PROGRAMME,"5,460.96",29/07/2014
Delivery Units,Childrens Services,Other Agencies - Third Party Payments,10004755,INTEGRATED SERVICES PROGRAMME,"4,603.50",29/07/2014
Delivery Units,Childrens Services,Other Agencies - Third Party Payments,10004756,INTEGRATED SERVICES PROGRAMME,"5,460.96",29/07/2014
Delivery Units,Childrens Services,Other Agencies - Third Party Payments,10005182,INTEGRATED SERVICES PROGRAMME,"1,729.16",31/07/2014
Delivery Units,Childrens Services,Other Agencies - Third Party Payments,10003150,INTERGRATED FOSTERING SERVICES LTD,"3,427.67",02/07/2014
Delivery Units,Childrens Services,Other Agencies - Third Party Payments,10003759,INTERGRATED FOSTERING SERVICES LTD,"3,277.01",10/07/2014
Delivery Units,Childrens Services,Other Agencies - Third Party Payments,10003815,INTERGRATED FOSTERING SERVICES LTD,"1,879.69",10/07/2014
Delivery Units,Childrens Services,Other Agencies - Third Party Payments,10003888,INTERGRATED FOSTERING SERVICES LTD,"3,317.10",10/07/2014
Delivery Units,Childrens Services,Other Agencies - Third Party Payments,10003892,INTERGRATED FOSTERING SERVICES LTD,"3,960.00",10/07/2014
Delivery Units,Childrens Services,Other Agencies - Third Party Payments,10003893,INTERGRATED FOSTERING SERVICES LTD,"3,436.80",10/07/2014
Delivery Units,Childrens Services,Other Agencies - Third Party Payments,10003891,INTERGRATED FOSTERING SERVICES LTD,"3,317.10",11/07/2014
Delivery Units,Childrens Services,Other Agencies - Third Party Payments,20006661,LCS PARTNERSHIPS LTD,"-2,464.20",04/07/2014
Delivery Units,Childrens Services,Other Agencies - Third Party Payments,20006662,LCS PARTNERSHIPS LTD,"2,464.20",04/07/2014
Delivery Units,Childrens Services,Other Agencies - Third Party Payments,10001124,LCS PARTNERSHIPS LTD,597.87,04/07/2014
Delivery Units,Childrens Services,Other Agencies - Third Party Payments,10003298,LCS PARTNERSHIPS LTD,"2,760.75",04/07/2014
Delivery Units,Childrens Services,Other Agencies - Third Party Payments,20006167,LCS PARTNERSHIPS LTD,"1,285.80",04/07/2014
Delivery Units,Childrens Services,Other Agencies - Third Party Payments,20006168,LCS PARTNERSHIPS LTD,"-1,285.80",04/07/2014
Delivery Units,Childrens Services,Other Agencies - Third Party Payments,20006169,LCS PARTNERSHIPS LTD,"1,328.66",04/07/2014
Delivery Units,Childrens Services,Other Agencies - Third Party Payments,20006170,LCS PARTNERSHIPS LTD,"-1,328.66",04/07/2014
Delivery Units,Childrens Services,Other Agencies - Third Party Payments,20006171,LCS PARTNERSHIPS LTD,"1,285.80",04/07/2014
Delivery Units,Childrens Services,Other Agencies - Third Party Payments,20006172,LCS PARTNERSHIPS LTD,"-1,285.80",04/07/2014
Delivery Units,Childrens Services,Other Agencies - Third Party Payments,20006175,LCS PARTNERSHIPS LTD,"1,328.66",04/07/2014
Delivery Units,Childrens Services,Other Agencies - Third Party Payments,20006176,LCS PARTNERSHIPS LTD,"-1,328.66",04/07/2014
Delivery Units,Childrens Services,Other Agencies - Third Party Payments,10003151,LINK FOSTERING AGENCY LTD,"3,272.71",02/07/2014
Delivery Units,Childrens Services,Other Agencies - Third Party Payments,10003716,LINK FOSTERING AGENCY LTD,"4,748.57",08/07/2014
Delivery Units,Childrens Services,Other Agencies - Third Party Payments,10003190,METROPOLITAN SUPPORT TRUST,"11,488.38",02/07/2014
Delivery Units,Childrens Services,Other Agencies - Third Party Payments,10004672,NAS SERVICES LTD,934.16,21/07/2014
Delivery Units,Childrens Services,Other Agencies - Third Party Payments,10004674,NAS SERVICES LTD,934.16,21/07/2014
Delivery Units,Childrens Services,Other Agencies - Third Party Payments,10002685,NATIONAL FOSTERING AGENCY,701.19,07/07/2014
Delivery Units,Childrens Services,Other Agencies - Third Party Payments,10004089,NATIONAL FOSTERING AGENCY,"3,595.30",14/07/2014
Delivery Units,Childrens Services,Other Agencies - Third Party Payments,10004090,NATIONAL FOSTERING AGENCY,"1,029.00",14/07/2014
Delivery Units,Childrens Services,Other Agencies - Third Party Payments,10004091,NATIONAL FOSTERING AGENCY,"5,221.33",14/07/2014
Delivery Units,Childrens Services,Other Agencies - Third Party Payments,10004330,NATIONAL FOSTERING AGENCY,"1,860.00",16/07/2014
Delivery Units,Childrens Services,Other Agencies - Third Party Payments,10004331,NATIONAL FOSTERING AGENCY,"1,800.00",16/07/2014
Delivery Units,Childrens Services,Other Agencies - Third Party Payments,10004657,NATIONAL FOSTERING AGENCY,"3,097.20",28/07/2014
Delivery Units,Childrens Services,Other Agencies - Third Party Payments,10004658,NATIONAL FOSTERING AGENCY,"3,192.90",28/07/2014
Delivery Units,Childrens Services,Other Agencies - Third Party Payments,10004659,NATIONAL FOSTERING AGENCY,"3,407.10",28/07/2014
Delivery Units,Childrens Services,Other Agencies - Third Party Payments,10004801,NATIONAL FOSTERING AGENCY,"3,005.10",28/07/2014
Delivery Units,Childrens Services,Other Agencies - Third Party Payments,10004824,NATIONAL FOSTERING AGENCY,"3,765.08",28/07/2014
Delivery Units,Childrens Services,Other Agencies - Third Party Payments,10004826,NATIONAL FOSTERING AGENCY,"4,716.04",28/07/2014
Delivery Units,Childrens Services,Other Agencies - Third Party Payments,10004881,NATIONAL FOSTERING AGENCY,"3,005.10",28/07/2014
Delivery Units,Childrens Services,Other Agencies - Third Party Payments,10004882,NATIONAL FOSTERING AGENCY,"3,076.20",28/07/2014
Delivery Units,Childrens Services,Other Agencies - Third Party Payments,10004883,NATIONAL FOSTERING AGENCY,"3,107.10",28/07/2014
Delivery Units,Childrens Services,Other Agencies - Third Party Payments,10004887,NATIONAL FOSTERING AGENCY,"3,107.10",28/07/2014
Delivery Units,Childrens Services,Other Agencies - Third Party Payments,10004890,NATIONAL FOSTERING AGENCY,"3,107.10",28/07/2014
Delivery Units,Childrens Services,Other Agencies - Third Party Payments,10004892,NATIONAL FOSTERING AGENCY,"2,128.60",28/07/2014
Delivery Units,Childrens Services,Other Agencies - Third Party Payments,10004895,NATIONAL FOSTERING AGENCY,"1,064.30",28/07/2014
Delivery Units,Childrens Services,Other Agencies - Third Party Payments,10005117,NATIONAL FOSTERING AGENCY,"1,800.00",30/07/2014
Delivery Units,Childrens Services,Other Agencies - Third Party Payments,10005116,NATIONAL FOSTERING AGENCY,"3,076.20",30/07/2014
Delivery Units,Childrens Services,Other Agencies - Third Party Payments,10003283,NEO PROPERTIES (UK) LTD,"3,011.34",04/07/2014
Delivery Units,Childrens Services,Other Agencies - Third Party Payments,10003284,NEO PROPERTIES (UK) LTD,"3,011.34",04/07/2014
Delivery Units,Childrens Services,Other Agencies - Third Party Payments,10003286,NEO PROPERTIES (UK) LTD,"3,011.34",04/07/2014
